Ref No,Fund Type,Dept,Cost Centre Description    ,Description    ,Creditor Name    ,GL Code Net Amount,Payment date        
2,Revenue,CAHD,South Glos Users in South Glos Homes,Permanent Nursing,.,620.20, 06-Jun-2017
3,Revenue,CAHD,Bed Purchasing - North,Permanent Nursing,.,3294.28, 06-Jun-2017
4,Revenue,CAHD,South Glos Users in South Glos Homes,Permanent Nursing,.,620.20, 06-Jun-2017
5,Revenue,CAHD,Bed purchasing - Elderly S117 - South,Permanent Nursing,.,5185.71, 06-Jun-2017
6,Revenue,CAHD,Bed purchasing - Elderly S117 - South,Permanent Nursing,.,4400.00, 06-Jun-2017
7,Revenue,CAHD,Bed Purchasing - South,Permanent Nursing,.,3349.56, 06-Jun-2017
8,Revenue,CAHD,South Glos Users in South Glos Homes,Permanent Nursing,.,620.20, 06-Jun-2017
9,Revenue,CAHD,Bed Purchasing - North,Permanent Nursing,.,3294.28, 06-Jun-2017
10,Revenue,CAHD,South Glos Users in South Glos Homes,Permanent Nursing,.,620.20, 06-Jun-2017
11,Revenue,CAHD,South Glos Users in South Glos Homes,Permanent Nursing,.,825.89, 06-Jun-2017
12,Revenue,CAHD,Bed Purchasing - South,Permanent Nursing,.,3294.28, 06-Jun-2017
13,Revenue,CAHD,South Glos Users in South Glos Homes,Permanent Nursing,.,620.20, 06-Jun-2017
14,Revenue,CAHD,Bed Purchasing - Southmead Hospital,Permanent Nursing,.,4800.00, 06-Jun-2017
15,Revenue,CAHD,South Glos Users in South Glos Homes,Permanent Nursing,.,930.30, 06-Jun-2017
16,Revenue,CAHD,South Glos Users in South Glos Homes,Permanent Nursing,.,620.20, 06-Jun-2017
17,Revenue,CAHD,South Glos Users in South Glos Homes,Permanent Nursing,.,620.20, 06-Jun-2017
18,Revenue,CAHD,Bed Purchasing - North,Permanent Residential,.,6381.90, 06-Jun-2017
19,Revenue,CAHD,Bed Purchasing - North,Permanent Residential,.,4254.60, 06-Jun-2017
20,Revenue,CAHD,South Glos Users in South Glos Homes,Permanent Nursing,.,620.20, 06-Jun-2017
21,Revenue,CAHD,Bed Purchasing - North,Fees & Charges Income - General,.,1840.78, 06-Jun-2017
22,Revenue,CAHD,Bed Purchasing - South,Permanent Nursing,.,3621.48, 06-Jun-2017
23,Revenue,CAHD,South Glos Users in South Glos Homes,Permanent Nursing,.,620.20, 06-Jun-2017
24,Revenue,CAHD,Bed Purchasing - North,Permanent Nursing,.,5039.68, 06-Jun-2017
25,Revenue,CAHD,South Glos Users in South Glos Homes,Permanent Nursing,.,620.20, 06-Jun-2017
26,Revenue,CAHD,Bed Purchasing - South,Permanent Nursing,.,3824.08, 06-Jun-2017
27,Revenue,CAHD,South Glos Users in South Glos Homes,Permanent Nursing,.,1129.65, 06-Jun-2017
28,Revenue,CAHD,South Glos Users in South Glos Homes,Permanent Nursing,.,620.20, 06-Jun-2017
29,Revenue,CAHD,Bed Purchasing - Southmead Hospital,Permanent Nursing,.,3824.08, 06-Jun-2017
30,Revenue,CAHD,South Glos Users in South Glos Homes,Permanent Nursing,.,620.20, 06-Jun-2017
31,Revenue,CAHD,South Glos Users in South Glos Homes,Permanent Nursing,.,620.20, 06-Jun-2017
32,Revenue,CAHD,South Glos Users in South Glos Homes,Permanent Nursing,.,620.20, 06-Jun-2017
33,Revenue,CAHD,Bed Purchasing - Southmead Hospital,Permanent Nursing,.,3779.80, 06-Jun-2017
34,Revenue,CAHD,Bed Purchasing - Southmead Hospital,Permanent Nursing,.,539.98, 06-Jun-2017
35,Revenue,CAHD,South Glos Users in South Glos Homes,Permanent Nursing,.,620.20, 06-Jun-2017
36,Revenue,CAHD,South Glos Users in South Glos Homes,Permanent Nursing,.,620.20, 06-Jun-2017
37,Revenue,CAHD,South Glos Users in South Glos Homes,Permanent Nursing,.,620.20, 06-Jun-2017
38,Revenue,CAHD,Bed Purchasing - North,Permanent Nursing,.,4228.56, 06-Jun-2017
39,Revenue,CAHD,South Glos Users in South Glos Homes,Permanent Nursing,.,620.20, 06-Jun-2017
40,Revenue,CAHD,South Glos Users in South Glos Homes,Permanent Nursing,.,1205.36, 06-Jun-2017
41,Revenue,CAHD,South Glos Users in South Glos Homes,Permanent Nursing,.,1129.65, 06-Jun-2017
42,Revenue,CAHD,South Glos Users in South Glos Homes,Permanent Nursing,.,620.20, 06-Jun-2017
43,Revenue,CAHD,South Glos Users in South Glos Homes,Permanent Nursing,.,620.20, 06-Jun-2017
44,Revenue,CAHD,South Glos Users in South Glos Homes,Permanent Nursing,.,620.20, 06-Jun-2017
45,Revenue,CAHD,South Glos Users in South Glos Homes,Permanent Nursing,.,620.20, 06-Jun-2017
46,Revenue,CAHD,South Glos Users in South Glos Homes,Permanent Nursing,.,620.20, 06-Jun-2017
47,Revenue,CAHD,South Glos Users in South Glos Homes,Permanent Nursing,.,620.20, 06-Jun-2017
48,Revenue,CAHD,South Glos Users in South Glos Homes,Permanent Nursing,.,620.20, 06-Jun-2017
49,Revenue,CAHD,South Glos Users in South Glos Homes,Permanent Nursing,.,620.20, 06-Jun-2017
50,Revenue,CAHD,South Glos Users in South Glos Homes,Permanent Nursing,.,620.20, 06-Jun-2017
51,Revenue,CAHD,South Glos Users in South Glos Homes,Permanent Nursing,.,620.20, 06-Jun-2017
52,Revenue,CAHD,South Glos Users in South Glos Homes,Permanent Nursing,.,620.20, 06-Jun-2017
53,Revenue,CAHD,South Glos Users in South Glos Homes,Permanent Nursing,.,620.20, 06-Jun-2017
54,Revenue,CAHD,South Glos Users in South Glos Homes,Permanent Nursing,.,620.20, 06-Jun-2017
55,Revenue,CAHD,South Glos Users in South Glos Homes,Permanent Nursing,.,3303.57, 06-Jun-2017
56,Revenue,CAHD,South Glos Users in South Glos Homes,Permanent Nursing,.,1129.65, 06-Jun-2017
57,Revenue,CAHD,South Glos Users in South Glos Homes,Permanent Nursing,.,620.20, 06-Jun-2017
58,Revenue,CAHD,South Glos Users in South Glos Homes,Permanent Nursing,.,620.20, 06-Jun-2017
59,Revenue,CAHD,South Glos Users in South Glos Homes,Permanent Nursing,.,620.20, 06-Jun-2017
60,Revenue,CAHD,Bed Purchasing - North,Respite Planned - Nursing,.,5185.71, 06-Jun-2017
61,Revenue,CAHD,South Glos Users in South Glos Homes,Permanent Nursing,.,602.68, 06-Jun-2017
62,Revenue,CAHD,South Glos Users in South Glos Homes,Permanent Nursing,.,620.20, 06-Jun-2017
63,Revenue,CAHD,South Glos Users in South Glos Homes,Permanent Nursing,.,620.20, 06-Jun-2017
64,Revenue,CAHD,South Glos Users in South Glos Homes,Permanent Nursing,.,1160.71, 06-Jun-2017
65,Revenue,CAHD,South Glos Users in South Glos Homes,Permanent Nursing,.,620.20, 06-Jun-2017
66,Revenue,CAHD,South Glos Users in South Glos Homes,Permanent Nursing,.,620.20, 06-Jun-2017
67,Revenue,CAHD,South Glos Users in South Glos Homes,Permanent Nursing,.,620.20, 06-Jun-2017
68,Revenue,CAHD,South Glos Users in South Glos Homes,Permanent Nursing,.,1116.07, 06-Jun-2017
69,Revenue,CAHD,South Glos Users in South Glos Homes,Permanent Nursing,.,598.05, 06-Jun-2017
70,Revenue,CAHD,South Glos Users in South Glos Homes,Permanent Nursing,.,620.20, 06-Jun-2017
71,Revenue,CAHD,South Glos Users in South Glos Homes,Permanent Nursing,.,620.20, 06-Jun-2017
72,Revenue,CAHD,South Glos Users in South Glos Homes,Permanent Nursing,.,620.20, 06-Jun-2017
73,Revenue,CAHD,South Glos Users in South Glos Homes,Permanent Nursing,.,1160.71, 06-Jun-2017
74,Revenue,CAHD,South Glos Users in South Glos Homes,Permanent Nursing,.,1129.65, 06-Jun-2017
75,Revenue,CAHD,South Glos Users in South Glos Homes,Permanent Nursing,.,620.20, 06-Jun-2017
76,Revenue,CAHD,Bed Purchasing - Southmead Hospital,Permanent Residential,.,4400.00, 06-Jun-2017
77,Revenue,CAHD,Bed Purchasing - Southmead Hospital,Permanent Residential,.,1728.57, 06-Jun-2017
78,Revenue,CAHD,South Glos Users in South Glos Homes,Permanent Nursing,.,1041.05, 06-Jun-2017
79,Revenue,CAHD,South Glos Users in South Glos Homes,Permanent Nursing,.,620.20, 06-Jun-2017
80,Revenue,CAHD,Bed Purchasing - North,Permanent Nursing,.,3114.96, 06-Jun-2017
81,Revenue,CAHD,South Glos Users in South Glos Homes,Permanent Nursing,.,620.20, 06-Jun-2017
82,Revenue,CAHD,Bed Purchasing - North,Permanent Nursing,.,3294.28, 06-Jun-2017
83,Revenue,CAHD,South Glos Users in South Glos Homes,Permanent Nursing,.,620.20, 06-Jun-2017
84,Revenue,CAHD,South Glos Users in South Glos Homes,Permanent Nursing,.,620.20, 06-Jun-2017
85,Revenue,CAHD,Bed Purchasing - Southmead Hospital,Permanent Nursing,.,3824.08, 06-Jun-2017
86,Revenue,CAHD,South Glos Users in South Glos Homes,Permanent Nursing,.,620.20, 06-Jun-2017
87,Revenue,CAHD,South Glos Users in South Glos Homes,Permanent Nursing,.,620.20, 06-Jun-2017
88,Revenue,CAHD,South Glos Users in South Glos Homes,Permanent Nursing,.,1129.65, 06-Jun-2017
89,Revenue,CAHD,South Glos Users in South Glos Homes,Permanent Nursing,.,1049.11, 06-Jun-2017
90,Revenue,CAHD,South Glos Users in South Glos Homes,Permanent Nursing,.,620.20, 06-Jun-2017
91,Revenue,CAHD,Bed Purchasing - North,Permanent Residential,.,3545.52, 06-Jun-2017
92,Revenue,CAHD,Bed Purchasing - Southmead Hospital,Permanent Residential,.,3091.25, 06-Jun-2017
93,Revenue,CAHD,18-25 Year Olds,Permanent Residential,1 St Georges House,14038.20, 06-Jun-2017
94,Revenue,CAHD,Supporting People Programme,Grants to Voluntary Bodies,1625 Independent People,14536.00, 01-Jun-2017
95,Revenue,CAHD,Supporting People Programme,Grants to Voluntary Bodies,1625 Independent People,14536.00, 30-Jun-2017
96,Revenue,CAHD,Home Care - Elderly - South,Day Care / Social Activities,3 Trees Community Support Ltd,93.40, 06-Jun-2017
97,Revenue,CAHD,Home Care - Elderly - North,Day Care / Social Activities,3 Trees Community Support Ltd,1368.31, 06-Jun-2017
98,Revenue,CAHD,Home Care - Elderly - North,Other Small Contracts,3 Trees Community Support Ltd,709.84, 06-Jun-2017
99,Revenue,CAHD,Home Care - Elderly - North,Supported Living,3 Trees Community Support Ltd,7430.46, 06-Jun-2017
100,Revenue,CAHD,Home Care - Elderly - South,Day Care / Social Activities,3 Trees Community Support Ltd,93.40, 19-Jun-2017
101,Revenue,CAHD,Home Care - Elderly - North,Day Care / Social Activities,3 Trees Community Support Ltd,1148.82, 19-Jun-2017
102,Revenue,CAHD,Home Care - Elderly - North,Other Small Contracts,3 Trees Community Support Ltd,709.84, 19-Jun-2017
103,Revenue,CAHD,Home Care - Elderly - North,Supported Living,3 Trees Community Support Ltd,7420.55, 19-Jun-2017
104,Revenue,CAHD,Home Care - Elderly - South,Day Care / Social Activities,3 Trees Community Support Ltd,93.40, 19-Jun-2017
105,Revenue,CAHD,Home Care - Elderly - North,Day Care / Social Activities,3 Trees Community Support Ltd,1022.73, 19-Jun-2017
106,Revenue,CAHD,Home Care - Elderly - North,Other Small Contracts,3 Trees Community Support Ltd,700.50, 19-Jun-2017
107,Revenue,CAHD,Home Care - Elderly - North,Supported Living,3 Trees Community Support Ltd,7434.15, 19-Jun-2017
108,Revenue,CAHD,Home Care - Elderly - South,Day Care / Social Activities,3 Trees Community Support Ltd,98.07, 28-Jun-2017
109,Revenue,CAHD,Home Care - Elderly - North,Day Care / Social Activities,3 Trees Community Support Ltd,1372.98, 28-Jun-2017
110,Revenue,CAHD,Home Care - Elderly - North,Other Small Contracts,3 Trees Community Support Ltd,709.84, 28-Jun-2017
111,Revenue,CAHD,Home Care - Elderly - North,Supported Living,3 Trees Community Support Ltd,7431.31, 28-Jun-2017
112,Revenue,CAHD,18-25 Year Olds,Permanent Residential,5Th Floor Harlech Court,14619.64, 06-Jun-2017
113,Revenue,CAHD,18-25 Year Olds,Permanent Residential,5Th Floor Harlech Court,14760.00, 06-Jun-2017
114,Revenue,CAHD,18-25 Year Olds,Permanent Residential,5Th Floor Harlech Court,13130.76, 06-Jun-2017
115,Revenue,CAHD,Bed Purchasing - North,Permanent Residential,5Th Floor Harlech Court,15870.60, 06-Jun-2017
116,Revenue,CAHD,18-25 Year Olds,Respite Planned - Residential,5Th Floor Harlech Court,2395.11, 06-Jun-2017
117,Revenue,CAHD,18-25 Year Olds,Respite Planned - Residential,5Th Floor Harlech Court,1916.09, 06-Jun-2017
118,Revenue,CAHD,Bed Purchasing - North,Permanent Residential,5Th Floor Harlech Court,14104.28, 06-Jun-2017
119,Revenue,CAHD,Jointly Funded H&SC Packages,Permanent Residential,5Th Floor Harlech Court,3490.16, 06-Jun-2017
120,Revenue,CAHD,18-25 Year Olds,Permanent Residential,5Th Floor Harlech Court,16704.04, 06-Jun-2017
121,Revenue,CAHD,Bed Purchasing - South,Permanent Residential,5Th Floor Harlech Court,15973.00, 06-Jun-2017
122,Revenue,CAHD,Bed Purchasing - South,Permanent Residential,5Th Floor Harlech Court,15973.00, 06-Jun-2017
123,Revenue,CAHD,Bed Purchasing - South,Permanent Residential,5Th Floor Harlech Court,9985.60, 06-Jun-2017
124,Revenue,CAHD,Bed purchasing - S28A Under 65 - South,Permanent Residential,5Th Floor Harlech Court,15675.84, 06-Jun-2017
125,Revenue,CAHD,Bed purchasing - S28A Under 65 - South,Permanent Residential,5Th Floor Harlech Court,10450.56, 06-Jun-2017
126,Revenue,CAHD,Bed purchasing - S28A Under 65 - South,Fees & Charges Income - General,5Th Floor Harlech Court,537.39, 06-Jun-2017
127,Revenue,CAHD,Bed Purchasing - South,Permanent Residential,5Th Floor Harlech Court,16440.18, 06-Jun-2017
128,Revenue,CAHD,Bed Purchasing - South,Permanent Residential,5Th Floor Harlech Court,10960.12, 06-Jun-2017
129,Revenue,CAHD,Bed Purchasing - North,Permanent Nursing,ABI Development Limited,11387.76, 06-Jun-2017
130,Revenue,CAHD,Bed Purchasing - North,Permanent Nursing,ABI Development Limited,7591.84, 06-Jun-2017
131,Revenue,CAHD,Bed and Breakfast,Storage & Removal,Ablemove-Wottons,492.00, 07-Jun-2017
132,Revenue,CAHD,Bed and Breakfast,Storage & Removal,Ablemove-Wottons,524.00, 05-Jun-2017
133,Revenue,CAHD,Home Care - Elderly - South,Day Care / Social Activities,About Me Care and Support Limited,1354.70, 23-Jun-2017
134,Revenue,CAHD,Home Care - Elderly - North,Day Care / Social Activities,About Me Care and Support Limited,524.40, 23-Jun-2017
135,Revenue,CAHD,Home Care - Elderly - South,Day Care / Social Activities,About Me Care and Support Limited,830.30, 23-Jun-2017
136,Revenue,CAHD,Training - Adult Services,Training Expenses,Acorn Health & Safety Limited,465.00, 14-Jun-2017
137,Revenue,CAHD,Training - Adult Services,Training Expenses,Acorn Health & Safety Limited,465.00, 21-Jun-2017
138,Revenue,CAHD,Training - Adult Services,Training Expenses,Acorn Health & Safety Limited,465.00, 28-Jun-2017
139,Revenue,CAHD,Older People's Commissioned Se,Grants to Voluntary Bodies,Action for Blind People,24975.00, 30-Jun-2017
140,Revenue,CAHD,Home Care - Elderly - South,Supported Living,Action on Hearing Loss,750.40, 28-Jun-2017
141,Revenue,CAHD,Home Care - Elderly - South,Supported Living,Action on Hearing Loss,750.40, 28-Jun-2017
142,Revenue,CAHD,Home Care - Elderly - South,Supported Living,Action on Hearing Loss,857.60, 28-Jun-2017
143,Revenue,CAHD,Home Care - Elderly - South,Supported Living,Action on Hearing Loss,938.00, 28-Jun-2017
144,Revenue,CAHD,Home Care - Elderly - South,Supported Living,Action on Hearing Loss,656.60, 28-Jun-2017
145,Revenue,CAHD,Home Care - Elderly - South,Supported Living,Action on Hearing Loss,589.60, 28-Jun-2017
146,Revenue,CAHD,Home Care - Elderly - South,Supported Living,Action on Hearing Loss,696.80, 28-Jun-2017
147,Revenue,CAHD,Home Care - Elderly - South,Supported Living,Action on Hearing Loss,562.80, 28-Jun-2017
148,Revenue,CAHD,Home Care - Elderly - South,Supported Living,Action on Hearing Loss,683.40, 28-Jun-2017
149,Revenue,CAHD,Home Care - Elderly - South,Supported Living,Action on Hearing Loss,670.00, 28-Jun-2017
150,Revenue,CAHD,Home Care - Elderly - South,Supported Living,Action on Hearing Loss,656.60, 28-Jun-2017
151,Revenue,CAHD,Home Care - Elderly - South,Supported Living,Action on Hearing Loss,670.00, 28-Jun-2017
152,Revenue,CAHD,Home Care - Elderly - South,Other Small Contracts,Agincare UK Limited,1643.72, 16-Jun-2017
153,Revenue,CAHD,Home Care - Elderly - North,Other Small Contracts,Agincare UK Limited,723.76, 16-Jun-2017
154,Revenue,CAHD,Home Care - Elderly - South,Other Small Contracts,Agincare UK Limited,2097.16, 20-Jun-2017
155,Revenue,CAHD,Home Care - Elderly - North,Other Small Contracts,Agincare UK Limited,767.36, 20-Jun-2017
156,Revenue,CAHD,Home Care - Elderly - South,Other Small Contracts,Agincare UK Limited,2206.16, 21-Jun-2017
157,Revenue,CAHD,Home Care - Elderly - North,Other Small Contracts,Agincare UK Limited,449.08, 21-Jun-2017
158,Revenue,CAHD,Home Care - Elderly - South,Other Small Contracts,Agincare UK Limited,2166.92, 27-Jun-2017
159,Revenue,CAHD,Home Care - Elderly - North,Other Small Contracts,Agincare UK Limited,213.64, 27-Jun-2017
160,Revenue,CAHD,Home Care - Elderly - South,Other Small Contracts,Agincare UK Limited,2166.92, 30-Jun-2017
161,Revenue,CAHD,Home Care - Elderly - North,Other Small Contracts,Agincare UK Limited,715.04, 30-Jun-2017
162,Revenue,CAHD,Extra Care Housing,Private & Voluntary Home Care,Agincare UK Limited,20536.00, 30-Jun-2017
163,Revenue,CAHD,Extra Care Housing,Private & Voluntary Home Care,Agincare UK Limited,10072.00, 30-Jun-2017
164,Revenue,CAHD,Prison Assessments & Costs,Other Supplies & Services,Agincare UK Limited,9214.69, 15-Jun-2017
165,Revenue,CAHD,Home Care - Elderly - North,Day Care / Social Activities,Agincare UK Nutfield,200.56, 19-Jun-2017
166,Revenue,CAHD,Home Care - Elderly - North,Other Small Contracts,Agincare UK Nutfield,2297.72, 19-Jun-2017
167,Revenue,CAHD,Home care - Elderly MH - South,Other Small Contracts,Agincare UK Nutfield,69.76, 19-Jun-2017
168,Revenue,CAHD,Home Care - Elderly - North,Day Care / Social Activities,Agincare UK Nutfield,200.56, 20-Jun-2017
169,Revenue,CAHD,Home Care - Elderly - North,Other Small Contracts,Agincare UK Nutfield,1874.80, 20-Jun-2017
170,Revenue,CAHD,Home care - Elderly MH - South,Other Small Contracts,Agincare UK Nutfield,39.24, 20-Jun-2017
171,Revenue,CAHD,Home Care - Elderly - North,Day Care / Social Activities,Agincare UK Nutfield,200.56, 21-Jun-2017
172,Revenue,CAHD,Home Care - Elderly - North,Other Small Contracts,Agincare UK Nutfield,1813.76, 21-Jun-2017
173,Revenue,CAHD,Home care - Elderly MH - South,Other Small Contracts,Agincare UK Nutfield,61.04, 21-Jun-2017
174,Revenue,CAHD,Home Care - Elderly - North,Day Care / Social Activities,Agincare UK Nutfield,200.56, 27-Jun-2017
175,Revenue,CAHD,Home Care - Elderly - North,Other Small Contracts,Agincare UK Nutfield,1813.76, 27-Jun-2017
176,Revenue,CAHD,Home care - Elderly MH - South,Other Small Contracts,Agincare UK Nutfield,65.40, 27-Jun-2017
177,Revenue,CAHD,Home Care - Elderly - North,Day Care / Social Activities,Agincare UK Nutfield,191.84, 30-Jun-2017
178,Revenue,CAHD,Home Care - Elderly - North,Other Small Contracts,Agincare UK Nutfield,1591.40, 30-Jun-2017
179,Revenue,CAHD,Home care - Elderly MH - South,Other Small Contracts,Agincare UK Nutfield,39.24, 30-Jun-2017
180,Revenue,CAHD,Home Care - Elderly - South,Supported Living,Alexandra Homes (Bristol) Limited,809.60, 07-Jun-2017
181,Revenue,CAHD,Home Care - Elderly - South,Other Small Contracts,AliMo Care Ltd,1447.04, 02-Jun-2017
182,Revenue,CAHD,Home Care - Elderly - South,Other Small Contracts,AliMo Care Ltd,1563.52, 02-Jun-2017
183,Revenue,CAHD,Home Care - Elderly - South,Other Small Contracts,AliMo Care Ltd,1644.16, 09-Jun-2017
184,Revenue,CAHD,Home Care - Elderly - South,Other Small Contracts,AliMo Care Ltd,1576.96, 16-Jun-2017
185,Revenue,CAHD,Home Care - Elderly - South,Other Small Contracts,AliMo Care Ltd,1576.96, 29-Jun-2017
186,Revenue,CAHD,Home Care - Elderly - South,Other Small Contracts,AliMo Care Ltd,1630.72, 29-Jun-2017
187,Revenue,CAHD,Bed Purchasing - South,Permanent Nursing,Ambleside Nusing Home,2126.16, 06-Jun-2017
188,Revenue,CAHD,Bed Purchasing - Southmead Hospital,Permanent Nursing,Amerind Grove Nursing Home,2570.76, 06-Jun-2017
189,Revenue,CAHD,Bed Purchasing - Southmead Hospital,Permanent Nursing,Amerind Grove Nursing Home,2263.12, 06-Jun-2017
190,Revenue,CAHD,Supporting People Programme,Grants to Voluntary Bodies,Anchor Housing,812.50, 01-Jun-2017
191,Revenue,CAHD,Supporting People Programme,Grants to Voluntary Bodies,Anchor Housing,812.50, 30-Jun-2017
192,Revenue,CAHD,Direct Payments - Phys Dis - North,Grants to Voluntary Bodies,Aquarium Card Management Solutions Ltd,2208.50, 30-Jun-2017
193,Revenue,CAHD,Bed Purchasing - North,Permanent Residential,Ark Care Homes Ltd,11036.72, 06-Jun-2017
194,Revenue,CAHD,Bed Purchasing - South,Permanent Nursing,Ash Grove House,2836.40, 06-Jun-2017
195,Revenue,CAHD,Bed Purchasing - South,Permanent Residential,Ash View House,6260.36, 06-Jun-2017
196,Revenue,CAHD,S117 Placements PCT,Permanent Residential,Ash View House,7241.60, 06-Jun-2017
197,Revenue,CAHD,18-25 Year Olds,Permanent Residential,Ash View House,6803.84, 06-Jun-2017
198,Revenue,CAHD,Section 117 Placements MH Younger,Permanent Residential,Ash View House,4719.08, 06-Jun-2017
199,Revenue,CAHD,Jointly Funded H&SC Packages,Permanent Residential,Ash View House,2022.48, 06-Jun-2017
200,Revenue,CAHD,Bed purchasing - Elderly S117 - South,Permanent Residential,Ash View House,6414.04, 06-Jun-2017
201,Revenue,CAHD,Bed Purchasing - North,Permanent Residential,Aspects 2 Limited,6930.72, 06-Jun-2017
202,Revenue,CAHD,Supporting People Programme,Grants to Voluntary Bodies,Aspects and Milestones Trust,3298.58, 01-Jun-2017
203,Revenue,CAHD,Supporting People Programme,Grants to Voluntary Bodies,Aspects and Milestones Trust,1653.75, 01-Jun-2017
204,Revenue,CAHD,Supporting People Programme,Grants to Voluntary Bodies,Aspects and Milestones Trust,2014.33, 01-Jun-2017
205,Revenue,CAHD,Supporting People Programme,Grants to Voluntary Bodies,Aspects and Milestones Trust,650.00, 01-Jun-2017
206,Revenue,CAHD,Supporting People Programme,Grants to Voluntary Bodies,Aspects and Milestones Trust,650.00, 01-Jun-2017
207,Revenue,CAHD,Supporting People Programme,Grants to Voluntary Bodies,Aspects and Milestones Trust,3298.58, 30-Jun-2017
208,Revenue,CAHD,Supporting People Programme,Grants to Voluntary Bodies,Aspects and Milestones Trust,1653.75, 30-Jun-2017
209,Revenue,CAHD,Supporting People Programme,Grants to Voluntary Bodies,Aspects and Milestones Trust,2014.33, 30-Jun-2017
210,Revenue,CAHD,Supporting People Programme,Grants to Voluntary Bodies,Aspects and Milestones Trust,650.00, 30-Jun-2017
211,Revenue,CAHD,Supporting People Programme,Grants to Voluntary Bodies,Aspects and Milestones Trust,650.00, 30-Jun-2017
212,Revenue,CAHD,Shared Lives,Other Supplies & Services,Ategi Limited,52705.75, 30-Jun-2017
213,Revenue,CAHD,Bed Purchasing - South,Permanent Residential,Autism Specialised Care Homes,6235.88, 06-Jun-2017
214,Revenue,CAHD,Younger Adult Mental Health,Health Services (Third Party Payments),Avon & Wiltshire Mental Health,1666.67, 23-Jun-2017
215,Revenue,CAHD,Purchase of RAC places,Other L.A.'s - General,Bath & North East Somerset Council,1417.60, 01-Jun-2017
216,Revenue,CAHD,Pathway 3 - (Complex Beds),Permanent Nursing,Beaufort Care Ltd,5271.00, 12-Jun-2017
217,Revenue,CAHD,South Glos Users in South Glos Homes,Permanent Nursing,Beaufort Grange Care Home,620.20, 06-Jun-2017
218,Revenue,CAHD,South Glos Users in South Glos Homes,Permanent Nursing,Beaufort Grange Care Home,620.20, 06-Jun-2017
219,Revenue,CAHD,South Glos Users in South Glos Homes,Permanent Nursing,Beaufort Grange Care Home,620.20, 06-Jun-2017
220,Revenue,CAHD,Bed Purchasing - South,Permanent Nursing,Beaufort Grange Care Home,9541.71, 06-Jun-2017
221,Revenue,CAHD,Bed Purchasing - South,Permanent Nursing,Beaufort Grange Care Home,4436.72, 06-Jun-2017
222,Revenue,CAHD,Bed Purchasing - South,Permanent Nursing,Beaufort Grange Care Home,6655.08, 06-Jun-2017
223,Revenue,CAHD,Bed Purchasing - South,Fees & Charges Income - General,Beaufort Grange Care Home,784.20, 06-Jun-2017
224,Revenue,CAHD,Bed Purchasing - South,Fees & Charges Income - General,Beaufort Grange Care Home,2512.50, 06-Jun-2017
225,Revenue,CAHD,South Glos Users in South Glos Homes,Permanent Nursing,Beaufort Grange Care Home,1339.29, 06-Jun-2017
226,Revenue,CAHD,South Glos Users in South Glos Homes,Permanent Nursing,Beaufort Grange Care Home,1129.65, 06-Jun-2017
227,Revenue,CAHD,South Glos Users in South Glos Homes,Permanent Nursing,Beaufort Grange Care Home,620.20, 06-Jun-2017
228,Revenue,CAHD,Bed Purchasing - North,Permanent Nursing,Beaufort Grange Care Home,4229.28, 06-Jun-2017
229,Revenue,CAHD,South Glos Users in South Glos Homes,Permanent Nursing,Beaufort Grange Care Home,620.20, 06-Jun-2017
230,Revenue,CAHD,South Glos Users in South Glos Homes,Permanent Nursing,Beaufort Grange Care Home,620.20, 06-Jun-2017
231,Revenue,CAHD,South Glos Users in South Glos Homes,Permanent Nursing,Beaufort Grange Care Home,620.20, 06-Jun-2017
232,Revenue,CAHD,South Glos Users in South Glos Homes,Permanent Nursing,Beaufort Grange Care Home,620.20, 06-Jun-2017
233,Revenue,CAHD,South Glos Users in South Glos Homes,Permanent Nursing,Beaufort Grange Care Home,620.20, 06-Jun-2017
234,Revenue,CAHD,South Glos Users in South Glos Homes,Permanent Nursing,Beaufort Grange Care Home,620.20, 06-Jun-2017
235,Revenue,CAHD,South Glos Users in South Glos Homes,Permanent Nursing,Beaufort Grange Care Home,620.20, 06-Jun-2017
236,Revenue,CAHD,South Glos Users in South Glos Homes,Permanent Nursing,Beaufort Grange Care Home,620.20, 06-Jun-2017
237,Revenue,CAHD,South Glos Users in South Glos Homes,Permanent Nursing,Beaufort Grange Care Home,620.20, 06-Jun-2017
238,Revenue,CAHD,South Glos Users in South Glos Homes,Permanent Nursing,Beaufort Grange Care Home,620.20, 06-Jun-2017
239,Revenue,CAHD,South Glos Users in South Glos Homes,Permanent Nursing,Beaufort Grange Care Home,620.20, 06-Jun-2017
240,Revenue,CAHD,Bed Purchasing - Elderly S117- North,Permanent Nursing,Beaufort Grange Care Home,4468.56, 06-Jun-2017
241,Revenue,CAHD,South Glos Users in South Glos Homes,Permanent Nursing,Beaufort Grange Care Home,620.20, 06-Jun-2017
242,Revenue,CAHD,Bed Purchasing - Elderly S117- North,Permanent Nursing,Beaufort Grange Care Home,4673.92, 06-Jun-2017
243,Revenue,CAHD,South Glos Users in South Glos Homes,Permanent Nursing,Beaufort Grange Care Home,620.20, 06-Jun-2017
244,Revenue,CAHD,South Glos Users in South Glos Homes,Permanent Nursing,Beaufort Grange Care Home,620.20, 06-Jun-2017
245,Revenue,CAHD,South Glos Users in South Glos Homes,Permanent Nursing,Beaufort Grange Care Home,620.20, 06-Jun-2017
246,Revenue,CAHD,South Glos Users in South Glos Homes,Permanent Nursing,Beaufort Grange Care Home,620.20, 06-Jun-2017
247,Revenue,CAHD,South Glos Users in South Glos Homes,Permanent Nursing,Beaufort Grange Care Home,620.20, 06-Jun-2017
248,Revenue,CAHD,South Glos Users in South Glos Homes,Permanent Nursing,Beaufort Grange Care Home,620.20, 06-Jun-2017
249,Revenue,CAHD,South Glos Users in South Glos Homes,Permanent Nursing,Beaufort Grange Care Home,620.20, 06-Jun-2017
250,Revenue,CAHD,Bed Purchasing - North,Permanent Residential,Beaufort House,2443.36, 06-Jun-2017
251,Revenue,CAHD,Bed Purchasing - North,Permanent Residential,Beaufort House,2464.28, 06-Jun-2017
252,Revenue,CAHD,Bed Purchasing - South,Permanent Residential,Beaufort House,2431.20, 06-Jun-2017
253,Revenue,CAHD,Bed Purchasing - South,Permanent Residential,Beaufort House,2339.40, 06-Jun-2017
254,Revenue,CAHD,Bed Purchasing - Southmead Hospital,Permanent Residential,Beaufort House,2464.28, 06-Jun-2017
255,Revenue,CAHD,Bed Purchasing - North,Permanent Residential,Beaufort House,2407.80, 06-Jun-2017
256,Revenue,CAHD,Bed Purchasing - North,Permanent Residential,Beaufort House,2407.80, 06-Jun-2017
257,Revenue,CAHD,Bed Purchasing - North,Permanent Residential,Beaufort House,2587.48, 06-Jun-2017
258,Revenue,CAHD,Bed Purchasing - Southmead Hospital,Permanent Residential,Beaufort House,2464.28, 06-Jun-2017
259,Revenue,CAHD,Bed Purchasing - Southmead Hospital,Permanent Residential,Beaufort House,3950.70, 06-Jun-2017
260,Revenue,CAHD,Bed Purchasing - Southmead Hospital,Permanent Residential,Beaufort House,2633.80, 06-Jun-2017
261,Revenue,CAHD,Bed Purchasing - Southmead Hospital,Permanent Residential,Beaufort House,1021.43, 06-Jun-2017
262,Revenue,CAHD,Bed Purchasing - Southmead Hospital,Fees & Charges Income - General,Beaufort House,787.49, 06-Jun-2017
263,Revenue,CAHD,Bed Purchasing - South,Permanent Residential,Bedrock Lodge,2184.87, 06-Jun-2017
264,Revenue,CAHD,South Glos Users in South Glos Homes,Permanent Nursing,Beech House,620.20, 06-Jun-2017
265,Revenue,CAHD,Bed Purchasing - South,Permanent Residential,Beech House,2836.40, 06-Jun-2017
266,Revenue,CAHD,South Glos Users in South Glos Homes,Permanent Nursing,Beech House,620.20, 06-Jun-2017
267,Revenue,CAHD,Bed Purchasing - North,Permanent Nursing,Beech House,2709.76, 06-Jun-2017
268,Revenue,CAHD,South Glos Users in South Glos Homes,Permanent Nursing,Beech House,620.20, 06-Jun-2017
269,Revenue,CAHD,South Glos Users in South Glos Homes,Permanent Nursing,Beech House,620.20, 06-Jun-2017
270,Revenue,CAHD,South Glos Users in South Glos Homes,Permanent Nursing,Beech House,620.20, 06-Jun-2017
271,Revenue,CAHD,Bed Purchasing - North,Permanent Nursing,Beech House,4546.56, 06-Jun-2017
272,Revenue,CAHD,Bed Purchasing - North,Permanent Nursing,Beech House,3031.04, 06-Jun-2017
273,Revenue,CAHD,South Glos Users in South Glos Homes,Permanent Nursing,Beech House,620.20, 06-Jun-2017
274,Revenue,CAHD,Bed Purchasing - North,Fees & Charges Income - General,Beech House,1222.39, 06-Jun-2017
275,Revenue,CAHD,Bed Purchasing - North,Permanent Residential,Beech House,2836.40, 06-Jun-2017
276,Revenue,CAHD,South Glos Users in South Glos Homes,Permanent Nursing,Beech House,620.20, 06-Jun-2017
277,Revenue,CAHD,South Glos Users in South Glos Homes,Permanent Nursing,Beech House,620.20, 06-Jun-2017
278,Revenue,CAHD,South Glos Users in South Glos Homes,Permanent Nursing,Beech House,620.20, 06-Jun-2017
279,Revenue,CAHD,South Glos Users in South Glos Homes,Permanent Nursing,Beech House,620.20, 06-Jun-2017
280,Revenue,CAHD,South Glos Users in South Glos Homes,Permanent Nursing,Beech House,620.20, 06-Jun-2017
281,Revenue,CAHD,South Glos Users in South Glos Homes,Permanent Nursing,Beech House,620.20, 06-Jun-2017
282,Revenue,CAHD,South Glos Users in South Glos Homes,Permanent Nursing,Beech House,620.20, 06-Jun-2017
283,Revenue,CAHD,South Glos Users in South Glos Homes,Permanent Nursing,Beech House,620.20, 06-Jun-2017
284,Revenue,CAHD,Bed Purchasing - North,Permanent Residential,Beech House,3444.20, 06-Jun-2017
285,Revenue,CAHD,South Glos Users in South Glos Homes,Permanent Nursing,Beech House,620.20, 06-Jun-2017
286,Revenue,CAHD,South Glos Users in South Glos Homes,Permanent Nursing,Beech House,620.20, 06-Jun-2017
287,Revenue,CAHD,Bed Purchasing - North,Permanent Nursing,Beech House,3169.68, 06-Jun-2017
288,Revenue,CAHD,South Glos Users in South Glos Homes,Permanent Nursing,Beech House,620.20, 06-Jun-2017
289,Revenue,CAHD,South Glos Users in South Glos Homes,Permanent Nursing,Beech House,1205.36, 06-Jun-2017
290,Revenue,CAHD,South Glos Users in South Glos Homes,Permanent Nursing,Beech House,620.20, 06-Jun-2017
291,Revenue,CAHD,South Glos Users in South Glos Homes,Permanent Nursing,Beech House,620.20, 06-Jun-2017
292,Revenue,CAHD,South Glos Users in South Glos Homes,Permanent Nursing,Beech House,620.20, 06-Jun-2017
293,Revenue,CAHD,South Glos Users in South Glos Homes,Permanent Nursing,Beech House,620.20, 06-Jun-2017
294,Revenue,CAHD,South Glos Users in South Glos Homes,Permanent Nursing,Beech House,620.20, 06-Jun-2017
295,Revenue,CAHD,South Glos Users in South Glos Homes,Permanent Nursing,Beech House,620.20, 06-Jun-2017
296,Revenue,CAHD,South Glos Users in South Glos Homes,Permanent Nursing,Beech House,620.20, 06-Jun-2017
297,Revenue,CAHD,South Glos Users in South Glos Homes,Permanent Nursing,Beech House,1129.65, 06-Jun-2017
298,Revenue,CAHD,South Glos Users in South Glos Homes,Permanent Nursing,Beech House,982.14, 06-Jun-2017
299,Revenue,CAHD,South Glos Users in South Glos Homes,Permanent Nursing,Beech House,620.20, 06-Jun-2017
300,Revenue,CAHD,Support,Support,Individual,1488.00, 12-Jun-2017
301,Revenue,CAHD,Minor Adaptations Service,Prop.Serv. General Repairs,Bib & Brace Limited,437.00, 22-Jun-2017
302,Revenue,CAHD,Home Care - Elderly - North,Other Small Contracts,Bibby Factors Bristol Limited,7375.85, 02-Jun-2017
303,Revenue,CAHD,Home Care - Elderly - North,Other Small Contracts,Bibby Factors Bristol Limited,7331.91, 22-Jun-2017
304,Revenue,CAHD,Home Care - Elderly - North,Other Small Contracts,Bibby Factors Bristol Limited,7949.86, 22-Jun-2017
305,Revenue,CAHD,Home Care - Elderly - North,Other Small Contracts,Bibby Factors Bristol Limited,8169.16, 22-Jun-2017
306,Revenue,CAHD,Home Care - Elderly - North,Other Small Contracts,Bibby Factors Bristol Limited,7858.18, 23-Jun-2017
307,Revenue,CAHD,Bed Purchasing - North,Permanent Nursing,Blossom Field,3523.92, 06-Jun-2017
308,Revenue,CAHD,South Glos Users in South Glos Homes,Permanent Nursing,Blossom Field,620.20, 06-Jun-2017
309,Revenue,CAHD,Bed Purchasing - Elderly S117- North,Fees & Charges Income - General,Blossom Field,933.34, 06-Jun-2017
310,Revenue,CAHD,Bed Purchasing - Elderly S117- North,Fees & Charges Income - General,Blossom Field,2157.24, 06-Jun-2017
311,Revenue,CAHD,Bed Purchasing - Elderly S117- North,Permanent Nursing,Blossom Field,3539.76, 06-Jun-2017
312,Revenue,CAHD,South Glos Users in South Glos Homes,Permanent Nursing,Blossom Field,620.20, 06-Jun-2017
313,Revenue,CAHD,South Glos Users in South Glos Homes,Permanent Nursing,Blossom Field,620.20, 06-Jun-2017
314,Revenue,CAHD,Bed Purchasing - Southmead Hospital,Permanent Nursing,Blossom Field,4862.40, 06-Jun-2017
315,Revenue,CAHD,South Glos Users in South Glos Homes,Permanent Nursing,Blossom Field,620.20, 06-Jun-2017
316,Revenue,CAHD,South Glos Users in South Glos Homes,Permanent Nursing,Blossom Field,620.20, 06-Jun-2017
317,Revenue,CAHD,Bed Purchasing - North,Permanent Nursing,Blossom Field,3811.40, 06-Jun-2017
318,Revenue,CAHD,Bed Purchasing - North,Fees & Charges Income - General,Blossom Field,1905.70, 06-Jun-2017
319,Revenue,CAHD,South Glos Users in South Glos Homes,Permanent Nursing,Blossom Field,620.20, 06-Jun-2017
320,Revenue,CAHD,Bed Purchasing - North,Permanent Nursing,Blossom Field,5717.10, 06-Jun-2017
321,Revenue,CAHD,Bed Purchasing - North,Fees & Charges Income - General,Blossom Field,1954.18, 06-Jun-2017
322,Revenue,CAHD,South Glos Users in South Glos Homes,Permanent Nursing,Blossom Field,620.20, 06-Jun-2017
323,Revenue,CAHD,South Glos Users in South Glos Homes,Permanent Nursing,Blossom Field,620.20, 06-Jun-2017
324,Revenue,CAHD,South Glos Users in South Glos Homes,Permanent Nursing,Blossom Field,620.20, 06-Jun-2017
325,Revenue,CAHD,South Glos Users in South Glos Homes,Permanent Nursing,Blossom Field,620.20, 06-Jun-2017
326,Revenue,CAHD,South Glos Users in South Glos Homes,Permanent Nursing,Blossom Field,620.20, 06-Jun-2017
327,Revenue,CAHD,South Glos Users in South Glos Homes,Permanent Nursing,Blossom Field,620.20, 06-Jun-2017
328,Revenue,CAHD,South Glos Users in South Glos Homes,Permanent Nursing,Blossom Field,620.20, 06-Jun-2017
329,Revenue,CAHD,South Glos Users in South Glos Homes,Permanent Nursing,Blossom Field,620.20, 06-Jun-2017
330,Revenue,CAHD,Bed purchasing - Elderly S117 - South,Permanent Nursing,Blossom Field,4468.56, 06-Jun-2017
331,Revenue,CAHD,South Glos Users in South Glos Homes,Permanent Nursing,Blossom Field,620.20, 06-Jun-2017
332,Revenue,CAHD,South Glos Users in South Glos Homes,Permanent Nursing,Blossom Field,620.20, 06-Jun-2017
333,Revenue,CAHD,Bed Purchasing - South,Permanent Nursing,Blossom Field,4229.28, 06-Jun-2017
334,Revenue,CAHD,South Glos Users in South Glos Homes,Permanent Nursing,Blossom Field,620.20, 06-Jun-2017
335,Revenue,CAHD,South Glos Users in South Glos Homes,Permanent Nursing,Blossom Field,620.20, 06-Jun-2017
336,Revenue,CAHD,Bed Purchasing - Southmead Hospital,Permanent Nursing,Blossom Field,3824.08, 06-Jun-2017
337,Revenue,CAHD,South Glos Users in South Glos Homes,Permanent Nursing,Blossom Field,620.20, 06-Jun-2017
338,Revenue,CAHD,South Glos Users in South Glos Homes,Permanent Nursing,Blossom Field,620.20, 06-Jun-2017
339,Revenue,CAHD,South Glos Users in South Glos Homes,Permanent Nursing,Blossom Field,620.20, 06-Jun-2017
340,Revenue,CAHD,South Glos Users in South Glos Homes,Permanent Nursing,Blossom Field,620.20, 06-Jun-2017
341,Revenue,CAHD,South Glos Users in South Glos Homes,Permanent Nursing,Blossom Field,620.20, 06-Jun-2017
342,Revenue,CAHD,South Glos Users in South Glos Homes,Permanent Nursing,Blossom Field,620.20, 06-Jun-2017
343,Revenue,CAHD,South Glos Users in South Glos Homes,Permanent Nursing,Blossom Field,620.20, 06-Jun-2017
344,Revenue,CAHD,South Glos Users in South Glos Homes,Permanent Nursing,Blossom Field,620.20, 06-Jun-2017
345,Revenue,CAHD,South Glos Users in South Glos Homes,Permanent Nursing,Blossom Field,620.20, 06-Jun-2017
346,Revenue,CAHD,Bed Purchasing - North,Permanent Nursing,Blossom Field,3824.08, 06-Jun-2017
347,Revenue,CAHD,Bed Purchasing - North,Permanent Nursing,Blossom Field,3483.56, 06-Jun-2017
348,Revenue,CAHD,South Glos Users in South Glos Homes,Permanent Nursing,Blossom Field,620.20, 06-Jun-2017
349,Revenue,CAHD,South Glos Users in South Glos Homes,Permanent Nursing,Blossom Field,620.20, 06-Jun-2017
350,Revenue,CAHD,South Glos Users in South Glos Homes,Permanent Nursing,Blossom Fields,620.20, 22-Jun-2017
351,Revenue,CAHD,South Glos Users in South Glos Homes,Permanent Nursing,Blossom Fields,620.20, 22-Jun-2017
352,Revenue,CAHD,South Glos Users in South Glos Homes,Permanent Nursing,Blossom Fields,620.20, 22-Jun-2017
353,Revenue,CAHD,Bed Purchasing - North,Permanent Nursing,Blossom Fields,1880.20, 22-Jun-2017
354,Revenue,CAHD,Bed Purchasing - Southmead Hospital,Permanent Nursing,Blossom Fields,2150.20, 22-Jun-2017
355,Revenue,CAHD,Bed Purchasing - North,Permanent Nursing,Blossom Fields,2688.00, 22-Jun-2017
356,Revenue,CAHD,Home Care - Elderly - South,Other Small Contracts,Bluebird Care (South Gloucestershire),603.72, 06-Jun-2017
357,Revenue,CAHD,Home Care - Elderly - North,Other Small Contracts,Bluebird Care (South Gloucestershire),407.04, 06-Jun-2017
358,Revenue,CAHD,Home Care - Elderly - South,Other Small Contracts,Bluebird Care (South Gloucestershire),583.08, 19-Jun-2017
359,Revenue,CAHD,Home Care - Elderly - North,Other Small Contracts,Bluebird Care (South Gloucestershire),391.56, 19-Jun-2017
360,Revenue,CAHD,Home Care - Elderly - South,Other Small Contracts,Bluebird Care (South Gloucestershire),433.44, 19-Jun-2017
361,Revenue,CAHD,Home Care - Elderly - North,Other Small Contracts,Bluebird Care (South Gloucestershire),386.40, 19-Jun-2017
362,Revenue,CAHD,Home Care - Elderly - South,Other Small Contracts,Bluebird Care (South Gloucestershire),402.48, 21-Jun-2017
363,Revenue,CAHD,Home Care - Elderly - North,Other Small Contracts,Bluebird Care (South Gloucestershire),394.53, 21-Jun-2017
364,Revenue,CAHD,Home Care - Elderly - South,Other Small Contracts,Bluebird Care (South Gloucestershire),361.20, 27-Jun-2017
365,Revenue,CAHD,Home Care - Elderly - North,Other Small Contracts,Bluebird Care (South Gloucestershire),407.04, 27-Jun-2017
366,Revenue,CAHD,Home Care - Elderly - South,Other Small Contracts,Bluebird Care (South Gloucestershire),288.96, 30-Jun-2017
367,Revenue,CAHD,Home Care - Elderly - North,Other Small Contracts,Bluebird Care (South Gloucestershire),396.72, 30-Jun-2017
368,Revenue,CAHD,Training - Adult Services,Training Expenses,Bob Dawson,1525.00, 08-Jun-2017
369,Revenue,CAHD,Bed purchasing - S28A Under 65 - South,Permanent Residential,Bradbury House,4854.16, 06-Jun-2017
370,Revenue,CAHD,Bed Purchasing - South,Permanent Residential,Bradbury House,8375.20, 06-Jun-2017
371,Revenue,CAHD,Bed purchasing - S28A Under 65 - South,Permanent Residential,Bradbury House,7152.84, 06-Jun-2017
372,Revenue,CAHD,18-25 Year Olds,Permanent Residential,Bradbury House,9504.08, 06-Jun-2017
373,Revenue,CAHD,Bed Purchasing - South,Respite Planned - Residential,Bradbury House,1625.00, 06-Jun-2017
374,Revenue,CAHD,Bed purchasing - Elderly S117 - South,Permanent Residential,Bradbury House,8572.56, 06-Jun-2017
375,Revenue,CAHD,Jointly Funded H&SC Packages,Permanent Residential,Bradbury House,3184.96, 06-Jun-2017
376,Revenue,CAHD,Bed Purchasing - North,Permanent Residential,Bradbury House,5952.84, 06-Jun-2017
377,Revenue,CAHD,Jointly Funded H&SC Packages,Permanent Residential,Bradbury House,8223.16, 06-Jun-2017
378,Revenue,CAHD,Home Care - Elderly - North,Other Small Contracts,Bramble Home Care Limited,1858.50, 09-Jun-2017
379,Revenue,CAHD,Home Care - Elderly - North,Other Small Contracts,Bramble Home Care Limited,795.60, 27-Jun-2017
380,Revenue,CAHD,Home Care - Elderly - North,Other Small Contracts,Bramble Home Care Limited,848.64, 09-Jun-2017
381,Revenue,CAHD,Home Care - Elderly - North,Other Small Contracts,Bramble Home Care Limited,1112.64,() 15-Jun-2017
382,Revenue,CAHD,Home Care - Elderly - North,Other Small Contracts,Bramble Home Care Limited,501.76, 02-Jun-2017
383,Revenue,CAHD,Home Care - Elderly - North,Other Small Contracts,Bramble Home Care Limited,659.82, 07-Jun-2017
384,Revenue,CAHD,Home Care - Elderly - North,Other Small Contracts,Bramble Home Care Limited,874.86, 15-Jun-2017
385,Revenue,CAHD,South Glos Users in South Glos Homes,Permanent Nursing,Brandon Trust,620.20, 06-Jun-2017
386,Revenue,CAHD,South Glos Users in South Glos Homes,Permanent Nursing,Brandon Trust,620.20,() 06-Jun-2017
387,Revenue,CAHD,South Glos Users in South Glos Homes,Permanent Nursing,Brandon Trust,620.20, 06-Jun-2017
388,Revenue,CAHD,Bed Purchasing - South,Permanent Nursing,Brandon Trust,5609.76, 06-Jun-2017
389,Revenue,CAHD,South Glos Users in South Glos Homes,Permanent Nursing,Brandon Trust,620.20, 06-Jun-2017
390,Revenue,CAHD,Bed Purchasing - South,Permanent Residential,Brandon Trust,10988.80, 06-Jun-2017
391,Revenue,CAHD,Bed Purchasing - South,Permanent Nursing,Brandon Trust,5559.08, 06-Jun-2017
392,Revenue,CAHD,South Glos Users in South Glos Homes,Permanent Nursing,Brandon Trust,620.20,() 06-Jun-2017
393,Revenue,CAHD,Bed purchasing - S28A Under 65 - South,Permanent Nursing,Brandon Trust,5893.56, 06-Jun-2017
394,Revenue,CAHD,South Glos Users in South Glos Homes,Permanent Nursing,Brandon Trust,620.20,() 06-Jun-2017
395,Revenue,CAHD,Bed purchasing - S28A Under 65 - South,Permanent Residential,Brandon Trust,5789.24, 06-Jun-2017
396,Revenue,CAHD,Bed Purchasing - LD S28A- Over 65- South,Permanent Nursing,Brandon Trust,5893.56,() 06-Jun-2017
397,Revenue,CAHD,South Glos Users in South Glos Homes,Permanent Nursing,Brandon Trust,620.20,() 06-Jun-2017
398,Revenue,CAHD,Bed Purchasing - LD S28A- Over 65- South,Permanent Nursing,Brandon Trust,5559.08, 06-Jun-2017
399,Revenue,CAHD,South Glos Users in South Glos Homes,Permanent Nursing,Brandon Trust,620.20, 06-Jun-2017
400,Revenue,CAHD,Bed Purchasing - South,Permanent Residential,Brandon Trust,3756.88, 06-Jun-2017
401,Revenue,CAHD,Bed purchasing - S28A Under 65 - South,Permanent Residential,Brandon Trust,5670.48, 06-Jun-2017
402,Revenue,CAHD,Bed purchasing - S28A Under 65 - South,Permanent Residential,Brandon Trust,5789.04, 06-Jun-2017
403,Revenue,CAHD,Bed Purchasing - North,Permanent Nursing,Brandon Trust,5553.32,() 06-Jun-2017
404,Revenue,CAHD,South Glos Users in South Glos Homes,Permanent Nursing,Brandon Trust,620.20,() 06-Jun-2017
405,Revenue,CAHD,Bed purchasing - S28A Under 65 - South,Permanent Nursing,Brandon Trust,5893.56, 06-Jun-2017
406,Revenue,CAHD,South Glos Users in South Glos Homes,Permanent Nursing,Brandon Trust,620.20,() 06-Jun-2017
407,Revenue,CAHD,Bed purchasing -S28A  Under 65 - North,Permanent Nursing,Brandon Trust,5335.52, 06-Jun-2017
408,Revenue,CAHD,Bed purchasing - S28A Under 65 - South,Permanent Residential,Brandon Trust,5789.04, 06-Jun-2017
409,Revenue,CAHD,Bed Purchasing - LD S28A- Over 65- South,Permanent Residential,Brandon Trust,5442.56, 06-Jun-2017
410,Revenue,CAHD,Bed purchasing - S28A Under 65 - South,Permanent Residential,Brandon Trust,9567.24, 06-Jun-2017
411,Revenue,CAHD,Social Lettings Agency,Fees - General,Individual,11.41, 02-Jun-2017
412,Revenue,CAHD,Social Lettings Agency,Other Supplies & Services,Individual,746.54, 02-Jun-2017
413,Revenue,CAHD,Tenancy Start Up Scheme,Other Supplies & Services,Individual,1656.50, 08-Jun-2017
414,Revenue,CAHD,Bed Purchasing - Southmead Hospital,Permanent Residential,Bridge House Care Home,2423.08, 06-Jun-2017
415,Revenue,CAHD,Bed Purchasing - North,Permanent Residential,Bridge House Care Home,2382.12, 06-Jun-2017
416,Revenue,CAHD,Home Care - Elderly - North,Day Care / Social Activities,Bridge House Care Home,526.72, 06-Jun-2017
417,Revenue,CAHD,Bed Purchasing - North,Permanent Residential,Bridge House Care Home,2496.04, 06-Jun-2017
418,Revenue,CAHD,Bed Purchasing - North,Permanent Residential,Bridge House Care Home,2191.80, 06-Jun-2017
419,Revenue,CAHD,Bed Purchasing - North,Fees & Charges Income - General,Bridge House Care Home,1060.44,() 06-Jun-2017
420,Revenue,CAHD,Bed Purchasing - North,Fees & Charges Income - General,Bridge House Care Home,533.59, 06-Jun-2017
421,Revenue,CAHD,Bed Purchasing - North,Fees & Charges Income - General,Bridge House Care Home,1002.86, 06-Jun-2017
422,Revenue,CAHD,Bed Purchasing - North,Fees & Charges Income - General,Bridge House Care Home,533.59,() 06-Jun-2017
423,Revenue,CAHD,Bed Purchasing - North,Permanent Residential,Bridgwater Court,10324.96, 06-Jun-2017
424,Revenue,CAHD,MH Purchasing - Younger,Permanent Residential,Brightbow,2207.44, 06-Jun-2017
425,Revenue,CAHD,Older People's Commissioned Se,Grants to Voluntary Bodies,Bristol Area Stroke Foundation,20093.50, 30-Jun-2017
426,Revenue,CAHD,Home Care - Elderly - North,Day Care / Social Activities,Bristol Community Links North,996.32, 06-Jun-2017
427,Revenue,CAHD,Home Care - Elderly - North,Day Care / Social Activities,Bristol Community Links North,2490.80, 06-Jun-2017
428,Revenue,CAHD,Home Care - Elderly - South,Supported Living,Bristol Houses UK Limited,590.52, 07-Jun-2017
429,Revenue,CAHD,Home Care - Elderly - South,Supported Living,Bristol Houses UK Limited,528.00, 07-Jun-2017
430,Revenue,CAHD,Home Care - Elderly - South,Supported Living,Bristol Houses UK Limited,710.40, 22-Jun-2017
431,Revenue,CAHD,Home Care - Elderly - South,Day Care / Social Activities,Bristol Houses UK Limited,1336.08, 06-Jun-2017
432,Revenue,CAHD,Training - Adult Services,Training Expenses,Bristol MIND,1790.00, 01-Jun-2017
433,Revenue,CAHD,18-25 Year Olds,SU Employment Support,Britannia House,712.08, 06-Jun-2017
434,Revenue,CAHD,Home Care - Elderly - North,Day Care / Social Activities,Britannia House,949.44, 06-Jun-2017
435,Revenue,CAHD,18-25 Year Olds,Day Care / Social Activities,Britannia House,712.08, 06-Jun-2017
436,Revenue,CAHD,Home Care - Elderly - South,Supported Living,Britannia House,6443.30, 06-Jun-2017
437,Revenue,CAHD,Home Care - Elderly - South,Supported Living,Britannia House,3634.63, 06-Jun-2017
438,Revenue,CAHD,Home Care - Elderly - North,Day Care / Social Activities,Britannia House,712.08, 06-Jun-2017
439,Revenue,CAHD,Home Care - Elderly - North,Day Care / Social Activities,Britannia House,949.44, 06-Jun-2017
440,Revenue,CAHD,Home Care - Elderly - South,Day Care / Social Activities,Britannia House,949.44, 06-Jun-2017
441,Revenue,CAHD,Home Care - Elderly - South,Day Care / Social Activities,Britannia House,712.08, 06-Jun-2017
442,Revenue,CAHD,Home Care - Elderly - South,Day Care / Social Activities,Britannia House,712.08, 06-Jun-2017
443,Revenue,CAHD,Supporting People Programme,Grants to Voluntary Bodies,Bromford Housing Group,14395.08, 01-Jun-2017
444,Revenue,CAHD,Supporting People Programme,Grants to Voluntary Bodies,Bromford Housing Group,14395.08, 30-Jun-2017
445,Revenue,CAHD,Pathway 1 - Re-Ablement Home Care,Private & Voluntary Home Care,Brunelcare,24132.35, 05-Jun-2017
446,Revenue,CAHD,Pathway 1 - Re-Ablement Home Care,Private & Voluntary Home Care,Brunelcare,24132.35, 12-Jun-2017
447,Revenue,CAHD,Pathway 1 - Re-Ablement Home Care,Private & Voluntary Home Care,Brunelcare,24132.35, 19-Jun-2017
448,Revenue,CAHD,Pathway 1 - Re-Ablement Home Care,Private & Voluntary Home Care,Brunelcare,24132.35, 26-Jun-2017
449,Revenue,CAHD,South Glos Users in South Glos Homes,Permanent Nursing,Brunelcare,686.65, 16-Jun-2017
450,Revenue,CAHD,Bed Purchasing - North,Permanent Nursing,Brunelcare,2882.60, 16-Jun-2017
451,Revenue,CAHD,South Glos Users in South Glos Homes,Permanent Nursing,Brunelcare,686.65, 16-Jun-2017
452,Revenue,CAHD,Bed Purchasing - Southmead Hospital,Permanent Nursing,Brunelcare,2853.11, 16-Jun-2017
453,Revenue,CAHD,South Glos Users in South Glos Homes,Permanent Nursing,Brunelcare,686.65, 16-Jun-2017
454,Revenue,CAHD,Bed Purchasing - Elderly S117- North,Permanent Nursing,Brunelcare,3516.29, 16-Jun-2017
455,Revenue,CAHD,Bed Purchasing - South,Permanent Nursing,Brunelcare,2913.25, 16-Jun-2017
456,Revenue,CAHD,South Glos Users in South Glos Homes,Permanent Nursing,Brunelcare,686.65, 16-Jun-2017
457,Revenue,CAHD,Bed Purchasing - Elderly S117- North,Permanent Nursing,Brunelcare,3516.29, 16-Jun-2017
458,Revenue,CAHD,South Glos Users in South Glos Homes,Permanent Nursing,Brunelcare,686.65, 16-Jun-2017
459,Revenue,CAHD,Bed Purchasing - South,Permanent Nursing,Brunelcare,2794.65, 16-Jun-2017
460,Revenue,CAHD,South Glos Users in South Glos Homes,Permanent Nursing,Brunelcare,686.65, 16-Jun-2017
461,Revenue,CAHD,Bed Purchasing - South,Permanent Nursing,Brunelcare,2703.82, 16-Jun-2017
462,Revenue,CAHD,South Glos Users in South Glos Homes,Permanent Nursing,Brunelcare,686.65, 16-Jun-2017
463,Revenue,CAHD,Bed Purchasing - South,Permanent Nursing,Brunelcare,2729.15, 16-Jun-2017
464,Revenue,CAHD,South Glos Users in South Glos Homes,Permanent Nursing,Brunelcare,686.65, 16-Jun-2017
465,Revenue,CAHD,Bed purchasing - Elderly S117 - South,Permanent Nursing,Brunelcare,3516.29, 16-Jun-2017
466,Revenue,CAHD,South Glos Users in South Glos Homes,Permanent Nursing,Brunelcare,686.65, 16-Jun-2017
467,Revenue,CAHD,Bed Purchasing - North,Permanent Nursing,Brunelcare,2848.68, 16-Jun-2017
468,Revenue,CAHD,South Glos Users in South Glos Homes,Permanent Nursing,Brunelcare,686.65, 16-Jun-2017
469,Revenue,CAHD,Bed Purchasing - Southmead Hospital,Permanent Nursing,Brunelcare,2749.83, 16-Jun-2017
470,Revenue,CAHD,South Glos Users in South Glos Homes,Permanent Nursing,Brunelcare,686.65, 16-Jun-2017
471,Revenue,CAHD,Bed Purchasing - North,Permanent Nursing,Brunelcare,2880.21, 16-Jun-2017
472,Revenue,CAHD,South Glos Users in South Glos Homes,Permanent Nursing,Brunelcare,686.65, 16-Jun-2017
473,Revenue,CAHD,Bed Purchasing - North,Permanent Nursing,Brunelcare,2920.86, 16-Jun-2017
474,Revenue,CAHD,South Glos Users in South Glos Homes,Permanent Nursing,Brunelcare,686.65, 16-Jun-2017
475,Revenue,CAHD,Bed Purchasing - Southmead Hospital,Permanent Nursing,Brunelcare,2920.86, 16-Jun-2017
476,Revenue,CAHD,South Glos Users in South Glos Homes,Permanent Nursing,Brunelcare,686.65, 16-Jun-2017
477,Revenue,CAHD,Bed Purchasing - Southmead Hospital,Permanent Nursing,Brunelcare,3516.29, 16-Jun-2017
478,Revenue,CAHD,Bed Purchasing - North,Respite Planned - Nursing,Brunelcare,3516.29, 16-Jun-2017
479,Revenue,CAHD,Bed Purchasing - North,Respite Planned - Nursing,Brunelcare,907.43, 16-Jun-2017
480,Revenue,CAHD,Bed Purchasing - North,Respite Planned - Nursing,Brunelcare,542.31, 16-Jun-2017
481,Revenue,CAHD,Bed Purchasing - South,Respite Planned - Nursing,Brunelcare,907.43, 16-Jun-2017
482,Revenue,CAHD,Bed Purchasing - South,Respite Planned - Nursing,Brunelcare,542.31, 16-Jun-2017
483,Revenue,CAHD,Bed Purchasing - South,Respite Planned - Nursing,Brunelcare,680.57, 16-Jun-2017
484,Revenue,CAHD,South Glos Users in South Glos Homes,Permanent Nursing,Brunelcare,1356.46, 16-Jun-2017
485,Revenue,CAHD,Pathway 2 - (Interim Beds),Permanent Nursing,Brunelcare,51087.00, 21-Jun-2017
486,Revenue,CAHD,Home Care - Elderly - South,Other Small Contracts,Brunelcare,1962.24, 06-Jun-2017
487,Revenue,CAHD,Home Care - Elderly - North,Other Small Contracts,Brunelcare,752.64, 06-Jun-2017
488,Revenue,CAHD,Home Care - Elderly - South,Other Small Contracts,Brunelcare,2038.40, 16-Jun-2017
489,Revenue,CAHD,Home Care - Elderly - North,Other Small Contracts,Brunelcare,851.20, 16-Jun-2017
490,Revenue,CAHD,Home Care - Elderly - South,Other Small Contracts,Brunelcare,2051.84, 16-Jun-2017
491,Revenue,CAHD,Home Care - Elderly - North,Other Small Contracts,Brunelcare,904.96, 16-Jun-2017
492,Revenue,CAHD,Home Care - Elderly - South,Other Small Contracts,Brunelcare,1850.24, 28-Jun-2017
493,Revenue,CAHD,Home Care - Elderly - North,Other Small Contracts,Brunelcare,770.56, 28-Jun-2017
494,Revenue,CAHD,Home Care - Elderly - South,Other Small Contracts,Brunelcare,2360.96, 28-Jun-2017
495,Revenue,CAHD,Home Care - Elderly - North,Other Small Contracts,Brunelcare,1205.12, 28-Jun-2017
496,Revenue,CAHD,Bed Purchasing - North,Permanent Nursing,Bupa Care Services  Bridge House,1762.64, 06-Jun-2017
497,Revenue,CAHD,Jointly Funded H&SC Packages,Permanent Nursing,Bupa Care Services  Bridge House,4400.48, 06-Jun-2017
498,Revenue,CAHD,South Glos Users in all other LA Homes,Permanent Nursing,Bupa Care Services  Bridge House,853.28, 06-Jun-2017
499,Revenue,CAHD,Home Care - Elderly - North,Day Care / Social Activities,Camphill Communities Thornbury Limited,1237.10, 02-Jun-2017
500,Revenue,CAHD,Home Care - Elderly - North,Other Small Contracts,Camphill Communities Thornbury Limited,160.20, 02-Jun-2017
501,Revenue,CAHD,Home Care - Elderly - North,Supported Living,Camphill Communities Thornbury Limited,805.45, 02-Jun-2017
502,Revenue,CAHD,Home Care - Elderly - North,Day Care / Social Activities,Camphill Communities Thornbury Limited,1130.30, 09-Jun-2017
503,Revenue,CAHD,Home Care - Elderly - North,Other Small Contracts,Camphill Communities Thornbury Limited,160.20, 09-Jun-2017
504,Revenue,CAHD,Home Care - Elderly - North,Supported Living,Camphill Communities Thornbury Limited,854.40, 09-Jun-2017
505,Revenue,CAHD,Home Care - Elderly - North,Day Care / Social Activities,Camphill Communities Thornbury Limited,1179.25, 16-Jun-2017
506,Revenue,CAHD,Home Care - Elderly - North,Other Small Contracts,Camphill Communities Thornbury Limited,160.20, 16-Jun-2017
507,Revenue,CAHD,Home Care - Elderly - North,Supported Living,Camphill Communities Thornbury Limited,890.00, 16-Jun-2017
508,Revenue,CAHD,Home Care - Elderly - North,Day Care / Social Activities,Camphill Communities Thornbury Limited,1237.10, 23-Jun-2017
509,Revenue,CAHD,Home Care - Elderly - North,Other Small Contracts,Camphill Communities Thornbury Limited,160.20, 23-Jun-2017
510,Revenue,CAHD,Home Care - Elderly - North,Supported Living,Camphill Communities Thornbury Limited,983.45, 23-Jun-2017
511,Revenue,CAHD,Home Care - Elderly - North,Day Care / Social Activities,Camphill Communities Thornbury Limited,907.80, 30-Jun-2017
512,Revenue,CAHD,Home Care - Elderly - North,Other Small Contracts,Camphill Communities Thornbury Limited,160.20, 30-Jun-2017
513,Revenue,CAHD,Home Care - Elderly - North,Supported Living,Camphill Communities Thornbury Limited,965.65, 30-Jun-2017
514,Revenue,CAHD,Bed Purchasing - Elderly S117- North,Permanent Residential,Canjayor,2422.40, 06-Jun-2017
515,Revenue,CAHD,Home Care - Elderly - South,Other Small Contracts,Care 1st Homecare,4586.32, 06-Jun-2017
516,Revenue,CAHD,Home Care - Elderly - North,Other Small Contracts,Care 1st Homecare,5168.58, 06-Jun-2017
517,Revenue,CAHD,Home Care - Elderly - South,Other Small Contracts,Care 1st Homecare,4880.88, 09-Jun-2017
518,Revenue,CAHD,Home Care - Elderly - North,Other Small Contracts,Care 1st Homecare,6565.24, 09-Jun-2017
519,Revenue,CAHD,Home Care - Elderly - South,Other Small Contracts,Care 1st Homecare,4671.52, 19-Jun-2017
520,Revenue,CAHD,Home Care - Elderly - North,Other Small Contracts,Care 1st Homecare,4834.56, 19-Jun-2017
521,Revenue,CAHD,Home Care - Elderly - South,Other Small Contracts,Care 1st Homecare,4507.12, 28-Jun-2017
522,Revenue,CAHD,Home Care - Elderly - North,Other Small Contracts,Care 1st Homecare,4547.20, 28-Jun-2017
523,Revenue,CAHD,Home Care - Elderly - South,Other Small Contracts,Care 1st Homecare,4603.92, 28-Jun-2017
524,Revenue,CAHD,Home Care - Elderly - North,Other Small Contracts,Care 1st Homecare,4614.40, 28-Jun-2017
525,Revenue,CAHD,Home Care - Elderly - South,Other Small Contracts,Care 1st Homecare,4052.80, 28-Jun-2017
526,Revenue,CAHD,Home Care - Elderly - North,Other Small Contracts,Care 1st Homecare,4493.44, 28-Jun-2017
527,Revenue,CAHD,Home Care - Elderly - South,Other Small Contracts,Care 1st Homecare,3967.28, 30-Jun-2017
528,Revenue,CAHD,Home Care - Elderly - North,Other Small Contracts,Care 1st Homecare,4533.76, 30-Jun-2017
529,Revenue,CAHD,Home Care - Elderly - South,Supported Living,Care Futures,792.00, 21-Jun-2017
530,Revenue,CAHD,Home Care - Elderly - South,Other Small Contracts,Care Horizons Limited,628.32, 09-Jun-2017
531,Revenue,CAHD,Home Care - Elderly - North,Day Care / Social Activities,Care Horizons Limited,383.46, 09-Jun-2017
532,Revenue,CAHD,Home Care - Elderly - North,Other Small Contracts,Care Horizons Limited,378.84, 09-Jun-2017
533,Revenue,CAHD,Home care - Elderly MH - North,Other Small Contracts,Care Horizons Limited,207.90, 09-Jun-2017
534,Revenue,CAHD,Home Care - Elderly - South,Other Small Contracts,Care Horizons Limited,485.10, 16-Jun-2017
535,Revenue,CAHD,Home Care - Elderly - North,Day Care / Social Activities,Care Horizons Limited,401.94, 16-Jun-2017
536,Revenue,CAHD,Home Care - Elderly - North,Other Small Contracts,Care Horizons Limited,254.10, 16-Jun-2017
537,Revenue,CAHD,Home care - Elderly MH - North,Other Small Contracts,Care Horizons Limited,209.04, 16-Jun-2017
538,Revenue,CAHD,Home Care - Elderly - South,Other Small Contracts,Care Horizons Limited,554.40, 28-Jun-2017
539,Revenue,CAHD,Home Care - Elderly - North,Day Care / Social Activities,Care Horizons Limited,374.22, 28-Jun-2017
540,Revenue,CAHD,Home Care - Elderly - North,Other Small Contracts,Care Horizons Limited,420.42, 28-Jun-2017
541,Revenue,CAHD,Home care - Elderly MH - North,Other Small Contracts,Care Horizons Limited,184.80, 28-Jun-2017
542,Revenue,CAHD,Home Care - Elderly - South,Other Small Contracts,Care Horizons Limited,540.54, 28-Jun-2017
543,Revenue,CAHD,Home Care - Elderly - North,Day Care / Social Activities,Care Horizons Limited,392.70, 28-Jun-2017
544,Revenue,CAHD,Home Care - Elderly - North,Other Small Contracts,Care Horizons Limited,452.76, 28-Jun-2017
545,Revenue,CAHD,Home care - Elderly MH - North,Other Small Contracts,Care Horizons Limited,207.90, 28-Jun-2017
546,Revenue,CAHD,Home Care - Elderly - South,Other Small Contracts,Carers R Us (Bristol) Limited,331.52, 09-Jun-2017
547,Revenue,CAHD,Home Care - Elderly - North,Other Small Contracts,Carers R Us (Bristol) Limited,2232.70, 09-Jun-2017
548,Revenue,CAHD,Home Care - Elderly - South,Other Small Contracts,Carers R Us (Bristol) Limited,313.60, 16-Jun-2017
549,Revenue,CAHD,Home Care - Elderly - North,Other Small Contracts,Carers R Us (Bristol) Limited,2236.24, 16-Jun-2017
550,Revenue,CAHD,Home Care - Elderly - South,Other Small Contracts,Carers R Us (Bristol) Limited,349.44, 28-Jun-2017
551,Revenue,CAHD,Home Care - Elderly - North,Other Small Contracts,Carers R Us (Bristol) Limited,2237.18, 28-Jun-2017
552,Revenue,CAHD,Home Care - Elderly - South,Other Small Contracts,Carers R Us (Bristol) Limited,336.00, 28-Jun-2017
553,Revenue,CAHD,Home Care - Elderly - North,Other Small Contracts,Carers R Us (Bristol) Limited,2247.08, 28-Jun-2017
554,Revenue,CAHD,Home Care - Elderly - South,Other Small Contracts,Carers R Us (Bristol) Limited,336.00, 28-Jun-2017
555,Revenue,CAHD,Home Care - Elderly - North,Other Small Contracts,Carers R Us (Bristol) Limited,2230.10, 28-Jun-2017
556,Revenue,CAHD,SLA Grants - Support Serv,Grants to Voluntary Bodies,Carers Support Centre,27762.00, 13-Jun-2017
557,Revenue,CAHD,SLA Grants - Support Serv,Grants to Voluntary Bodies,Carers Support Centre,12275.00, 30-Jun-2017
558,Revenue,CAHD,SLA Grants - Support Serv,Grants to Voluntary Bodies,Carers Support Centre,25025.00, 30-Jun-2017
559,Revenue,CAHD,Home Care - Elderly - South,Other Small Contracts,Caring Comes 1st Ltd,920.64, 06-Jun-2017
560,Revenue,CAHD,Home Care - Elderly - South,Other Small Contracts,Caring Comes 1st Ltd,916.98, 06-Jun-2017
561,Revenue,CAHD,Home Care - Elderly - South,Other Small Contracts,Caring Comes 1st Ltd,767.20, 05-Jun-2017
562,Revenue,CAHD,Home Care - Elderly - North,Other Small Contracts,Caring Comes 1st Ltd,772.10, 15-Jun-2017
563,Revenue,CAHD,Home Care - Elderly - South,Other Small Contracts,Caring Comes 1st Ltd,1136.02, 05-Jun-2017
564,Revenue,CAHD,Home Care - Elderly - South,Other Small Contracts,Caring Comes 1st Ltd,909.73, 15-Jun-2017
565,Revenue,CAHD,Home Care - Elderly - South,Other Small Contracts,Caring Comes 1st Ltd,799.20, 06-Jun-2017
566,Revenue,CAHD,Home Care - Elderly - South,Other Small Contracts,Caring Comes 1st Ltd,752.49, 05-Jun-2017
567,Revenue,CAHD,Home Care - Elderly - South,Other Small Contracts,Caring Comes 1st Ltd,621.60, 07-Jun-2017
568,Revenue,CAHD,Home Care - Elderly - South,Other Small Contracts,Caring Comes 1st Ltd,1936.01, 08-Jun-2017
569,Revenue,CAHD,Home Care - Elderly - South,Other Small Contracts,Caring Comes 1st Ltd,621.60, 08-Jun-2017
570,Revenue,CAHD,Home Care - Elderly - South,Other Small Contracts,Caring Comes 1st Ltd,1076.70, 08-Jun-2017
571,Revenue,CAHD,Home Care - Elderly - North,Other Small Contracts,Caring Comes 1st Ltd,777.00, 12-Jun-2017
572,Revenue,CAHD,Home Care - Elderly - South,Other Small Contracts,Caring Comes 1st Ltd,1232.10, 22-Jun-2017
573,Revenue,CAHD,Home Care - Elderly - South,Other Small Contracts,Caring Comes 1st Ltd,1143.30, 12-Jun-2017
574,Revenue,CAHD,Home Care - Elderly - South,Other Small Contracts,Caring Comes 1st Ltd,1931.40, 12-Jun-2017
575,Revenue,CAHD,Home Care - Elderly - South,Other Small Contracts,Caring Comes 1st Ltd,738.25, 22-Jun-2017
576,Revenue,CAHD,Home Care - Elderly - South,Other Small Contracts,Caring Comes 1st Ltd,732.60, 23-Jun-2017
577,Revenue,CAHD,Home Care - Elderly - South,Other Small Contracts,Caring Comes 1st Ltd,505.05, 23-Jun-2017
578,Revenue,CAHD,Home Care - Elderly - North,Other Small Contracts,Caring Comes 1st Ltd,1087.80, 23-Jun-2017
579,Revenue,CAHD,Home Care - Elderly - South,Other Small Contracts,Caring Comes 1st Ltd,708.55, 29-Jun-2017
580,Revenue,CAHD,Social Lettings Agency,Fees - General,Individual,10.53, 01-Jun-2017
581,Revenue,CAHD,Social Lettings Agency,Fees & Charges Income - General,Individual,595.11, 01-Jun-2017
582,Revenue,CAHD,Social Lettings Agency,Fees - General,Individual,10.53, 30-Jun-2017
583,Revenue,CAHD,Social Lettings Agency,Fees & Charges Income - General,Individual,595.11, 30-Jun-2017
584,Revenue,CAHD,Home Care - Elderly - North,Day Care / Social Activities,Causeway House,2913.20, 06-Jun-2017
585,Revenue,CAHD,Home Care - Elderly - South,Day Care / Social Activities,Causeway House,4970.40, 06-Jun-2017
586,Revenue,CAHD,Home Care - Elderly - North,Day Care / Social Activities,Causeway House,4311.60, 06-Jun-2017
587,Revenue,CAHD,Home Care - Elderly - North,Day Care / Social Activities,Causeway House,2151.36, 06-Jun-2017
588,Revenue,CAHD,Turnberries,Day Care / Social Activities,Causeway House,3682.00, 06-Jun-2017
589,Revenue,CAHD,Home Care - Elderly - North,Day Care / Social Activities,Causeway House,4323.44, 06-Jun-2017
590,Revenue,CAHD,Home Care - Elderly - North,Day Care / Social Activities,Causeway House,1965.84, 06-Jun-2017
591,Revenue,CAHD,Home Care - Elderly - North,Day Care / Social Activities,Causeway House,3052.40, 06-Jun-2017
592,Revenue,CAHD,Home Care - Elderly - North,Day Care / Social Activities,Causeway House,4547.56, 06-Jun-2017
593,Revenue,CAHD,Home Care - Elderly - North,Day Care / Social Activities,Causeway House,1634.40, 06-Jun-2017
594,Revenue,CAHD,Home Care - Elderly - North,Day Care / Social Activities,Causeway House,2939.60, 06-Jun-2017
595,Revenue,CAHD,Bed Purchasing - Elderly S117- North,Permanent Nursing,Cedar Care Homes Limited,4352.00, 06-Jun-2017
596,Revenue,CAHD,Bed Purchasing - North,Permanent Residential,Charlton House,1886.24, 06-Jun-2017
597,Revenue,CAHD,Home Care - Elderly - South,Other Small Contracts,Cherish Able Care Limited,7248.55, 09-Jun-2017
598,Revenue,CAHD,Home Care - Elderly - North,Other Small Contracts,Cherish Able Care Limited,2982.56, 09-Jun-2017
599,Revenue,CAHD,Home Care - Elderly - South,Other Small Contracts,Cherish Able Care Limited,6896.96, 09-Jun-2017
600,Revenue,CAHD,Home Care - Elderly - North,Other Small Contracts,Cherish Able Care Limited,2912.70, 09-Jun-2017
601,Revenue,CAHD,Home Care - Elderly - South,Other Small Contracts,Cherish Able Care Limited,6771.52, 16-Jun-2017
602,Revenue,CAHD,Home Care - Elderly - North,Other Small Contracts,Cherish Able Care Limited,2288.95, 16-Jun-2017
603,Revenue,CAHD,Home Care - Elderly - South,Other Small Contracts,Cherish Able Care Limited,8081.92, 23-Jun-2017
604,Revenue,CAHD,Home Care - Elderly - North,Other Small Contracts,Cherish Able Care Limited,2303.92, 23-Jun-2017
605,Revenue,CAHD,Home Care - Elderly - South,Other Small Contracts,Cherish Able Care Limited,8216.32, 29-Jun-2017
606,Revenue,CAHD,Home Care - Elderly - North,Other Small Contracts,Cherish Able Care Limited,2394.43, 29-Jun-2017
607,Revenue,CAHD,Bed purchasing -S28A  Under 65 - North,Permanent Residential,Chescombe Lodge,14036.70, 06-Jun-2017
608,Revenue,CAHD,Bed purchasing -S28A  Under 65 - North,Permanent Residential,Chescombe Lodge,9357.80, 06-Jun-2017
609,Revenue,CAHD,18-25 Year Olds,Permanent Residential,Chosen Care Ltd  Citibase Watford,7689.72, 06-Jun-2017
610,Revenue,CAHD,Bed Purchasing - Elderly S117- North,Permanent Residential,Chosen Care Ltd  Citibase Watford,5060.64, 06-Jun-2017
611,Revenue,CAHD,Jointly Funded H&SC Packages,Permanent Residential,Chosen Care Ltd  Citibase Watford,5060.64, 06-Jun-2017
612,Revenue,CAHD,18-25 Year Olds,Permanent Residential,Chosen Care Ltd  Citibase Watford,6073.44, 06-Jun-2017
613,Revenue,CAHD,Bed Purchasing - Southmead Hospital,Permanent Nursing,Churchill Property Services,2249.92, 06-Jun-2017
614,Revenue,CAHD,Home Care - Elderly - South,Other Small Contracts,Cintre,224.16, 16-Jun-2017
615,Revenue,CAHD,Home Care - Elderly - North,Day Care / Social Activities,Cintre,98.07, 16-Jun-2017
616,Revenue,CAHD,Home Care - Elderly - North,Other Small Contracts,Cintre,481.01, 16-Jun-2017
617,Revenue,CAHD,Home Care - Elderly - South,Other Small Contracts,Cintre,228.83, 16-Jun-2017
618,Revenue,CAHD,Home Care - Elderly - North,Day Care / Social Activities,Cintre,130.76, 16-Jun-2017
619,Revenue,CAHD,Home Care - Elderly - North,Other Small Contracts,Cintre,373.60, 16-Jun-2017
620,Revenue,CAHD,Home Care - Elderly - South,Other Small Contracts,Cintre,154.11, 23-Jun-2017
621,Revenue,CAHD,Home Care - Elderly - North,Day Care / Social Activities,Cintre,98.07, 23-Jun-2017
622,Revenue,CAHD,Home Care - Elderly - North,Other Small Contracts,Cintre,481.01, 23-Jun-2017
623,Revenue,CAHD,Home Care - Elderly - South,Other Small Contracts,Cintre,224.16, 30-Jun-2017
624,Revenue,CAHD,Home Care - Elderly - North,Day Care / Social Activities,Cintre,107.41, 30-Jun-2017
625,Revenue,CAHD,Home Care - Elderly - North,Other Small Contracts,Cintre,495.02, 30-Jun-2017
626,Revenue,CAHD,Bed Purchasing - South,Permanent Residential,Cleeve Lodge,1232.16, 06-Jun-2017
627,Revenue,CAHD,Bed Purchasing - South,Permanent Residential,Cleeve Lodge,2361.60, 06-Jun-2017
628,Revenue,CAHD,Bed Purchasing - South,Permanent Residential,Cleeve Lodge,4102.68, 06-Jun-2017
629,Revenue,CAHD,Bed Purchasing - South,Permanent Residential,Cleeve Lodge,2735.12, 06-Jun-2017
630,Revenue,CAHD,Bed Purchasing - South,Fees & Charges Income - General,Cleeve Lodge,806.70, 06-Jun-2017
631,Revenue,CAHD,Bed Purchasing - South,Permanent Residential,Cleeve Lodge,2525.84, 06-Jun-2017
632,Revenue,CAHD,Bed Purchasing - South,Permanent Residential,Cleeve Lodge,2486.76, 06-Jun-2017
633,Revenue,CAHD,Bed Purchasing - South,Permanent Residential,Clerkenleap Barn,6079.80, 06-Jun-2017
634,Revenue,CAHD,Bed Purchasing - South,Permanent Residential,Collingwood Residential Home,2147.96, 06-Jun-2017
635,Revenue,CAHD,Bed Purchasing - Southmead Hospital,Permanent Residential,Collingwood Residential Home,2431.20, 06-Jun-2017
636,Revenue,CAHD,Bed Purchasing - South,Permanent Residential,Collingwood Residential Home,2329.92, 06-Jun-2017
637,Revenue,CAHD,Bed Purchasing - South,Permanent Residential,Collingwood Residential Home,2320.00, 06-Jun-2017
638,Revenue,CAHD,Bed Purchasing - South,Permanent Residential,Collingwood Residential Home,1408.57, 06-Jun-2017
639,Revenue,CAHD,Bed Purchasing - Southmead Hospital,Permanent Residential,Collingwood Residential Home,2350.16, 06-Jun-2017
640,Revenue,CAHD,Bed Purchasing - South,Permanent Residential,Collingwood Residential Home,2390.68, 06-Jun-2017
641,Revenue,CAHD,Bed Purchasing - South,Permanent Residential,Collingwood Residential Home,1622.25, 06-Jun-2017
642,Revenue,CAHD,Bed Purchasing - South,Respite Planned - Residential,Collingwood Residential Home,597.67, 06-Jun-2017
643,Revenue,CAHD,Bed Purchasing - South,Permanent Residential,Collingwood Residential Home,2016.16, 06-Jun-2017
644,Revenue,CAHD,Bed Purchasing - South,Permanent Nursing,Community Integrated Care,1901.96, 06-Jun-2017
645,Revenue,CAHD,Bed and Breakfast,Bed & Breakfast,Connolly & Callaghan Limited,476.00, 29-Jun-2017
646,Revenue,CAHD,Bed and Breakfast,Bed & Breakfast,Connolly & Callaghan Limited,616.00, 07-Jun-2017
647,Revenue,CAHD,Bed and Breakfast,Bed & Breakfast,Connolly & Callaghan Limited,476.00, 05-Jun-2017
648,Revenue,CAHD,Bed and Breakfast,Bed & Breakfast,Connolly & Callaghan Limited,426.00, 05-Jun-2017
649,Revenue,CAHD,Bed and Breakfast,Bed & Breakfast,Connolly & Callaghan Limited,616.00, 05-Jun-2017
650,Revenue,CAHD,Bed and Breakfast,Bed & Breakfast,Connolly & Callaghan Limited,490.00, 05-Jun-2017
651,Revenue,CAHD,Bed and Breakfast,Bed & Breakfast,Connolly & Callaghan Limited,574.00, 05-Jun-2017
652,Revenue,CAHD,Bed and Breakfast,Bed & Breakfast,Connolly & Callaghan Limited,581.00, 05-Jun-2017
653,Revenue,CAHD,Bed and Breakfast,Bed & Breakfast,Connolly & Callaghan Limited,490.00, 05-Jun-2017
654,Revenue,CAHD,Bed and Breakfast,Bed & Breakfast,Connolly & Callaghan Limited,791.00, 05-Jun-2017
655,Revenue,CAHD,Bed and Breakfast,Bed & Breakfast,Connolly & Callaghan Limited,616.00, 20-Jun-2017
656,Revenue,CAHD,Bed and Breakfast,Bed & Breakfast,Connolly & Callaghan Limited,497.00, 07-Jun-2017
657,Revenue,CAHD,Bed and Breakfast,Bed & Breakfast,Connolly & Callaghan Limited,616.00, 07-Jun-2017
658,Revenue,CAHD,Bed and Breakfast,Bed & Breakfast,Connolly & Callaghan Limited,490.00, 07-Jun-2017
659,Revenue,CAHD,Bed and Breakfast,Bed & Breakfast,Connolly & Callaghan Limited,581.00, 07-Jun-2017
660,Revenue,CAHD,Bed and Breakfast,Bed & Breakfast,Connolly & Callaghan Limited,490.00, 07-Jun-2017
661,Revenue,CAHD,Bed and Breakfast,Bed & Breakfast,Connolly & Callaghan Limited,791.00, 07-Jun-2017
662,Revenue,CAHD,Bed and Breakfast,Bed & Breakfast,Connolly & Callaghan Limited,616.00, 23-Jun-2017
663,Revenue,CAHD,Bed and Breakfast,Bed & Breakfast,Connolly & Callaghan Limited,455.00, 14-Jun-2017
664,Revenue,CAHD,Bed and Breakfast,Bed & Breakfast,Connolly & Callaghan Limited,497.00, 13-Jun-2017
665,Revenue,CAHD,Bed and Breakfast,Bed & Breakfast,Connolly & Callaghan Limited,616.00, 13-Jun-2017
666,Revenue,CAHD,Bed and Breakfast,Bed & Breakfast,Connolly & Callaghan Limited,490.00, 26-Jun-2017
667,Revenue,CAHD,Bed and Breakfast,Bed & Breakfast,Connolly & Callaghan Limited,581.00, 13-Jun-2017
668,Revenue,CAHD,Bed and Breakfast,Bed & Breakfast,Connolly & Callaghan Limited,791.00, 13-Jun-2017
669,Revenue,CAHD,Bed and Breakfast,Bed & Breakfast,Connolly & Callaghan Limited,616.00, 20-Jun-2017
670,Revenue,CAHD,Bed and Breakfast,Bed & Breakfast,Connolly & Callaghan Limited,455.00, 20-Jun-2017
671,Revenue,CAHD,Bed and Breakfast,Bed & Breakfast,Connolly & Callaghan Limited,497.00, 20-Jun-2017
672,Revenue,CAHD,Bed and Breakfast,Bed & Breakfast,Connolly & Callaghan Limited,616.00, 21-Jun-2017
673,Revenue,CAHD,Bed and Breakfast,Bed & Breakfast,Connolly & Callaghan Limited,490.00, 29-Jun-2017
674,Revenue,CAHD,Bed and Breakfast,Bed & Breakfast,Connolly & Callaghan Limited,455.00, 20-Jun-2017
675,Revenue,CAHD,Bed and Breakfast,Bed & Breakfast,Connolly & Callaghan Limited,791.00, 20-Jun-2017
676,Revenue,CAHD,Bed and Breakfast,Bed & Breakfast,Connolly & Callaghan Limited,616.00, 26-Jun-2017
677,Revenue,CAHD,Bed and Breakfast,Bed & Breakfast,Connolly & Callaghan Limited,455.00, 26-Jun-2017
678,Revenue,CAHD,Bed and Breakfast,Bed & Breakfast,Connolly & Callaghan Limited,497.00, 26-Jun-2017
679,Revenue,CAHD,Bed and Breakfast,Bed & Breakfast,Connolly & Callaghan Limited,490.00, 30-Jun-2017
680,Revenue,CAHD,Bed and Breakfast,Bed & Breakfast,Connolly & Callaghan Limited,455.00, 26-Jun-2017
681,Revenue,CAHD,Bed and Breakfast,Bed & Breakfast,Connolly & Callaghan Limited,678.00, 26-Jun-2017
682,Revenue,CAHD,Bed Purchasing - S28A - Over 65- North,Permanent Residential,Cream Ii Ltd  Longrun House,8879.52, 06-Jun-2017
683,Revenue,CAHD,Bed Purchasing - South,Permanent Residential,Cream Ii Ltd  Longrun House,3123.72, 06-Jun-2017
684,Revenue,CAHD,Jointly Funded H&SC Packages,Permanent Residential,Cream Ii Ltd  Longrun House,2717.92, 06-Jun-2017
685,Revenue,CAHD,Bed purchasing -S28A  Under 65 - North,Permanent Residential,Creedy Court,10156.60, 06-Jun-2017
686,Revenue,CAHD,Bed Purchasing - S28A - Over 65- North,Permanent Residential,Creedy Court,8534.04, 06-Jun-2017
687,Revenue,CAHD,Bed Purchasing - North,Permanent Residential,Creedy Court,13468.68, 06-Jun-2017
688,Revenue,CAHD,Brokerage and Information Service,Grants to Voluntary Bodies,Curo Care & Support,31445.00, 30-Jun-2017
689,Revenue,CAHD,Tenancy Start Up Scheme,Other Supplies & Services,Curo Housing Group,3000.00, 02-Jun-2017
690,Revenue,CAHD,Bed Purchasing - South,Permanent Residential,Daneswood,11757.84, 06-Jun-2017
691,Revenue,CAHD,Home Care - Elderly - South,Day Care / Social Activities,Daneswood,1354.56, 06-Jun-2017
692,Revenue,CAHD,Bed Purchasing - North,Permanent Residential,Daneswood,9836.56, 06-Jun-2017
693,Revenue,CAHD,Bed Purchasing - Elderly S117- North,Permanent Nursing,Danshell Healthcare Group,10419.44, 06-Jun-2017
694,Revenue,CAHD,Jointly Funded H&SC Packages,Permanent Nursing,Danshell Healthcare Group,1546.12, 06-Jun-2017
695,Revenue,CAHD,Learning Difficulties PSL,Other Supplies & Services,Individual,2105.50, 22-Jun-2017
696,Revenue,CAHD,Alexandra Way,Premises Maintenance by Contractor,Davis Roofing Limited,2474.00, 02-Jun-2017
697,Revenue,CAHD,SLA Grants - Support Serv,Grants to Voluntary Bodies,Delia Robins,500.00, 30-Jun-2017
698,Revenue,CAHD,Home Care - Elderly - South,Supported Living,Design House,2746.28, 06-Jun-2017
699,Revenue,CAHD,Home Care - Elderly - South,Supported Living,Design House,2935.76, 06-Jun-2017
700,Revenue,CAHD,Home Care - Elderly - South,Supported Living,Design House,3002.60, 06-Jun-2017
701,Revenue,CAHD,Home Care - Elderly - South,Supported Living,Design House,2868.88, 06-Jun-2017
702,Revenue,CAHD,18-25 Year Olds,Supported Living,Design House,1599.92, 06-Jun-2017
703,Revenue,CAHD,Home Care - Elderly - South,Day Care / Social Activities,Design House,1471.60, 06-Jun-2017
704,Revenue,CAHD,Home Care - Elderly - South,Supported Living,Design House,2528.96, 06-Jun-2017
705,Revenue,CAHD,Home Care - Elderly - South,Supported Living,Design House,2528.96, 06-Jun-2017
706,Revenue,CAHD,Home Care - Elderly - South,Supported Living,Design House,1648.36, 06-Jun-2017
707,Revenue,CAHD,Home Care - Elderly - South,Supported Living,Design House,2060.00, 06-Jun-2017
708,Revenue,CAHD,Home Care - Elderly - South,Supported Living,Design House,1817.72, 06-Jun-2017
709,Revenue,CAHD,Home Care - Elderly - South,Supported Living,Design House,2412.00, 06-Jun-2017
710,Revenue,CAHD,Home Care - Elderly - South,Supported Living,Design House,4128.16, 06-Jun-2017
711,Revenue,CAHD,Home Care - Elderly - South,Supported Living,Design House,2927.36, 06-Jun-2017
712,Revenue,CAHD,Home Care - Elderly - South,Day Care / Social Activities,Design House,1231.60, 06-Jun-2017
713,Revenue,CAHD,Home Care - Elderly - South,Supported Living,Design House,2779.72, 06-Jun-2017
714,Revenue,CAHD,Home Care - Elderly - South,Supported Living,Design House,2829.88, 06-Jun-2017
715,Revenue,CAHD,Home Care - Elderly - South,Supported Living,Design House,2163.68, 06-Jun-2017
716,Revenue,CAHD,Home Care - Elderly - South,Supported Living,Design House,1817.72, 06-Jun-2017
717,Revenue,CAHD,Home Care - Elderly - South,Supported Living,Design House,2163.68, 06-Jun-2017
718,Revenue,CAHD,Bed Purchasing - South,Permanent Residential,Devon & Cornwall Autistic Community Trus,9526.04, 06-Jun-2017
719,Revenue,CAHD,Home Care - Elderly - South,Other Small Contracts,Dhek Bhal,559.44, 06-Jun-2017
720,Revenue,CAHD,Home Care - Elderly - North,Other Small Contracts,Dhek Bhal,40.32, 06-Jun-2017
721,Revenue,CAHD,Home Care - Elderly - South,Other Small Contracts,Dhek Bhal,559.44, 16-Jun-2017
722,Revenue,CAHD,Home Care - Elderly - North,Other Small Contracts,Dhek Bhal,40.32, 16-Jun-2017
723,Revenue,CAHD,Home Care - Elderly - South,Other Small Contracts,Dhek Bhal,559.44, 16-Jun-2017
724,Revenue,CAHD,Home Care - Elderly - North,Other Small Contracts,Dhek Bhal,40.32, 16-Jun-2017
725,Revenue,CAHD,Home Care - Elderly - South,Other Small Contracts,Dhek Bhal,559.44, 23-Jun-2017
726,Revenue,CAHD,Home Care - Elderly - North,Other Small Contracts,Dhek Bhal,40.32, 23-Jun-2017
727,Revenue,CAHD,Bed Purchasing - South,Permanent Residential,Dimensions  Suite 2,5396.28, 06-Jun-2017
728,Revenue,CAHD,Home Care - Elderly - North,Supported Living,Dimensions Suite 2,12277.48, 06-Jun-2017
729,Revenue,CAHD,Home Care - Elderly - North,Supported Living,Dimensions Suite 2,2734.86, 06-Jun-2017
730,Revenue,CAHD,Home Care - Elderly - North,Supported Living,Dimensions Suite 2,1823.24, 06-Jun-2017
731,Revenue,CAHD,Home Care - Elderly - South,Supported Living,Dimensions Suite 2,12277.48, 06-Jun-2017
732,Revenue,CAHD,Home Care - Elderly - South,Supported Living,Dimensions Suite 2,2734.86, 06-Jun-2017
733,Revenue,CAHD,Home Care - Elderly - South,Supported Living,Dimensions Suite 2,1823.24, 06-Jun-2017
734,Revenue,CAHD,Home Care - Elderly - South,Supported Living,Dimensions Suite 2,6170.88, 06-Jun-2017
735,Revenue,CAHD,Home Care - Elderly - South,Supported Living,Dimensions Suite 2,12277.48, 06-Jun-2017
736,Revenue,CAHD,Home Care - Elderly - South,Supported Living,Dimensions Suite 2,2674.86, 06-Jun-2017
737,Revenue,CAHD,Home Care - Elderly - South,Supported Living,Dimensions Suite 2,1823.24, 06-Jun-2017
738,Revenue,CAHD,Home Care - Elderly - South,Supported Living,Dimensions Suite 2,2279.05, 06-Jun-2017
739,Revenue,CAHD,Home Care - Elderly - South,Supported Living,Dimensions Suite 2,12277.48, 06-Jun-2017
740,Revenue,CAHD,Home Care - Elderly - South,Supported Living,Dimensions Suite 2,2734.86, 06-Jun-2017
741,Revenue,CAHD,Home Care - Elderly - South,Supported Living,Dimensions Suite 2,1823.24, 06-Jun-2017
742,Revenue,CAHD,Home Care - Elderly - North,Supported Living,Dimensions Suite 2,4821.00, 06-Jun-2017
743,Revenue,CAHD,Home Care - Elderly - North,Supported Living,Dimensions Suite 2,2734.86, 06-Jun-2017
744,Revenue,CAHD,Home Care - Elderly - North,Supported Living,Dimensions Suite 2,1823.24, 06-Jun-2017
745,Revenue,CAHD,Home Care - Elderly - South,Day Care / Social Activities,DoCare Ltd,72.38, 12-Jun-2017
746,Revenue,CAHD,Home Care - Elderly - South,Other Small Contracts,DoCare Ltd,886.04, 12-Jun-2017
747,Revenue,CAHD,Home Care - Elderly - North,Other Small Contracts,DoCare Ltd,7171.83, 12-Jun-2017
748,Revenue,CAHD,Home Care - Elderly - South,Day Care / Social Activities,DoCare Ltd,72.38, 19-Jun-2017
749,Revenue,CAHD,Home Care - Elderly - South,Other Small Contracts,DoCare Ltd,1299.13, 19-Jun-2017
750,Revenue,CAHD,Home Care - Elderly - North,Other Small Contracts,DoCare Ltd,7214.28, 19-Jun-2017
751,Revenue,CAHD,Home Care - Elderly - South,Day Care / Social Activities,DoCare Ltd,72.38, 21-Jun-2017
752,Revenue,CAHD,Home Care - Elderly - South,Other Small Contracts,DoCare Ltd,1351.85, 21-Jun-2017
753,Revenue,CAHD,Home Care - Elderly - North,Other Small Contracts,DoCare Ltd,6900.88, 21-Jun-2017
754,Revenue,CAHD,Home Care - Elderly - South,Day Care / Social Activities,DoCare Ltd,62.04, 21-Jun-2017
755,Revenue,CAHD,Home Care - Elderly - South,Other Small Contracts,DoCare Ltd,1346.17, 21-Jun-2017
756,Revenue,CAHD,Home Care - Elderly - North,Other Small Contracts,DoCare Ltd,6761.29, 21-Jun-2017
757,Revenue,CAHD,Home Care - Elderly - South,Day Care / Social Activities,DoCare Ltd,72.38, 27-Jun-2017
758,Revenue,CAHD,Home Care - Elderly - South,Other Small Contracts,DoCare Ltd,1247.94, 27-Jun-2017
759,Revenue,CAHD,Home Care - Elderly - North,Other Small Contracts,DoCare Ltd,6321.40, 27-Jun-2017
760,Revenue,CAHD,Tenancy Start Up Scheme,Other Supplies & Services,Dovetail Properties,1770.00, 12-Jun-2017
761,Revenue,CAHD,Social Lettings Agency,Other Supplies & Services,Individual,605.64, 23-Jun-2017
762,Revenue,CAHD,Bed Purchasing - North,Permanent Nursing,Drakes Court,3433.38, 06-Jun-2017
763,Revenue,CAHD,Bed Purchasing - North,Permanent Nursing,Drakes Court,2288.92, 06-Jun-2017
764,Revenue,CAHD,Bed Purchasing - North,Permanent Nursing,Drakes Court,1129.78, 06-Jun-2017
765,Revenue,CAHD,South Glos Users in South Glos Homes,Permanent Nursing,Drakes Court,620.20, 06-Jun-2017
766,Revenue,CAHD,South Glos Users in South Glos Homes,Permanent Nursing,Drakes Court,620.20, 06-Jun-2017
767,Revenue,CAHD,Bed Purchasing - North,Respite Emergency - Residential,Drakes Court,2025.00, 06-Jun-2017
768,Revenue,CAHD,Bed Purchasing - North,Respite Emergency - Residential,Drakes Court,675.00, 06-Jun-2017
769,Revenue,CAHD,Bed Purchasing - North,Respite Emergency - Nursing,Drakes Court,675.00, 06-Jun-2017
770,Revenue,CAHD,Bed Purchasing - Southmead Hospital,Permanent Nursing,Drakes Court,1945.28, 06-Jun-2017
771,Revenue,CAHD,South Glos Users in South Glos Homes,Permanent Nursing,Drakes Court,620.20, 06-Jun-2017
772,Revenue,CAHD,South Glos Users in South Glos Homes,Permanent Nursing,Drakes Court,620.20, 06-Jun-2017
773,Revenue,CAHD,Bed Purchasing - North,Respite Planned - Nursing,Drakes Court,2735.12, 06-Jun-2017
774,Revenue,CAHD,South Glos Users in South Glos Homes,Permanent Nursing,Drakes Court,620.20, 06-Jun-2017
775,Revenue,CAHD,South Glos Users in South Glos Homes,Permanent Nursing,Drakes Court,620.20, 06-Jun-2017
776,Revenue,CAHD,Bed Purchasing - North,Permanent Nursing,Drakes Court,4531.14, 06-Jun-2017
777,Revenue,CAHD,Bed Purchasing - North,Permanent Nursing,Drakes Court,3020.76, 06-Jun-2017
778,Revenue,CAHD,South Glos Users in South Glos Homes,Permanent Nursing,Drakes Court,620.20, 06-Jun-2017
779,Revenue,CAHD,Bed Purchasing - North,Fees & Charges Income - General,Drakes Court,958.50, 06-Jun-2017
780,Revenue,CAHD,Bed Purchasing - North,Fees & Charges Income - General,Drakes Court,1475.90, 06-Jun-2017
781,Revenue,CAHD,Bed Purchasing - North,Permanent Nursing,Drakes Court,6603.00, 06-Jun-2017
782,Revenue,CAHD,Bed Purchasing - North,Fees & Charges Income - General,Drakes Court,787.49, 06-Jun-2017
783,Revenue,CAHD,Bed Purchasing - North,Fees & Charges Income - General,Drakes Court,1138.96, 06-Jun-2017
784,Revenue,CAHD,Bed Purchasing - North,Permanent Nursing,Drakes Court,1945.28, 06-Jun-2017
785,Revenue,CAHD,Bed Purchasing - Southmead Hospital,Permanent Nursing,Drakes Court,1945.28, 06-Jun-2017
786,Revenue,CAHD,South Glos Users in South Glos Homes,Permanent Nursing,Drakes Court,620.20, 06-Jun-2017
787,Revenue,CAHD,Bed Purchasing - North,Permanent Residential,Drakes Court,2829.36, 06-Jun-2017
788,Revenue,CAHD,Bed Purchasing - North,Permanent Residential,Drakes Court,1886.24, 06-Jun-2017
789,Revenue,CAHD,Bed Purchasing - North,Fees & Charges Income - General,Drakes Court,781.64, 06-Jun-2017
790,Revenue,CAHD,Bed Purchasing - North,Permanent Nursing,Drakes Court,2283.32, 06-Jun-2017
791,Revenue,CAHD,South Glos Users in South Glos Homes,Permanent Nursing,Drakes Court,620.20, 06-Jun-2017
792,Revenue,CAHD,Bed Purchasing - North,Permanent Nursing,Drakes Court,2633.80, 06-Jun-2017
793,Revenue,CAHD,South Glos Users in South Glos Homes,Permanent Nursing,Drakes Court,620.20, 06-Jun-2017
794,Revenue,CAHD,South Glos Users in South Glos Homes,Permanent Nursing,Drakes Court,620.20, 06-Jun-2017
795,Revenue,CAHD,South Glos Users in South Glos Homes,Permanent Nursing,Drakes Court,620.20, 06-Jun-2017
796,Revenue,CAHD,South Glos Users in South Glos Homes,Permanent Nursing,Drakes Court,620.20, 06-Jun-2017
797,Revenue,CAHD,MH Purchasing - Younger,Permanent Residential,Dunraven House,2272.96, 06-Jun-2017
798,Revenue,CAHD,Bed and Breakfast,Bed & Breakfast,Individual,504.00, 05-Jun-2017
799,Revenue,CAHD,Bed and Breakfast,Bed & Breakfast,Individual,420.00, 07-Jun-2017
800,Revenue,CAHD,Bed and Breakfast,Bed & Breakfast,Individual,504.00, 07-Jun-2017
801,Revenue,CAHD,Bed and Breakfast,Bed & Breakfast,Individual,434.00, 07-Jun-2017
802,Revenue,CAHD,Bed and Breakfast,Bed & Breakfast,Individual,420.00, 13-Jun-2017
803,Revenue,CAHD,Bed and Breakfast,Bed & Breakfast,Individual,504.00, 13-Jun-2017
804,Revenue,CAHD,Bed and Breakfast,Bed & Breakfast,Individual,434.00, 13-Jun-2017
805,Revenue,CAHD,Bed and Breakfast,Bed & Breakfast,Individual,420.00, 20-Jun-2017
806,Revenue,CAHD,Bed and Breakfast,Bed & Breakfast,Individual,504.00, 20-Jun-2017
807,Revenue,CAHD,Bed and Breakfast,Bed & Breakfast,Individual,434.00, 20-Jun-2017
808,Revenue,CAHD,Bed and Breakfast,Bed & Breakfast,Individual,420.00, 27-Jun-2017
809,Revenue,CAHD,Bed and Breakfast,Bed & Breakfast,Individual,504.00, 26-Jun-2017
810,Revenue,CAHD,Bed and Breakfast,Bed & Breakfast,Individual,434.00, 27-Jun-2017
811,Revenue,CAHD,Bed Purchasing - North,Permanent Residential,East Court,2648.48, 06-Jun-2017
812,Revenue,CAHD,Minor Adaptations Service,Operational Equipment,Eastman & Co (Timber) Limited,1120.62, 23-Jun-2017
813,Revenue,CAHD,Home Care - Elderly - South,Day Care / Social Activities,Easton Community Centre,540.24, 06-Jun-2017
814,Revenue,CAHD,Home Care - Elderly - South,Day Care / Social Activities,Easton Community Centre,540.24, 06-Jun-2017
815,Revenue,CAHD,Home Care - Elderly - North,Day Care / Social Activities,Easton Community Centre,540.24, 06-Jun-2017
816,Revenue,CAHD,Home Care - Elderly - North,Day Care / Social Activities,Easton Community Centre,540.24, 06-Jun-2017
817,Revenue,CAHD,Bed Purchasing - North,Permanent Residential,Edgecumbe Lodge,2289.40, 06-Jun-2017
818,Revenue,CAHD,Bed Purchasing - Southmead Hospital,Permanent Residential,Edgecumbe Lodge,1886.64, 06-Jun-2017
819,Revenue,CAHD,Bed Purchasing - South,Permanent Residential,Edgecumbe Lodge,2140.00, 06-Jun-2017
820,Revenue,CAHD,Bed Purchasing - Southmead Hospital,Permanent Residential,Edgecumbe Lodge,2431.20, 06-Jun-2017
821,Revenue,CAHD,Bed Purchasing - South,Permanent Residential,Edgecumbe Lodge,2156.24, 06-Jun-2017
822,Revenue,CAHD,Bed Purchasing - North,Permanent Residential,Edgecumbe Lodge,2320.48, 06-Jun-2017
823,Revenue,CAHD,Bed Purchasing - South,Permanent Residential,Edgecumbe Lodge,2156.24, 06-Jun-2017
824,Revenue,CAHD,Bed Purchasing - South,Permanent Residential,Edgecumbe Lodge,3646.80, 06-Jun-2017
825,Revenue,CAHD,Bed Purchasing - South,Permanent Residential,Edgecumbe Lodge,2431.20, 06-Jun-2017
826,Revenue,CAHD,Bed Purchasing - South,Fees & Charges Income - General,Edgecumbe Lodge,816.43, 06-Jun-2017
827,Revenue,CAHD,Bed Purchasing - South,Permanent Residential,Edgecumbe Lodge,2097.62, 06-Jun-2017
828,Revenue,CAHD,Bed Purchasing - South,Permanent Residential,Edgecumbe Lodge,1779.80, 06-Jun-2017
829,Revenue,CAHD,Bed Purchasing - South,Fees & Charges Income - General,Edgecumbe Lodge,614.63, 06-Jun-2017
830,Revenue,CAHD,Bed Purchasing - Southmead Hospital,Permanent Residential,Edgecumbe Lodge,2431.20, 06-Jun-2017
831,Revenue,CAHD,Bed Purchasing - North,Permanent Residential,Edgecumbe Lodge,2156.24, 06-Jun-2017
832,Revenue,CAHD,Bed Purchasing - South,Permanent Residential,Edgemont House Ltd,2228.60, 06-Jun-2017
833,Revenue,CAHD,Bed Purchasing - Southmead Hospital,Permanent Residential,Edgemont House Ltd,1879.20, 06-Jun-2017
834,Revenue,CAHD,Bed Purchasing - South,Permanent Residential,Edgemont House Ltd,2188.08, 06-Jun-2017
835,Revenue,CAHD,Bed Purchasing - South,Permanent Residential,Edgemont House Ltd,2013.32, 06-Jun-2017
836,Revenue,CAHD,South Glos Users in South Glos Homes,Permanent Nursing,Edgemont View Nursing Home,620.20, 06-Jun-2017
837,Revenue,CAHD,South Glos Users in South Glos Homes,Permanent Nursing,Edgemont View Nursing Home,620.20, 06-Jun-2017
838,Revenue,CAHD,South Glos Users in South Glos Homes,Permanent Nursing,Edgemont View Nursing Home,620.20, 06-Jun-2017
839,Revenue,CAHD,South Glos Users in South Glos Homes,Permanent Nursing,Edgemont View Nursing Home,620.20, 06-Jun-2017
840,Revenue,CAHD,Bed Purchasing - South,Permanent Nursing,Edgemont View Nursing Home,2917.44, 06-Jun-2017
841,Revenue,CAHD,South Glos Users in South Glos Homes,Permanent Nursing,Edgemont View Nursing Home,620.20, 06-Jun-2017
842,Revenue,CAHD,South Glos Users in South Glos Homes,Permanent Nursing,Edgemont View Nursing Home,620.20, 06-Jun-2017
843,Revenue,CAHD,South Glos Users in South Glos Homes,Permanent Nursing,Edgemont View Nursing Home,620.20, 06-Jun-2017
844,Revenue,CAHD,South Glos Users in South Glos Homes,Permanent Nursing,Edgemont View Nursing Home,620.20, 06-Jun-2017
845,Revenue,CAHD,South Glos Users in South Glos Homes,Permanent Nursing,Edgemont View Nursing Home,620.20, 06-Jun-2017
846,Revenue,CAHD,South Glos Users in South Glos Homes,Permanent Nursing,Edgemont View Nursing Home,620.20, 06-Jun-2017
847,Revenue,CAHD,South Glos Users in South Glos Homes,Permanent Nursing,Edgemont View Nursing Home,1205.36, 06-Jun-2017
848,Revenue,CAHD,South Glos Users in South Glos Homes,Permanent Nursing,Edgemont View Nursing Home,1129.65, 06-Jun-2017
849,Revenue,CAHD,South Glos Users in South Glos Homes,Permanent Nursing,Edgemont View Nursing Home,620.20, 06-Jun-2017
850,Revenue,CAHD,Bed Purchasing - South,Permanent Nursing,Edgemont View Nursing Home,2228.00, 06-Jun-2017
851,Revenue,CAHD,South Glos Users in South Glos Homes,Permanent Nursing,Edgemont View Nursing Home,620.20, 06-Jun-2017
852,Revenue,CAHD,South Glos Users in South Glos Homes,Permanent Nursing,Edgemont View Nursing Home,620.20, 06-Jun-2017
853,Revenue,CAHD,South Glos Users in South Glos Homes,Permanent Nursing,Edgemont View Nursing Home,620.20, 06-Jun-2017
854,Revenue,CAHD,South Glos Users in South Glos Homes,Permanent Nursing,Edgemont View Nursing Home,620.20, 06-Jun-2017
855,Revenue,CAHD,South Glos Users in South Glos Homes,Permanent Nursing,Edgemont View Nursing Home,620.20, 06-Jun-2017
856,Revenue,CAHD,Bed Purchasing - Southmead Hospital,Permanent Nursing,Edgemont View Nursing Home,2917.44, 06-Jun-2017
857,Revenue,CAHD,South Glos Users in South Glos Homes,Permanent Nursing,Edgemont View Nursing Home,620.20, 06-Jun-2017
858,Revenue,CAHD,Planning and Partnerships Procurement,Other Supplies & Services,Eldercare,3032.31, 30-Jun-2017
859,Revenue,CAHD,Supporting People Programme,Grants to Voluntary Bodies,Elim Housing Association Limited,5139.16, 01-Jun-2017
860,Revenue,CAHD,Supporting People Programme,Grants to Voluntary Bodies,Elim Housing Association Limited,5139.16, 30-Jun-2017
861,Revenue,CAHD,Home Care - Elderly - South,Day Care / Social Activities,Elite Home Care Ltd,195.22, 06-Jun-2017
862,Revenue,CAHD,Home Care - Elderly - South,Other Small Contracts,Elite Home Care Ltd,9351.42, 06-Jun-2017
863,Revenue,CAHD,Home Care - Elderly - North,Other Small Contracts,Elite Home Care Ltd,27.24, 06-Jun-2017
864,Revenue,CAHD,Home Care - Elderly - South,Day Care / Social Activities,Elite Home Care Ltd,186.14, 06-Jun-2017
865,Revenue,CAHD,Home Care - Elderly - South,Other Small Contracts,Elite Home Care Ltd,9380.18, 06-Jun-2017
866,Revenue,CAHD,Home Care - Elderly - North,Other Small Contracts,Elite Home Care Ltd,181.60, 06-Jun-2017
867,Revenue,CAHD,Home Care - Elderly - South,Day Care / Social Activities,Elite Home Care Ltd,186.14, 16-Jun-2017
868,Revenue,CAHD,Home Care - Elderly - South,Other Small Contracts,Elite Home Care Ltd,8780.14, 16-Jun-2017
869,Revenue,CAHD,Home Care - Elderly - North,Other Small Contracts,Elite Home Care Ltd,394.98, 16-Jun-2017
870,Revenue,CAHD,Home Care - Elderly - South,Day Care / Social Activities,Elite Home Care Ltd,190.68, 23-Jun-2017
871,Revenue,CAHD,Home Care - Elderly - South,Other Small Contracts,Elite Home Care Ltd,8457.04, 23-Jun-2017
872,Revenue,CAHD,Home Care - Elderly - North,Other Small Contracts,Elite Home Care Ltd,508.48, 23-Jun-2017
873,Revenue,CAHD,Bed Purchasing - North,Permanent Residential,Ellen House,5940.24, 06-Jun-2017
874,Revenue,CAHD,Bed Purchasing - North,Permanent Residential,Epworth House,2798.12, 06-Jun-2017
875,Revenue,CAHD,Home Care - Elderly - South,Other Small Contracts,Everycare (Bristol) Ltd,1397.76, 06-Jun-2017
876,Revenue,CAHD,Home Care - Elderly - North,Other Small Contracts,Everycare (Bristol) Ltd,766.08, 06-Jun-2017
877,Revenue,CAHD,Homeless - Private Sector Leasing,Prop.Serv. General Repairs,Express Property Services Limited,2420.66, 21-Jun-2017
878,Revenue,CAHD,Homeless - Private Sector Leasing,Prop.Serv. General Repairs,Express Property Services Limited,2187.31, 21-Jun-2017
879,Revenue,CAHD,Homeless - Private Sector Leasing,Prop.Serv. General Repairs,Express Property Services Limited,4023.74, 21-Jun-2017
880,Revenue,CAHD,Homeless - Private Sector Leasing,Prop.Serv. General Repairs,Express Property Services Limited,2666.22, 30-Jun-2017
881,Revenue,CAHD,South Glos Users in South Glos Homes,Permanent Nursing,Fairview Court,620.20, 06-Jun-2017
882,Revenue,CAHD,South Glos Users in South Glos Homes,Permanent Nursing,Fairview Court,620.20, 06-Jun-2017
883,Revenue,CAHD,South Glos Users in South Glos Homes,Permanent Nursing,Fairview Court,620.20, 06-Jun-2017
884,Revenue,CAHD,South Glos Users in South Glos Homes,Permanent Nursing,Fairview Court,620.20, 06-Jun-2017
885,Revenue,CAHD,Bed Purchasing - South,Permanent Nursing,Fairview Court,3031.04, 06-Jun-2017
886,Revenue,CAHD,South Glos Users in South Glos Homes,Permanent Nursing,Fairview Court,620.20, 06-Jun-2017
887,Revenue,CAHD,Bed Purchasing - Southmead Hospital,Permanent Nursing,Fairview Court,3241.60, 06-Jun-2017
888,Revenue,CAHD,South Glos Users in South Glos Homes,Permanent Nursing,Fairview Court,620.20, 06-Jun-2017
889,Revenue,CAHD,South Glos Users in South Glos Homes,Permanent Nursing,Fairview Court,620.20, 06-Jun-2017
890,Revenue,CAHD,Bed Purchasing - Southmead Hospital,Permanent Nursing,Fairview Court,3031.04, 06-Jun-2017
891,Revenue,CAHD,South Glos Users in South Glos Homes,Permanent Nursing,Fairview Court,620.20, 06-Jun-2017
892,Revenue,CAHD,Bed Purchasing - South,Permanent Nursing,Fairview Court,2449.12, 06-Jun-2017
893,Revenue,CAHD,South Glos Users in South Glos Homes,Permanent Nursing,Fairview Court,620.20, 06-Jun-2017
894,Revenue,CAHD,Bed purchasing - Elderly S117 - South,Permanent Nursing,Fairview Court,4000.00, 06-Jun-2017
895,Revenue,CAHD,Bed purchasing - Elderly S117 - South,Permanent Nursing,Fairview Court,571.43, 06-Jun-2017
896,Revenue,CAHD,Bed purchasing - Elderly S117 - South,Permanent Nursing,Fairview Court,2985.40, 06-Jun-2017
897,Revenue,CAHD,South Glos Users in South Glos Homes,Permanent Nursing,Fairview Court,620.20, 06-Jun-2017
898,Revenue,CAHD,Bed Purchasing - South,Permanent Nursing,Fairview Court,2449.12, 06-Jun-2017
899,Revenue,CAHD,South Glos Users in South Glos Homes,Permanent Nursing,Fairview Court,620.20, 06-Jun-2017
900,Revenue,CAHD,Bed Purchasing - South,Fees & Charges Income - General,Fairview Court,1238.08, 06-Jun-2017
901,Revenue,CAHD,South Glos Users in South Glos Homes,Permanent Nursing,Fairview Court,1085.35, 06-Jun-2017
902,Revenue,CAHD,South Glos Users in South Glos Homes,Permanent Nursing,Fairview Court,620.20, 06-Jun-2017
903,Revenue,CAHD,South Glos Users in South Glos Homes,Permanent Nursing,Fairview Court,620.20, 06-Jun-2017
904,Revenue,CAHD,Bed Purchasing - South,Permanent Nursing,Fairview Court,3241.60, 06-Jun-2017
905,Revenue,CAHD,South Glos Users in South Glos Homes,Permanent Nursing,Fairview Court,620.20, 06-Jun-2017
906,Revenue,CAHD,South Glos Users in South Glos Homes,Permanent Nursing,Fairview Court,620.20, 06-Jun-2017
907,Revenue,CAHD,South Glos Users in South Glos Homes,Permanent Nursing,Fairview Court,620.20, 06-Jun-2017
908,Revenue,CAHD,Bed Purchasing - North,Permanent Nursing,Fairview Court,3241.60, 06-Jun-2017
909,Revenue,CAHD,South Glos Users in South Glos Homes,Permanent Nursing,Fairview Court,620.20, 06-Jun-2017
910,Revenue,CAHD,Bed Purchasing - South,Permanent Nursing,Fairview Court,3031.04, 06-Jun-2017
911,Revenue,CAHD,South Glos Users in South Glos Homes,Permanent Nursing,Fairview Court,620.20, 06-Jun-2017
912,Revenue,CAHD,Bed Purchasing - Southmead Hospital,Permanent Nursing,Fairview Court,3241.60, 06-Jun-2017
913,Revenue,CAHD,South Glos Users in South Glos Homes,Permanent Nursing,Fairview Court,620.20, 06-Jun-2017
914,Revenue,CAHD,South Glos Users in South Glos Homes,Permanent Nursing,Fairview Court,620.20, 06-Jun-2017
915,Revenue,CAHD,South Glos Users in South Glos Homes,Permanent Nursing,Fairview Court,620.20, 06-Jun-2017
916,Revenue,CAHD,South Glos Users in South Glos Homes,Permanent Nursing,Fairview Court,620.20, 06-Jun-2017
917,Revenue,CAHD,South Glos Users in South Glos Homes,Permanent Nursing,Fairview Court,620.20, 06-Jun-2017
918,Revenue,CAHD,South Glos Users in South Glos Homes,Permanent Nursing,Fairview Court,620.20, 06-Jun-2017
919,Revenue,CAHD,South Glos Users in South Glos Homes,Permanent Nursing,Fairview Court,620.20, 06-Jun-2017
920,Revenue,CAHD,Bed Purchasing - South,Permanent Nursing,Fairview Court,2449.12, 06-Jun-2017
921,Revenue,CAHD,South Glos Users in South Glos Homes,Permanent Nursing,Fairview Court,620.20, 06-Jun-2017
922,Revenue,CAHD,Bed Purchasing - Southmead Hospital,Permanent Nursing,Fairview Court,3091.68, 06-Jun-2017
923,Revenue,CAHD,South Glos Users in South Glos Homes,Permanent Nursing,Fairview Court,620.20, 06-Jun-2017
924,Revenue,CAHD,Bed Purchasing - South,Permanent Nursing,Fairview Court,2607.80, 06-Jun-2017
925,Revenue,CAHD,South Glos Users in South Glos Homes,Permanent Nursing,Fairview Court,620.20, 06-Jun-2017
926,Revenue,CAHD,Bed Purchasing - Southmead Hospital,Permanent Nursing,Fairview Court,3360.00, 06-Jun-2017
927,Revenue,CAHD,Bed purchasing - Elderly S117 - South,Permanent Residential,Fairview House,2058.04, 06-Jun-2017
928,Revenue,CAHD,Bed Purchasing - Southmead Hospital,Permanent Residential,Fairview House,1886.24, 06-Jun-2017
929,Revenue,CAHD,Bed Purchasing - South,Permanent Residential,Fairview House,2094.64, 06-Jun-2017
930,Revenue,CAHD,Bed Purchasing - South,Permanent Residential,Fairview House,2829.36, 06-Jun-2017
931,Revenue,CAHD,Bed Purchasing - South,Permanent Residential,Fairview House,1886.24, 06-Jun-2017
932,Revenue,CAHD,Bed Purchasing - South,Fees & Charges Income - General,Fairview House,1154.21, 06-Jun-2017
933,Revenue,CAHD,Bed Purchasing - South,Permanent Residential,Fairview House,2127.32, 06-Jun-2017
934,Revenue,CAHD,Bed Purchasing - South,Permanent Residential,Fairview House,1886.24, 06-Jun-2017
935,Revenue,CAHD,Bed Purchasing - South,Permanent Residential,Fairview House,1886.24, 06-Jun-2017
936,Revenue,CAHD,Bed Purchasing - South,Permanent Residential,Fairview House,1886.24, 06-Jun-2017
937,Revenue,CAHD,Bed Purchasing - South,Permanent Residential,Fairview House,1917.36, 06-Jun-2017
938,Revenue,CAHD,Bed Purchasing - South,Permanent Residential,Fairview House,2117.24, 06-Jun-2017
939,Revenue,CAHD,Bed Purchasing - Southmead Hospital,Respite Emergency - Residential,Faith House,1578.57, 06-Jun-2017
940,Revenue,CAHD,Bed Purchasing - North,Permanent Residential,Faith House,3950.70, 06-Jun-2017
941,Revenue,CAHD,Bed Purchasing - North,Permanent Residential,Faith House,2633.80, 06-Jun-2017
942,Revenue,CAHD,Bed Purchasing - North,Permanent Residential,Faith House,1207.14, 06-Jun-2017
943,Revenue,CAHD,Bed Purchasing - North,Fees & Charges Income - General,Faith House,787.49, 06-Jun-2017
944,Revenue,CAHD,Bed Purchasing - Southmead Hospital,Permanent Nursing,Field House Care Home,3261.88, 06-Jun-2017
945,Revenue,CAHD,Bed Purchasing - Southmead Hospital,Permanent Nursing,Field House Care Home,3605.88, 06-Jun-2017
946,Revenue,CAHD,Bed Purchasing - Southmead Hospital,Permanent Nursing,Field House Care Home,3559.60, 06-Jun-2017
947,Revenue,CAHD,Bed Purchasing - Southmead Hospital,Fees & Charges Income - General,Field House Care Home,504.60, 06-Jun-2017
948,Revenue,CAHD,Bed Purchasing - North,Respite Emergency - Residential,Fieldview,3444.20, 06-Jun-2017
949,Revenue,CAHD,Bed Purchasing - Elderly S117- North,Permanent Nursing,Fieldview,4052.00, 06-Jun-2017
950,Revenue,CAHD,Bed Purchasing - North,Permanent Residential,Fieldview,2836.40, 06-Jun-2017
951,Revenue,CAHD,Bed Purchasing - Elderly S117- North,Permanent Residential,Fieldview,4457.14, 06-Jun-2017
952,Revenue,CAHD,MH Purchasing - Younger,Permanent Nursing,Fieldview,5267.60, 06-Jun-2017
953,Revenue,CAHD,Bed Purchasing - South,Permanent Residential,Fig House,2836.40, 06-Jun-2017
954,Revenue,CAHD,Home Care - Elderly - South,Other Small Contracts,Firstpoint Homecare Ltd,1232.00, 16-Jun-2017
955,Revenue,CAHD,Home Care - Elderly - North,Day Care / Social Activities,Firstpoint Homecare Ltd,132.00, 16-Jun-2017
956,Revenue,CAHD,Home Care - Elderly - North,Other Small Contracts,Firstpoint Homecare Ltd,52.80, 16-Jun-2017
957,Revenue,CAHD,Home Care - Elderly - South,Other Small Contracts,Firstpoint Homecare Ltd,1298.00, 16-Jun-2017
958,Revenue,CAHD,Home Care - Elderly - North,Day Care / Social Activities,Firstpoint Homecare Ltd,132.00, 16-Jun-2017
959,Revenue,CAHD,Home Care - Elderly - North,Other Small Contracts,Firstpoint Homecare Ltd,52.80, 16-Jun-2017
960,Revenue,CAHD,Home Care - Elderly - South,Other Small Contracts,Firstpoint Homecare Ltd,1249.60, 16-Jun-2017
961,Revenue,CAHD,Home Care - Elderly - North,Day Care / Social Activities,Firstpoint Homecare Ltd,96.80, 16-Jun-2017
962,Revenue,CAHD,Home Care - Elderly - North,Other Small Contracts,Firstpoint Homecare Ltd,57.20, 16-Jun-2017
963,Revenue,CAHD,Home Care - Elderly - South,Other Small Contracts,Firstpoint Homecare Ltd,1271.60, 23-Jun-2017
964,Revenue,CAHD,Home Care - Elderly - North,Day Care / Social Activities,Firstpoint Homecare Ltd,132.00, 23-Jun-2017
965,Revenue,CAHD,Home Care - Elderly - North,Other Small Contracts,Firstpoint Homecare Ltd,52.80, 23-Jun-2017
966,Revenue,CAHD,Mental Capacity Act / DOLS,Grants to Voluntary Bodies,Flynn Professional Ltd,532.40, 19-Jun-2017
967,Revenue,CAHD,Home Care - Elderly - South,Day Care / Social Activities,Fourways Care Limited,39.12, 06-Jun-2017
968,Revenue,CAHD,Home Care - Elderly - South,Other Small Contracts,Fourways Care Limited,6487.47, 06-Jun-2017
969,Revenue,CAHD,Home Care - Elderly - North,Other Small Contracts,Fourways Care Limited,5170.54, 06-Jun-2017
970,Revenue,CAHD,Younger MH non-res purchasing,Other Small Contracts,Fourways Care Limited,787.29, 06-Jun-2017
971,Revenue,CAHD,Home Care - Elderly - South,Day Care / Social Activities,Fourways Care Limited,39.12, 19-Jun-2017
972,Revenue,CAHD,Home Care - Elderly - South,Other Small Contracts,Fourways Care Limited,6467.91, 19-Jun-2017
973,Revenue,CAHD,Home Care - Elderly - North,Other Small Contracts,Fourways Care Limited,5487.71, 19-Jun-2017
974,Revenue,CAHD,Younger MH non-res purchasing,Other Small Contracts,Fourways Care Limited,787.29, 19-Jun-2017
975,Revenue,CAHD,Home Care - Elderly - South,Day Care / Social Activities,Fourways Care Limited,78.24, 19-Jun-2017
976,Revenue,CAHD,Home Care - Elderly - South,Other Small Contracts,Fourways Care Limited,6898.23, 19-Jun-2017
977,Revenue,CAHD,Home Care - Elderly - North,Other Small Contracts,Fourways Care Limited,5830.69, 19-Jun-2017
978,Revenue,CAHD,Younger MH non-res purchasing,Other Small Contracts,Fourways Care Limited,733.50, 19-Jun-2017
979,Revenue,CAHD,Home Care - Elderly - South,Day Care / Social Activities,Fourways Care Limited,39.12, 28-Jun-2017
980,Revenue,CAHD,Home Care - Elderly - South,Other Small Contracts,Fourways Care Limited,7116.66, 28-Jun-2017
981,Revenue,CAHD,Home Care - Elderly - North,Other Small Contracts,Fourways Care Limited,5767.12, 28-Jun-2017
982,Revenue,CAHD,Younger MH non-res purchasing,Other Small Contracts,Fourways Care Limited,709.05, 28-Jun-2017
983,Revenue,CAHD,Supporting People Programme,Grants to Voluntary Bodies,Freeways Trust Limited,6939.40, 01-Jun-2017
984,Revenue,CAHD,Supporting People Programme,Grants to Voluntary Bodies,Freeways Trust Limited,6939.40, 30-Jun-2017
985,Revenue,CAHD,Freeways,Permanent Residential,Freeways Trust Limited,3677.48, 26-Jun-2017
986,Revenue,CAHD,Freeways,Permanent Residential,Freeways Trust Limited,2364.64, 26-Jun-2017
987,Revenue,CAHD,Freeways,Permanent Residential,Freeways Trust Limited,2364.64, 26-Jun-2017
988,Revenue,CAHD,Freeways,Permanent Residential,Freeways Trust Limited,3441.12, 26-Jun-2017
989,Revenue,CAHD,Freeways,Permanent Residential,Freeways Trust Limited,2364.64, 26-Jun-2017
990,Revenue,CAHD,Freeways,Permanent Residential,Freeways Trust Limited,3491.60, 26-Jun-2017
991,Revenue,CAHD,Freeways,Permanent Residential,Freeways Trust Limited,2629.12, 26-Jun-2017
992,Revenue,CAHD,Freeways,Permanent Residential,Freeways Trust Limited,3649.08, 26-Jun-2017
993,Revenue,CAHD,Freeways,Permanent Residential,Freeways Trust Limited,2229.44, 26-Jun-2017
994,Revenue,CAHD,Freeways,Permanent Residential,Freeways Trust Limited,2788.16, 26-Jun-2017
995,Revenue,CAHD,Freeways,Permanent Residential,Freeways Trust Limited,3557.68, 26-Jun-2017
996,Revenue,CAHD,Freeways,Permanent Residential,Freeways Trust Limited,3122.76, 26-Jun-2017
997,Revenue,CAHD,Freeways,Permanent Residential,Freeways Trust Limited,2364.64, 26-Jun-2017
998,Revenue,CAHD,Freeways,Permanent Residential,Freeways Trust Limited,2767.24, 26-Jun-2017
999,Revenue,CAHD,Freeways,Permanent Residential,Freeways Trust Limited,1528.40, 26-Jun-2017
1000,Revenue,CAHD,Freeways,Permanent Residential,Freeways Trust Limited,809.15, 26-Jun-2017
1001,Revenue,CAHD,Freeways,Permanent Residential,Freeways Trust Limited,2517.36, 26-Jun-2017
1002,Revenue,CAHD,Home Care - Elderly - South,Day Care / Social Activities,Freeways Trust Limited,674.04, 09-Jun-2017
1003,Revenue,CAHD,Home Care - Elderly - South,Day Care / Social Activities,Freeways Trust Limited,826.11, 09-Jun-2017
1004,Revenue,CAHD,Home Care - Elderly - South,Other Small Contracts,Freeways Trust Limited,685.52, 07-Jun-2017
1005,Revenue,CAHD,Home Care - Elderly - North,Other Small Contracts,Freeways Trust Limited,800.80, 13-Jun-2017
1006,Revenue,CAHD,Home Care - Elderly - North,Other Small Contracts,Freeways Trust Limited,571.64, 14-Jun-2017
1007,Revenue,CAHD,Home Care - Elderly - North,Supported Living,Freeways Trust Ltd,810.40, 06-Jun-2017
1008,Revenue,CAHD,Bed purchasing - S28A Under 65 - South,Permanent Residential,Freeways Trust Ltd,3592.40, 06-Jun-2017
1009,Revenue,CAHD,Bed Purchasing - North,Permanent Residential,Freeways Trust Ltd,3606.68, 06-Jun-2017
1010,Revenue,CAHD,Bed Purchasing - South,Permanent Residential,Freeways Trust Ltd,3825.16, 06-Jun-2017
1011,Revenue,CAHD,Bed Purchasing - North,Permanent Residential,Freeways Trust Ltd,2888.32, 06-Jun-2017
1012,Revenue,CAHD,Bed Purchasing - South,Permanent Residential,Freeways Trust Ltd,4565.46, 06-Jun-2017
1013,Revenue,CAHD,Bed Purchasing - South,Permanent Residential,Freeways Trust Ltd,3043.64, 06-Jun-2017
1014,Revenue,CAHD,Bed Purchasing - South,Fees & Charges Income - General,Freeways Trust Ltd,787.49, 06-Jun-2017
1015,Revenue,CAHD,Bed Purchasing - North,Permanent Residential,Freeways Trust Ltd,3190.00, 06-Jun-2017
1016,Revenue,CAHD,Bed Purchasing - North,Permanent Residential,Freeways Trust Ltd,3818.20, 06-Jun-2017
1017,Revenue,CAHD,18-25 Year Olds,Permanent Residential,Freeways Trust Ltd,3527.20, 06-Jun-2017
1018,Revenue,CAHD,Pathway 3 - (Complex Beds),Permanent Nursing,Frenchay House,3162.00, 20-Jun-2017
1019,Revenue,CAHD,Bed Purchasing - Southmead Hospital,Permanent Nursing,Frenchay Park Nursing Home,3200.00, 06-Jun-2017
1020,Revenue,CAHD,Bed Purchasing - Southmead Hospital,Permanent Nursing,Frenchay Park Nursing Home,1902.54, 06-Jun-2017
1021,Revenue,CAHD,South Glos Users in South Glos Homes,Permanent Nursing,Fshc  1St Floor,620.20, 06-Jun-2017
1022,Revenue,CAHD,Bed Purchasing - South,Permanent Nursing,Fshc  1St Floor,3931.74, 06-Jun-2017
1023,Revenue,CAHD,Bed Purchasing - South,Permanent Nursing,Fshc  1St Floor,2621.16, 06-Jun-2017
1024,Revenue,CAHD,South Glos Users in South Glos Homes,Permanent Nursing,Fshc  1St Floor,620.20, 06-Jun-2017
1025,Revenue,CAHD,Bed Purchasing - South,Fees & Charges Income - General,Fshc  1St Floor,2491.63, 06-Jun-2017
1026,Revenue,CAHD,Bed Purchasing - South,Permanent Nursing,Fshc  1St Floor,2099.88, 06-Jun-2017
1027,Revenue,CAHD,Bed Purchasing - Southmead Hospital,Permanent Nursing,Fshc  1St Floor,2281.28, 06-Jun-2017
1028,Revenue,CAHD,Bed Purchasing - South,Permanent Nursing,Fshc  1St Floor,2099.88, 06-Jun-2017
1029,Revenue,CAHD,South Glos Users in South Glos Homes,Permanent Nursing,Fshc  1St Floor,620.20, 06-Jun-2017
1030,Revenue,CAHD,Bed Purchasing - Southmead Hospital,Permanent Nursing,Fshc  1St Floor,2390.68, 06-Jun-2017
1031,Revenue,CAHD,South Glos Users in South Glos Homes,Permanent Nursing,Fshc  1St Floor,620.20, 06-Jun-2017
1032,Revenue,CAHD,Bed Purchasing - Southmead Hospital,Permanent Nursing,Fshc  1St Floor,2099.88, 06-Jun-2017
1033,Revenue,CAHD,South Glos Users in South Glos Homes,Permanent Nursing,Fshc  1St Floor,620.20, 06-Jun-2017
1034,Revenue,CAHD,Bed Purchasing - Southmead Hospital,Fees & Charges Income - General,Fshc  1St Floor,909.85, 06-Jun-2017
1035,Revenue,CAHD,South Glos Users in South Glos Homes,Permanent Nursing,Fshc  1St Floor,620.20, 06-Jun-2017
1036,Revenue,CAHD,Bed Purchasing - North,Fees & Charges Income - General,Fshc  1St Floor,3864.69, 06-Jun-2017
1037,Revenue,CAHD,Bed Purchasing - North,Fees & Charges Income - General,Fshc  1St Floor,2408.61, 06-Jun-2017
1038,Revenue,CAHD,Bed Purchasing - Southmead Hospital,Permanent Nursing,Fshc  1St Floor,2281.28, 06-Jun-2017
1039,Revenue,CAHD,South Glos Users in South Glos Homes,Permanent Nursing,Fshc  1St Floor,620.20, 06-Jun-2017
1040,Revenue,CAHD,Bed Purchasing - Southmead Hospital,Permanent Nursing,Fshc  1St Floor,2581.12, 06-Jun-2017
1041,Revenue,CAHD,South Glos Users in South Glos Homes,Permanent Nursing,Fshc  1St Floor,620.20, 06-Jun-2017
1042,Revenue,CAHD,Bed Purchasing - Southmead Hospital,Permanent Nursing,Fshc  1St Floor,2099.88, 06-Jun-2017
1043,Revenue,CAHD,South Glos Users in South Glos Homes,Permanent Nursing,Fshc  1St Floor,1339.29, 06-Jun-2017
1044,Revenue,CAHD,South Glos Users in South Glos Homes,Permanent Nursing,Fshc  1St Floor,1129.65, 06-Jun-2017
1045,Revenue,CAHD,Bed Purchasing - Southmead Hospital,Permanent Nursing,Fshc  1St Floor,2134.54, 06-Jun-2017
1046,Revenue,CAHD,South Glos Users in South Glos Homes,Permanent Nursing,Fshc  1St Floor,620.20, 06-Jun-2017
1047,Revenue,CAHD,Bed Purchasing - Southmead Hospital,Respite Emergency - Residential,Fshc  1St Floor,6120.00, 06-Jun-2017
1048,Revenue,CAHD,Bed Purchasing - Southmead Hospital,Permanent Nursing,Fshc  1St Floor,3099.80, 06-Jun-2017
1049,Revenue,CAHD,South Glos Users in South Glos Homes,Permanent Nursing,Fshc  1St Floor,620.20, 06-Jun-2017
1050,Revenue,CAHD,Bed Purchasing - Southmead Hospital,Permanent Nursing,Fshc  1St Floor,2360.00, 06-Jun-2017
1051,Revenue,CAHD,Bed Purchasing - Southmead Hospital,Permanent Nursing,Fshc  1St Floor,2022.86, 06-Jun-2017
1052,Revenue,CAHD,Bed Purchasing - South,Permanent Nursing,Fshc  1St Floor,2613.56, 06-Jun-2017
1053,Revenue,CAHD,South Glos Users in South Glos Homes,Permanent Nursing,Fshc  1St Floor,620.20, 06-Jun-2017
1054,Revenue,CAHD,Bed Purchasing - South,Permanent Nursing,Fshc  1St Floor,2312.32, 06-Jun-2017
1055,Revenue,CAHD,Bed Purchasing - Southmead Hospital,Permanent Nursing,Fshc  1St Floor,2312.32, 06-Jun-2017
1056,Revenue,CAHD,Bed Purchasing - South,Permanent Nursing,Fshc  1St Floor,2281.28, 06-Jun-2017
1057,Revenue,CAHD,South Glos Users in South Glos Homes,Permanent Nursing,Fshc  1St Floor,620.20, 06-Jun-2017
1058,Revenue,CAHD,Bed Purchasing - Southmead Hospital,Permanent Nursing,Fshc  1St Floor,2099.88, 06-Jun-2017
1059,Revenue,CAHD,South Glos Users in South Glos Homes,Permanent Nursing,Fshc  1St Floor,620.20, 06-Jun-2017
1060,Revenue,CAHD,Bed Purchasing - Southmead Hospital,Permanent Nursing,Fshc  1St Floor,2281.28, 06-Jun-2017
1061,Revenue,CAHD,South Glos Users in South Glos Homes,Permanent Nursing,Fshc  1St Floor,620.20, 06-Jun-2017
1062,Revenue,CAHD,Bed Purchasing - South,Permanent Nursing,Fshc  1St Floor,7790.82, 06-Jun-2017
1063,Revenue,CAHD,Bed Purchasing - South,Permanent Nursing,Fshc  1St Floor,3097.86, 06-Jun-2017
1064,Revenue,CAHD,South Glos Users in South Glos Homes,Permanent Nursing,Fshc  1St Floor,2209.82, 06-Jun-2017
1065,Revenue,CAHD,Bed Purchasing - South,Permanent Nursing,Fshc  1St Floor,2065.24, 06-Jun-2017
1066,Revenue,CAHD,South Glos Users in South Glos Homes,Permanent Nursing,Fshc  1St Floor,1129.65, 06-Jun-2017
1067,Revenue,CAHD,South Glos Users in South Glos Homes,Permanent Nursing,Fshc  1St Floor,620.20, 06-Jun-2017
1068,Revenue,CAHD,Bed Purchasing - Southmead Hospital,Permanent Nursing,Fshc  1St Floor,2099.88, 06-Jun-2017
1069,Revenue,CAHD,South Glos Users in South Glos Homes,Permanent Nursing,Fshc  1St Floor,620.20, 06-Jun-2017
1070,Revenue,CAHD,Bed Purchasing - Southmead Hospital,Permanent Residential,Fshc  1St Floor,1958.56, 06-Jun-2017
1071,Revenue,CAHD,Bed Purchasing - North,Permanent Nursing,Fshc  1St Floor,2099.88, 06-Jun-2017
1072,Revenue,CAHD,South Glos Users in South Glos Homes,Permanent Nursing,Fshc  1St Floor,620.20, 06-Jun-2017
1073,Revenue,CAHD,Bed Purchasing - South,Permanent Nursing,Fshc  1St Floor,2281.28, 06-Jun-2017
1074,Revenue,CAHD,South Glos Users in South Glos Homes,Permanent Nursing,Fshc  1St Floor,620.20, 06-Jun-2017
1075,Revenue,CAHD,Bed Purchasing - Southmead Hospital,Respite Planned - Nursing,Fshc  1St Floor,2400.00, 06-Jun-2017
1076,Revenue,CAHD,Bed Purchasing - Southmead Hospital,Respite Planned - Nursing,Fshc  1St Floor,1971.43, 06-Jun-2017
1077,Revenue,CAHD,South Glos Users in South Glos Homes,Permanent Nursing,Fshc  1St Floor,620.20, 06-Jun-2017
1078,Revenue,CAHD,Bed Purchasing - North,Permanent Nursing,Fshc  1St Floor,3468.48, 06-Jun-2017
1079,Revenue,CAHD,Bed Purchasing - North,Permanent Nursing,Fshc  1St Floor,2312.32, 06-Jun-2017
1080,Revenue,CAHD,South Glos Users in South Glos Homes,Permanent Nursing,Fshc  1St Floor,620.20, 06-Jun-2017
1081,Revenue,CAHD,Bed Purchasing - North,Fees & Charges Income - General,Fshc  1St Floor,1036.01, 06-Jun-2017
1082,Revenue,CAHD,Bed Purchasing - Southmead Hospital,Permanent Nursing,Fshc  1St Floor,2810.84, 06-Jun-2017
1083,Revenue,CAHD,South Glos Users in South Glos Homes,Permanent Nursing,Fshc  1St Floor,620.20, 06-Jun-2017
1084,Revenue,CAHD,Bed Purchasing - Southmead Hospital,Permanent Residential,Fshc  1St Floor,2256.96, 06-Jun-2017
1085,Revenue,CAHD,Bed Purchasing - South,Permanent Nursing,Fshc  1St Floor,3385.44, 06-Jun-2017
1086,Revenue,CAHD,Bed Purchasing - South,Fees & Charges Income - General,Fshc  1St Floor,1068.05, 06-Jun-2017
1087,Revenue,CAHD,Bed Purchasing - Southmead Hospital,Permanent Nursing,Fshc  1St Floor,2099.88, 06-Jun-2017
1088,Revenue,CAHD,South Glos Users in South Glos Homes,Permanent Nursing,Fshc  1St Floor,620.20, 06-Jun-2017
1089,Revenue,CAHD,Bed Purchasing - North,Permanent Nursing,Fshc  1St Floor,2228.00, 06-Jun-2017
1090,Revenue,CAHD,South Glos Users in South Glos Homes,Permanent Nursing,Fshc  1St Floor,620.20, 06-Jun-2017
1091,Revenue,CAHD,South Glos Users in South Glos Homes,Permanent Nursing,Fshc  1St Floor,620.20, 06-Jun-2017
1092,Revenue,CAHD,Bed Purchasing - Southmead Hospital,Permanent Nursing,Fshc  1St Floor,2099.88, 06-Jun-2017
1093,Revenue,CAHD,South Glos Users in South Glos Homes,Permanent Nursing,Fshc  1St Floor,620.20, 06-Jun-2017
1094,Revenue,CAHD,Bed Purchasing - Southmead Hospital,Permanent Residential,Fshc  1St Floor,1958.56, 06-Jun-2017
1095,Revenue,CAHD,South Glos Users in South Glos Homes,Permanent Nursing,Fshc  1St Floor,620.20, 06-Jun-2017
1096,Revenue,CAHD,Bed Purchasing - Southmead Hospital,Permanent Nursing,Fshc  1St Floor,2228.00, 06-Jun-2017
1097,Revenue,CAHD,Bed Purchasing - Southmead Hospital,Permanent Nursing,Fshc  1St Floor,1034.43, 06-Jun-2017
1098,Revenue,CAHD,Bed Purchasing - Southmead Hospital,Permanent Nursing,Fshc  1St Floor,2099.88, 06-Jun-2017
1099,Revenue,CAHD,South Glos Users in South Glos Homes,Permanent Nursing,Fshc  1St Floor,620.20, 06-Jun-2017
1100,Revenue,CAHD,Bed Purchasing - Southmead Hospital,Permanent Nursing,Fshc  1St Floor,7798.00, 06-Jun-2017
1101,Revenue,CAHD,Bed Purchasing - Southmead Hospital,Permanent Nursing,Fshc  1St Floor,2228.00, 06-Jun-2017
1102,Revenue,CAHD,South Glos Users in South Glos Homes,Permanent Nursing,Fshc  1St Floor,620.20, 06-Jun-2017
1103,Revenue,CAHD,Bed Purchasing - Southmead Hospital,Fees & Charges Income - General,Fshc  1St Floor,784.20, 06-Jun-2017
1104,Revenue,CAHD,Bed Purchasing - Southmead Hospital,Permanent Nursing,Fshc  1St Floor,2099.88, 06-Jun-2017
1105,Revenue,CAHD,South Glos Users in South Glos Homes,Permanent Nursing,Fshc  1St Floor,620.20, 06-Jun-2017
1106,Revenue,CAHD,South Glos Users in South Glos Homes,Permanent Nursing,Fshc  1St Floor,620.20, 06-Jun-2017
1107,Revenue,CAHD,Bed Purchasing - North,Permanent Nursing,Fshc  1St Floor,2228.00, 06-Jun-2017
1108,Revenue,CAHD,South Glos Users in South Glos Homes,Permanent Nursing,Fshc  1St Floor,620.20, 06-Jun-2017
1109,Revenue,CAHD,Bed Purchasing - North,Permanent Nursing,Fshc  1St Floor,2099.88, 06-Jun-2017
1110,Revenue,CAHD,South Glos Users in South Glos Homes,Permanent Nursing,Fshc  1St Floor,620.20, 06-Jun-2017
1111,Revenue,CAHD,South Glos Users in South Glos Homes,Permanent Nursing,Fshc  1St Floor,620.20, 06-Jun-2017
1112,Revenue,CAHD,South Glos Users in South Glos Homes,Permanent Nursing,Fshc  1St Floor,620.20, 06-Jun-2017
1113,Revenue,CAHD,South Glos Users in South Glos Homes,Permanent Nursing,Fshc  1St Floor,620.20, 06-Jun-2017
1114,Revenue,CAHD,South Glos Users in South Glos Homes,Permanent Nursing,Fshc  1St Floor,1129.65, 06-Jun-2017
1115,Revenue,CAHD,South Glos Users in South Glos Homes,Permanent Nursing,Fshc  1St Floor,620.20, 06-Jun-2017
1116,Revenue,CAHD,South Glos Users in South Glos Homes,Permanent Nursing,Fshc  1St Floor,513.39, 06-Jun-2017
1117,Revenue,CAHD,South Glos Users in South Glos Homes,Permanent Nursing,Fshc  1St Floor,620.20, 06-Jun-2017
1118,Revenue,CAHD,South Glos Users in South Glos Homes,Permanent Nursing,Fshc  1St Floor,620.20, 06-Jun-2017
1119,Revenue,CAHD,South Glos Users in South Glos Homes,Permanent Nursing,Fshc  1St Floor,620.20, 06-Jun-2017
1120,Revenue,CAHD,South Glos Users in South Glos Homes,Permanent Nursing,Fshc  1St Floor,620.20, 06-Jun-2017
1121,Revenue,CAHD,Bed Purchasing - North,Permanent Nursing,Fshc  1St Floor,3149.82, 06-Jun-2017
1122,Revenue,CAHD,Bed Purchasing - North,Permanent Nursing,Fshc  1St Floor,2099.88, 06-Jun-2017
1123,Revenue,CAHD,South Glos Users in South Glos Homes,Permanent Nursing,Fshc  1St Floor,620.20, 06-Jun-2017
1124,Revenue,CAHD,Bed Purchasing - North,Fees & Charges Income - General,Fshc  1St Floor,2037.47, 06-Jun-2017
1125,Revenue,CAHD,Bed Purchasing - Southmead Hospital,Permanent Residential,Fshc  1St Floor,1958.56, 06-Jun-2017
1126,Revenue,CAHD,South Glos Users in South Glos Homes,Permanent Nursing,Fshc  1St Floor,620.20, 06-Jun-2017
1127,Revenue,CAHD,Bed Purchasing - North,Permanent Nursing,Fshc  1St Floor,2099.88, 06-Jun-2017
1128,Revenue,CAHD,South Glos Users in South Glos Homes,Permanent Nursing,Fshc  1St Floor,620.20, 06-Jun-2017
1129,Revenue,CAHD,Bed Purchasing - North,Permanent Nursing,Fshc  1St Floor,2099.88, 06-Jun-2017
1130,Revenue,CAHD,South Glos Users in South Glos Homes,Permanent Nursing,Fshc  1St Floor,620.20, 06-Jun-2017
1131,Revenue,CAHD,South Glos Users in South Glos Homes,Permanent Nursing,Fshc  1St Floor,620.20, 06-Jun-2017
1132,Revenue,CAHD,Bed Purchasing - Southmead Hospital,Fees & Charges Income - General,Fshc  1St Floor,787.49, 06-Jun-2017
1133,Revenue,CAHD,Bed Purchasing - Southmead Hospital,Fees & Charges Income - General,Fshc  1St Floor,1848.47, 06-Jun-2017
1134,Revenue,CAHD,Bed Purchasing - North,Permanent Nursing,Fshc  1St Floor,2099.88, 06-Jun-2017
1135,Revenue,CAHD,South Glos Users in South Glos Homes,Permanent Nursing,Fshc  1St Floor,620.20, 06-Jun-2017
1136,Revenue,CAHD,Bed Purchasing - North,Fees & Charges Income - General,Fshc  1St Floor,787.49, 06-Jun-2017
1137,Revenue,CAHD,Bed Purchasing - North,Permanent Nursing,Fshc  1St Floor,2099.88, 06-Jun-2017
1138,Revenue,CAHD,South Glos Users in South Glos Homes,Permanent Nursing,Fshc  1St Floor,620.20, 06-Jun-2017
1139,Revenue,CAHD,Bed Purchasing - North,Permanent Nursing,Fshc  1St Floor,2256.96, 06-Jun-2017
1140,Revenue,CAHD,South Glos Users in South Glos Homes,Permanent Nursing,Fshc  1St Floor,620.20, 06-Jun-2017
1141,Revenue,CAHD,Bed Purchasing - North,Permanent Nursing,Fshc  1St Floor,2099.88, 06-Jun-2017
1142,Revenue,CAHD,South Glos Users in South Glos Homes,Permanent Nursing,Fshc  1St Floor,620.20, 06-Jun-2017
1143,Revenue,CAHD,Bed Purchasing - Southmead Hospital,Permanent Nursing,Fshc  1St Floor,2228.00, 06-Jun-2017
1144,Revenue,CAHD,South Glos Users in South Glos Homes,Permanent Nursing,Fshc  1St Floor,620.20, 06-Jun-2017
1145,Revenue,CAHD,Bed Purchasing - North,Permanent Nursing,Fshc  1St Floor,2099.88, 06-Jun-2017
1146,Revenue,CAHD,South Glos Users in South Glos Homes,Permanent Nursing,Fshc  1St Floor,620.20, 06-Jun-2017
1147,Revenue,CAHD,South Glos Users in South Glos Homes,Permanent Nursing,Fshc  1St Floor,620.20, 06-Jun-2017
1148,Revenue,CAHD,Bed Purchasing - North,Permanent Nursing,Fshc  1St Floor,2228.00, 06-Jun-2017
1149,Revenue,CAHD,South Glos Users in South Glos Homes,Permanent Nursing,Fshc  1St Floor,620.20, 06-Jun-2017
1150,Revenue,CAHD,Bed Purchasing - North,Permanent Nursing,Fshc  1St Floor,2099.88, 06-Jun-2017
1151,Revenue,CAHD,South Glos Users in South Glos Homes,Permanent Nursing,Fshc  1St Floor,620.20, 06-Jun-2017
1152,Revenue,CAHD,Bed Purchasing - North,Permanent Nursing,Fshc  1St Floor,2171.52, 06-Jun-2017
1153,Revenue,CAHD,South Glos Users in South Glos Homes,Permanent Nursing,Fshc  1St Floor,620.20, 06-Jun-2017
1154,Revenue,CAHD,Bed Purchasing - Southmead Hospital,Permanent Nursing,Fshc  1St Floor,2382.56, 06-Jun-2017
1155,Revenue,CAHD,South Glos Users in South Glos Homes,Permanent Nursing,Fshc  1St Floor,620.20, 06-Jun-2017
1156,Revenue,CAHD,South Glos Users in South Glos Homes,Permanent Nursing,Fshc  1St Floor,620.20, 06-Jun-2017
1157,Revenue,CAHD,Bed Purchasing - North,Permanent Nursing,Fshc  1St Floor,2099.88, 06-Jun-2017
1158,Revenue,CAHD,South Glos Users in South Glos Homes,Permanent Nursing,Fshc  1St Floor,620.20, 06-Jun-2017
1159,Revenue,CAHD,South Glos Users in South Glos Homes,Permanent Nursing,Fshc  1St Floor,620.20, 06-Jun-2017
1160,Revenue,CAHD,South Glos Users in South Glos Homes,Permanent Nursing,Fshc  1St Floor,620.20, 06-Jun-2017
1161,Revenue,CAHD,South Glos Users in South Glos Homes,Permanent Nursing,Fshc  1St Floor,620.20, 06-Jun-2017
1162,Revenue,CAHD,South Glos Users in South Glos Homes,Permanent Nursing,Fshc  1St Floor,620.20, 06-Jun-2017
1163,Revenue,CAHD,Bed Purchasing - South,Permanent Nursing,Fshc  1St Floor,2507.16, 06-Jun-2017
1164,Revenue,CAHD,South Glos Users in South Glos Homes,Permanent Nursing,Fshc  1St Floor,620.20, 06-Jun-2017
1165,Revenue,CAHD,South Glos Users in South Glos Homes,Permanent Nursing,Fshc  1St Floor,620.20, 06-Jun-2017
1166,Revenue,CAHD,Bed Purchasing - North,Permanent Nursing,Fshc  1St Floor,2099.88, 06-Jun-2017
1167,Revenue,CAHD,Bed Purchasing - North,Respite Emergency - Nursing,Fshc  1St Floor,2279.80, 06-Jun-2017
1168,Revenue,CAHD,Bed Purchasing - North,Respite Emergency - Residential,Fshc  1St Floor,2035.54, 06-Jun-2017
1169,Revenue,CAHD,South Glos Users in South Glos Homes,Permanent Nursing,Fshc  1St Floor,620.20, 06-Jun-2017
1170,Revenue,CAHD,South Glos Users in South Glos Homes,Permanent Nursing,Fshc  1St Floor,620.20, 06-Jun-2017
1171,Revenue,CAHD,Bed Purchasing - Southmead Hospital,Permanent Residential,Fshc  1St Floor,1958.56, 06-Jun-2017
1172,Revenue,CAHD,Bed Purchasing - Southmead Hospital,Permanent Nursing,Fshc  1St Floor,2125.54, 06-Jun-2017
1173,Revenue,CAHD,South Glos Users in South Glos Homes,Permanent Nursing,Fshc  1St Floor,620.20, 06-Jun-2017
1174,Revenue,CAHD,South Glos Users in South Glos Homes,Permanent Nursing,Fshc  1St Floor,620.20, 06-Jun-2017
1175,Revenue,CAHD,South Glos Users in South Glos Homes,Permanent Nursing,Fshc  1St Floor,620.20, 06-Jun-2017
1176,Revenue,CAHD,Bed Purchasing - Southmead Hospital,Respite Planned - Nursing,Fshc  1St Floor,2479.80, 06-Jun-2017
1177,Revenue,CAHD,South Glos Users in South Glos Homes,Permanent Nursing,Fshc  1St Floor,1129.65, 06-Jun-2017
1178,Revenue,CAHD,South Glos Users in South Glos Homes,Permanent Nursing,Fshc  1St Floor,620.20, 06-Jun-2017
1179,Revenue,CAHD,South Glos Users in South Glos Homes,Permanent Nursing,Fshc  1St Floor,620.20, 06-Jun-2017
1180,Revenue,CAHD,Bed Purchasing - Southmead Hospital,Permanent Nursing,Fshc  1St Floor,2405.88, 06-Jun-2017
1181,Revenue,CAHD,South Glos Users in South Glos Homes,Permanent Nursing,Fshc  1St Floor,620.20, 06-Jun-2017
1182,Revenue,CAHD,South Glos Users in South Glos Homes,Permanent Nursing,Fshc  1St Floor,620.20, 06-Jun-2017
1183,Revenue,CAHD,South Glos Users in South Glos Homes,Permanent Nursing,Fshc  1St Floor,620.20, 06-Jun-2017
1184,Revenue,CAHD,Bed Purchasing - North,Permanent Nursing,Fshc  1St Floor,2549.24, 06-Jun-2017
1185,Revenue,CAHD,Bed Purchasing - Southmead Hospital,Permanent Nursing,Fshc  1St Floor,2507.16, 06-Jun-2017
1186,Revenue,CAHD,South Glos Users in South Glos Homes,Permanent Nursing,Fshc  1St Floor,620.20, 06-Jun-2017
1187,Revenue,CAHD,Bed Purchasing - North,Permanent Nursing,Fshc  1St Floor,2099.88, 06-Jun-2017
1188,Revenue,CAHD,South Glos Users in South Glos Homes,Permanent Nursing,Fshc  1St Floor,620.20, 06-Jun-2017
1189,Revenue,CAHD,South Glos Users in South Glos Homes,Permanent Nursing,Fshc  1St Floor,620.20, 06-Jun-2017
1190,Revenue,CAHD,Bed Purchasing - Southmead Hospital,Permanent Nursing,Fshc  1St Floor,2099.88, 06-Jun-2017
1191,Revenue,CAHD,South Glos Users in South Glos Homes,Permanent Nursing,Fshc  1St Floor,620.20, 06-Jun-2017
1192,Revenue,CAHD,South Glos Users in South Glos Homes,Permanent Nursing,Fshc  1St Floor,620.20, 06-Jun-2017
1193,Revenue,CAHD,Bed Purchasing - North,Permanent Nursing,Fshc  1St Floor,3616.08, 06-Jun-2017
1194,Revenue,CAHD,Bed Purchasing - North,Permanent Nursing,Fshc  1St Floor,2410.72, 06-Jun-2017
1195,Revenue,CAHD,Bed Purchasing - North,Permanent Nursing,Fshc  1St Floor,2124.82, 06-Jun-2017
1196,Revenue,CAHD,South Glos Users in South Glos Homes,Permanent Nursing,Fshc  1St Floor,620.20, 06-Jun-2017
1197,Revenue,CAHD,Bed Purchasing - North,Permanent Nursing,Fshc  1St Floor,2099.88, 06-Jun-2017
1198,Revenue,CAHD,South Glos Users in South Glos Homes,Permanent Nursing,Fshc  1St Floor,620.20, 06-Jun-2017
1199,Revenue,CAHD,Bed Purchasing - South,Permanent Nursing,Fshc  1St Floor,2507.16, 06-Jun-2017
1200,Revenue,CAHD,South Glos Users in South Glos Homes,Permanent Nursing,Fshc  1St Floor,620.20, 06-Jun-2017
1201,Revenue,CAHD,Bed Purchasing - Southmead Hospital,Permanent Nursing,Fshc  1St Floor,2099.88, 06-Jun-2017
1202,Revenue,CAHD,South Glos Users in South Glos Homes,Permanent Nursing,Fshc  1St Floor,620.20, 06-Jun-2017
1203,Revenue,CAHD,Bed Purchasing - North,Respite Planned - Nursing,Fshc  1St Floor,637.11, 06-Jun-2017
1204,Revenue,CAHD,Bed Purchasing - South,Permanent Nursing,Fshc  1St Floor,2431.20, 06-Jun-2017
1205,Revenue,CAHD,South Glos Users in South Glos Homes,Permanent Nursing,Fshc  1St Floor,620.20, 06-Jun-2017
1206,Revenue,CAHD,Bed Purchasing - South,Permanent Nursing,Fshc  1St Floor,3149.82, 06-Jun-2017
1207,Revenue,CAHD,Bed Purchasing - South,Permanent Nursing,Fshc  1St Floor,2099.88, 06-Jun-2017
1208,Revenue,CAHD,South Glos Users in South Glos Homes,Permanent Nursing,Fshc  1St Floor,620.20, 06-Jun-2017
1209,Revenue,CAHD,Bed Purchasing - South,Fees & Charges Income - General,Fshc  1St Floor,1073.09, 06-Jun-2017
1210,Revenue,CAHD,Bed Purchasing - Southmead Hospital,Permanent Nursing,Fshc  1St Floor,2099.88, 06-Jun-2017
1211,Revenue,CAHD,South Glos Users in South Glos Homes,Permanent Nursing,Fshc  1St Floor,620.20, 06-Jun-2017
1212,Revenue,CAHD,Bed Purchasing - Southmead Hospital,Permanent Residential,Fshc  1St Floor,2140.00, 06-Jun-2017
1213,Revenue,CAHD,Bed Purchasing - North,Respite Planned - Nursing,Fshc  1St Floor,3850.00, 06-Jun-2017
1214,Revenue,CAHD,South Glos Users in South Glos Homes,Permanent Nursing,Fshc  1St Floor,620.20, 06-Jun-2017
1215,Revenue,CAHD,South Glos Users in South Glos Homes,Permanent Nursing,Fshc  1St Floor,620.20, 06-Jun-2017
1216,Revenue,CAHD,South Glos Users in South Glos Homes,Permanent Nursing,Fshc  1St Floor,620.20, 06-Jun-2017
1217,Revenue,CAHD,Bed Purchasing - South,Permanent Residential,Fshc  1St Floor,2182.36, 06-Jun-2017
1218,Revenue,CAHD,Bed Purchasing - North,Permanent Nursing,Fshc  1St Floor,2099.88, 06-Jun-2017
1219,Revenue,CAHD,South Glos Users in South Glos Homes,Permanent Nursing,Fshc  1St Floor,620.20, 06-Jun-2017
1220,Revenue,CAHD,Bed Purchasing - South,Respite Planned - Residential,Fshc  1St Floor,1728.57, 06-Jun-2017
1221,Revenue,CAHD,Bed Purchasing - South,Respite Planned - Residential,Fshc  1St Floor,1021.43, 06-Jun-2017
1222,Revenue,CAHD,Bed Purchasing - South,Permanent Nursing,Fshc  1St Floor,2210.16, 06-Jun-2017
1223,Revenue,CAHD,South Glos Users in South Glos Homes,Permanent Nursing,Fshc  1St Floor,620.20, 06-Jun-2017
1224,Revenue,CAHD,South Glos Users in South Glos Homes,Permanent Nursing,Fshc  1St Floor,620.20, 06-Jun-2017
1225,Revenue,CAHD,Bed Purchasing - Southmead Hospital,Permanent Nursing,Fshc  1St Floor,2099.88, 06-Jun-2017
1226,Revenue,CAHD,South Glos Users in South Glos Homes,Permanent Nursing,Fshc  1St Floor,620.20, 06-Jun-2017
1227,Revenue,CAHD,Bed Purchasing - Southmead Hospital,Permanent Nursing,Fshc  1St Floor,2258.92, 06-Jun-2017
1228,Revenue,CAHD,South Glos Users in South Glos Homes,Permanent Nursing,Fshc  1St Floor,620.20, 06-Jun-2017
1229,Revenue,CAHD,South Glos Users in South Glos Homes,Permanent Nursing,Fshc  1St Floor,620.20, 06-Jun-2017
1230,Revenue,CAHD,South Glos Users in South Glos Homes,Permanent Nursing,Fshc  1St Floor,620.20, 06-Jun-2017
1231,Revenue,CAHD,Bed Purchasing - North,Permanent Residential,Fshc  1St Floor,2600.00, 06-Jun-2017
1232,Revenue,CAHD,Bed Purchasing - South,Permanent Residential,Fshc  1St Floor,1958.56, 06-Jun-2017
1233,Revenue,CAHD,Bed Purchasing - Southmead Hospital,Permanent Nursing,Fshc  1St Floor,2099.88, 06-Jun-2017
1234,Revenue,CAHD,South Glos Users in South Glos Homes,Permanent Nursing,Fshc  1St Floor,620.20, 06-Jun-2017
1235,Revenue,CAHD,Bed Purchasing - South,Permanent Nursing,Fshc  1St Floor,2836.40, 06-Jun-2017
1236,Revenue,CAHD,South Glos Users in South Glos Homes,Permanent Nursing,Fshc  1St Floor,620.20, 06-Jun-2017
1237,Revenue,CAHD,Bed Purchasing - Southmead Hospital,Permanent Nursing,Fshc  1St Floor,2099.88, 06-Jun-2017
1238,Revenue,CAHD,South Glos Users in South Glos Homes,Permanent Nursing,Fshc  1St Floor,620.20, 06-Jun-2017
1239,Revenue,CAHD,Bed Purchasing - Southmead Hospital,Permanent Nursing,Fshc  1St Floor,2099.88, 06-Jun-2017
1240,Revenue,CAHD,South Glos Users in South Glos Homes,Permanent Nursing,Fshc  1St Floor,620.20, 06-Jun-2017
1241,Revenue,CAHD,South Glos Users in South Glos Homes,Permanent Nursing,Fshc  1St Floor,620.20, 06-Jun-2017
1242,Revenue,CAHD,Bed Purchasing - North,Permanent Residential,Fshc  1St Floor,2431.20, 06-Jun-2017
1243,Revenue,CAHD,South Glos Users in South Glos Homes,Permanent Nursing,Fshc  1St Floor,3348.21, 06-Jun-2017
1244,Revenue,CAHD,Bed Purchasing - South,Permanent Nursing,Fshc  1St Floor,2633.80, 06-Jun-2017
1245,Revenue,CAHD,South Glos Users in South Glos Homes,Permanent Nursing,Fshc  1St Floor,1129.65, 06-Jun-2017
1246,Revenue,CAHD,South Glos Users in South Glos Homes,Permanent Nursing,Fshc  1St Floor,620.20, 06-Jun-2017
1247,Revenue,CAHD,Bed Purchasing - South,Permanent Nursing,Fshc  1St Floor,2010.56, 06-Jun-2017
1248,Revenue,CAHD,Bed Purchasing - South,Permanent Nursing,Fshc  1St Floor,2099.88, 06-Jun-2017
1249,Revenue,CAHD,South Glos Users in South Glos Homes,Permanent Nursing,Fshc  1St Floor,620.20, 06-Jun-2017
1250,Revenue,CAHD,Bed Purchasing - South,Permanent Nursing,Fshc  1St Floor,2354.28, 06-Jun-2017
1251,Revenue,CAHD,South Glos Users in South Glos Homes,Permanent Nursing,Fshc  1St Floor,620.20, 06-Jun-2017
1252,Revenue,CAHD,Bed Purchasing - South,Permanent Nursing,Fshc  1St Floor,2174.88, 06-Jun-2017
1253,Revenue,CAHD,South Glos Users in South Glos Homes,Permanent Nursing,Fshc  1St Floor,620.20, 06-Jun-2017
1254,Revenue,CAHD,Bed Purchasing - South,Permanent Residential,Fshc  1St Floor,2182.36, 06-Jun-2017
1255,Revenue,CAHD,Bed Purchasing - South,Permanent Nursing,Fshc  1St Floor,3209.89, 06-Jun-2017
1256,Revenue,CAHD,Bed Purchasing - South,Permanent Nursing,Fshc  1St Floor,2192.12, 06-Jun-2017
1257,Revenue,CAHD,Bed Purchasing - South,Permanent Nursing,Fshc  1St Floor,7651.29, 06-Jun-2017
1258,Revenue,CAHD,Bed Purchasing - South,Fees & Charges Income - General,Fshc  1St Floor,2329.47, 06-Jun-2017
1259,Revenue,CAHD,Bed Purchasing - South,Fees & Charges Income - General,Fshc  1St Floor,1006.56, 06-Jun-2017
1260,Revenue,CAHD,Bed Purchasing - Southmead Hospital,Permanent Nursing,Fshc  1St Floor,2874.96, 06-Jun-2017
1261,Revenue,CAHD,Bed purchasing - Elderly S117 - South,Permanent Nursing,Fshc  1St Floor,3288.18, 06-Jun-2017
1262,Revenue,CAHD,Bed purchasing - Elderly S117 - South,Permanent Nursing,Fshc  1St Floor,2192.12, 06-Jun-2017
1263,Revenue,CAHD,Bed purchasing - Elderly S117 - South,Permanent Nursing,Fshc  1St Floor,7651.29, 06-Jun-2017
1264,Revenue,CAHD,Bed Purchasing - South,Permanent Nursing,Fshc  1St Floor,3444.20, 06-Jun-2017
1265,Revenue,CAHD,Bed Purchasing - South,Permanent Nursing,Fshc  1St Floor,2633.80, 06-Jun-2017
1266,Revenue,CAHD,Bed Purchasing - South,Permanent Nursing,Fshc  1St Floor,2337.14, 06-Jun-2017
1267,Revenue,CAHD,Bed Purchasing - South,Permanent Nursing,Fshc  1St Floor,1512.26, 06-Jun-2017
1268,Revenue,CAHD,Bed Purchasing - Southmead Hospital,Permanent Nursing,Fshc  1St Floor,3643.92, 06-Jun-2017
1269,Revenue,CAHD,Bed Purchasing - Southmead Hospital,Permanent Nursing,Fshc  1St Floor,2192.12, 06-Jun-2017
1270,Revenue,CAHD,Bed Purchasing - Southmead Hospital,Permanent Nursing,Fshc  1St Floor,7651.29, 06-Jun-2017
1271,Revenue,CAHD,Bed Purchasing - Southmead Hospital,Fees & Charges Income - General,Fshc  1St Floor,2385.48, 06-Jun-2017
1272,Revenue,CAHD,Bed Purchasing - Southmead Hospital,Fees & Charges Income - General,Fshc  1St Floor,1186.42, 06-Jun-2017
1273,Revenue,CAHD,Bed Purchasing - Southmead Hospital,Permanent Nursing,Fshc  1St Floor,3643.92, 06-Jun-2017
1274,Revenue,CAHD,Bed Purchasing - Southmead Hospital,Permanent Nursing,Fshc  1St Floor,2192.12, 06-Jun-2017
1275,Revenue,CAHD,Bed Purchasing - Southmead Hospital,Permanent Nursing,Fshc  1St Floor,7651.29, 06-Jun-2017
1276,Revenue,CAHD,Bed Purchasing - Southmead Hospital,Fees & Charges Income - General,Fshc  1St Floor,2159.19, 06-Jun-2017
1277,Revenue,CAHD,Bed Purchasing - Southmead Hospital,Fees & Charges Income - General,Fshc  1St Floor,929.53, 06-Jun-2017
1278,Revenue,CAHD,South Glos Users in South Glos Homes,Permanent Nursing,Fshc  1St Floor,753.10, 06-Jun-2017
1279,Revenue,CAHD,South Glos Users in South Glos Homes,Permanent Nursing,Fshc  1St Floor,620.20, 06-Jun-2017
1280,Revenue,CAHD,Bed Purchasing - Southmead Hospital,Permanent Nursing,Fshc  1St Floor,3209.89, 06-Jun-2017
1281,Revenue,CAHD,Bed Purchasing - Southmead Hospital,Permanent Nursing,Fshc  1St Floor,2192.12, 06-Jun-2017
1282,Revenue,CAHD,Bed Purchasing - Southmead Hospital,Permanent Nursing,Fshc  1St Floor,7651.29, 06-Jun-2017
1283,Revenue,CAHD,Bed Purchasing - Southmead Hospital,Fees & Charges Income - General,Fshc  1St Floor,1848.47, 06-Jun-2017
1284,Revenue,CAHD,Bed Purchasing - Southmead Hospital,Fees & Charges Income - General,Fshc  1St Floor,806.70, 06-Jun-2017
1285,Revenue,CAHD,Bed Purchasing - South,Permanent Nursing,Fshc  1St Floor,3643.92, 06-Jun-2017
1286,Revenue,CAHD,Bed Purchasing - South,Permanent Nursing,Fshc  1St Floor,2215.78, 06-Jun-2017
1287,Revenue,CAHD,Bed Purchasing - South,Permanent Nursing,Fshc  1St Floor,2192.12, 06-Jun-2017
1288,Revenue,CAHD,Bed Purchasing - South,Permanent Nursing,Fshc  1St Floor,7651.29, 06-Jun-2017
1289,Revenue,CAHD,Bed Purchasing - South,Fees & Charges Income - General,Fshc  1St Floor,2329.61, 06-Jun-2017
1290,Revenue,CAHD,Bed Purchasing - South,Fees & Charges Income - General,Fshc  1St Floor,984.88, 06-Jun-2017
1291,Revenue,CAHD,Bed Purchasing - South,Permanent Residential,Fshc  1St Floor,3588.12, 06-Jun-2017
1292,Revenue,CAHD,Bed Purchasing - Southmead Hospital,Permanent Residential,Fshc  1St Floor,1971.36, 06-Jun-2017
1293,Revenue,CAHD,Bed Purchasing - North,Permanent Nursing,Fshc  1St Floor,2217.88, 06-Jun-2017
1294,Revenue,CAHD,Bed Purchasing - North,Fees & Charges Income - General,Fshc  1St Floor,1611.59, 06-Jun-2017
1295,Revenue,CAHD,Bed Purchasing - North,Permanent Nursing,Fshc  1St Floor,2194.20, 06-Jun-2017
1296,Revenue,CAHD,Bed Purchasing - North,Respite Planned - Nursing,Fshc  1St Floor,1488.92, 06-Jun-2017
1297,Revenue,CAHD,Bed Purchasing - North,Permanent Nursing,Fshc  1St Floor,1880.74, 06-Jun-2017
1298,Revenue,CAHD,Bed Purchasing - North,Permanent Nursing,Fshc  1St Floor,2014.28, 06-Jun-2017
1299,Revenue,CAHD,South Glos Users in South Glos Homes,Permanent Nursing,Fshc  1St Floor,620.20, 06-Jun-2017
1300,Revenue,CAHD,Bed Purchasing - North,Permanent Nursing,Fshc  1St Floor,2217.88, 06-Jun-2017
1301,Revenue,CAHD,Bed Purchasing - North,Permanent Nursing,Fshc  1St Floor,3334.08, 06-Jun-2017
1302,Revenue,CAHD,Bed Purchasing - North,Permanent Nursing,Fshc  1St Floor,2222.72, 06-Jun-2017
1303,Revenue,CAHD,Bed Purchasing - North,Permanent Nursing,Fshc  1St Floor,1959.11, 06-Jun-2017
1304,Revenue,CAHD,Bed Purchasing - North,Respite Planned - Residential,Fshc  1St Floor,553.66, 06-Jun-2017
1305,Revenue,CAHD,Bed Purchasing - Southmead Hospital,Fees & Charges Income - General,Fshc  1St Floor,699.82, 06-Jun-2017
1306,Revenue,CAHD,Bed Purchasing - Southmead Hospital,Fees & Charges Income - General,Fshc  1St Floor,1782.39, 06-Jun-2017
1307,Revenue,CAHD,Bed Purchasing - North,Permanent Nursing,Fshc  1St Floor,1954.96, 06-Jun-2017
1308,Revenue,CAHD,Bed Purchasing - Southmead Hospital,Permanent Nursing,Fshc  1St Floor,2633.80, 06-Jun-2017
1309,Revenue,CAHD,Bed Purchasing - South,Permanent Residential,Fshc  1St Floor,2228.60, 06-Jun-2017
1310,Revenue,CAHD,Bed Purchasing - North,Permanent Residential,Fshc  1St Floor,1855.12, 06-Jun-2017
1311,Revenue,CAHD,Woodleaze,Prop.Serv. General Repairs,George Grimes,1050.00, 28-Jun-2017
1312,Revenue,CAHD,Bed Purchasing - South,Permanent Residential,Gladstone House,5749.96, 06-Jun-2017
1313,Revenue,CAHD,Bed Purchasing - North,Permanent Residential,Glan Y Felin,6520.08, 06-Jun-2017
1314,Revenue,CAHD,Bed Purchasing - South,Permanent Residential,Glasallt Fawr,5121.84, 06-Jun-2017
1315,Revenue,CAHD,South Glos Users in South Glos Homes,Permanent Nursing,Glebe House Nursing Home,620.20, 06-Jun-2017
1316,Revenue,CAHD,Bed Purchasing - North,Permanent Residential,Glebe House Nursing Home,3444.20, 06-Jun-2017
1317,Revenue,CAHD,South Glos Users in South Glos Homes,Permanent Nursing,Glebe House Nursing Home,620.20, 06-Jun-2017
1318,Revenue,CAHD,South Glos Users in South Glos Homes,Permanent Nursing,Glebe House Nursing Home,620.20, 06-Jun-2017
1319,Revenue,CAHD,South Glos Users in South Glos Homes,Permanent Nursing,Glebe House Nursing Home,620.20, 06-Jun-2017
1320,Revenue,CAHD,South Glos Users in South Glos Homes,Permanent Nursing,Glebe House Nursing Home,620.20, 06-Jun-2017
1321,Revenue,CAHD,Bed Purchasing - North,Permanent Nursing,Glebe House Nursing Home,3154.24, 06-Jun-2017
1322,Revenue,CAHD,South Glos Users in South Glos Homes,Permanent Nursing,Glebe House Nursing Home,620.20, 06-Jun-2017
1323,Revenue,CAHD,South Glos Users in South Glos Homes,Permanent Nursing,Glebe House Nursing Home,620.20, 06-Jun-2017
1324,Revenue,CAHD,South Glos Users in South Glos Homes,Permanent Nursing,Glebe House Nursing Home,620.20, 06-Jun-2017
1325,Revenue,CAHD,Bed Purchasing - North,Permanent Nursing,Glebe House Nursing Home,3960.00, 06-Jun-2017
1326,Revenue,CAHD,Bed Purchasing - North,Fees & Charges Income - General,Glebe House Nursing Home,716.10, 06-Jun-2017
1327,Revenue,CAHD,South Glos Users in South Glos Homes,Permanent Nursing,Glebe House Nursing Home,620.20, 06-Jun-2017
1328,Revenue,CAHD,Bed Purchasing - North,Permanent Nursing,Glebe House Nursing Home,3043.36, 06-Jun-2017
1329,Revenue,CAHD,South Glos Users in South Glos Homes,Permanent Nursing,Glebe House Nursing Home,620.20, 06-Jun-2017
1330,Revenue,CAHD,South Glos Users in South Glos Homes,Permanent Nursing,Glebe House Nursing Home,620.20, 06-Jun-2017
1331,Revenue,CAHD,South Glos Users in South Glos Homes,Permanent Nursing,Glebe House Nursing Home,620.20, 06-Jun-2017
1332,Revenue,CAHD,South Glos Users in South Glos Homes,Permanent Nursing,Glebe House Nursing Home,620.20, 06-Jun-2017
1333,Revenue,CAHD,South Glos Users in South Glos Homes,Permanent Nursing,Glebe House Nursing Home,620.20, 06-Jun-2017
1334,Revenue,CAHD,South Glos Users in South Glos Homes,Permanent Nursing,Glebe House Nursing Home,620.20, 06-Jun-2017
1335,Revenue,CAHD,South Glos Users in South Glos Homes,Permanent Nursing,Glebe House Nursing Home,620.20, 06-Jun-2017
1336,Revenue,CAHD,South Glos Users in South Glos Homes,Permanent Nursing,Glebe House Nursing Home,620.20, 06-Jun-2017
1337,Revenue,CAHD,Bed Purchasing - South,Permanent Residential,Glebe House Nursing Home,3342.92, 06-Jun-2017
1338,Revenue,CAHD,Bed Purchasing - Southmead Hospital,Permanent Residential,Glebe House Nursing Home,3239.80, 06-Jun-2017
1339,Revenue,CAHD,Bed Purchasing - Southmead Hospital,Permanent Residential,Glebe House Nursing Home,2314.14, 06-Jun-2017
1340,Revenue,CAHD,South Glos Users in South Glos Homes,Permanent Nursing,Glebe House Nursing Home,620.20, 06-Jun-2017
1341,Revenue,CAHD,South Glos Users in South Glos Homes,Permanent Nursing,Glebe House Nursing Home,620.20, 06-Jun-2017
1342,Revenue,CAHD,Bed Purchasing - North,Permanent Nursing,Glebe House Nursing Home,3216.28, 06-Jun-2017
1343,Revenue,CAHD,South Glos Users in South Glos Homes,Permanent Nursing,Glebe House Nursing Home,620.20, 06-Jun-2017
1344,Revenue,CAHD,South Glos Users in South Glos Homes,Permanent Nursing,Glebe House Nursing Home,620.20, 06-Jun-2017
1345,Revenue,CAHD,South Glos Users in South Glos Homes,Permanent Nursing,Glebe House Nursing Home,620.20, 06-Jun-2017
1346,Revenue,CAHD,Bed Purchasing - South,Permanent Residential,Goldcare House,4539.28, 06-Jun-2017
1347,Revenue,CAHD,Bed Purchasing - Southmead Hospital,Respite Planned - Residential,Gordena Care Home,2063.83, 06-Jun-2017
1348,Revenue,CAHD,Bed Purchasing - South,Permanent Residential,Gordena Care Home,3880.20, 06-Jun-2017
1349,Revenue,CAHD,Bed Purchasing - South,Permanent Residential,Gordena Care Home,2586.80, 06-Jun-2017
1350,Revenue,CAHD,Bed Purchasing - South,Permanent Residential,Gordena Care Home,3682.84, 06-Jun-2017
1351,Revenue,CAHD,Bed Purchasing - South,Permanent Residential,Gordena Care Home,2582.60, 06-Jun-2017
1352,Revenue,CAHD,Bed Purchasing - South,Permanent Residential,Gordena Care Home,4293.88, 06-Jun-2017
1353,Revenue,CAHD,Bed Purchasing - South,Permanent Residential,Gordena Care Home,3694.04, 06-Jun-2017
1354,Revenue,CAHD,Bed Purchasing - South,Permanent Residential,Gordena Care Limited,4826.88, 06-Jun-2017
1355,Revenue,CAHD,Bed Purchasing - South,Permanent Residential,Gordena Care Limited,4786.44, 06-Jun-2017
1356,Revenue,CAHD,Bed purchasing - S28A Under 65 - South,Permanent Residential,Gordena Care Limited,4694.40, 06-Jun-2017
1357,Revenue,CAHD,Bed Purchasing - North,Permanent Residential,Gordena Care Limited,4892.64, 06-Jun-2017
1358,Revenue,CAHD,Bed Purchasing - South,Permanent Nursing,Gracefields Nursing Home,2486.52, 06-Jun-2017
1359,Revenue,CAHD,South Glos Users in South Glos Homes,Permanent Nursing,Gracefields Nursing Home,620.20, 06-Jun-2017
1360,Revenue,CAHD,South Glos Users in South Glos Homes,Permanent Nursing,Gracefields Nursing Home,620.20, 06-Jun-2017
1361,Revenue,CAHD,South Glos Users in South Glos Homes,Permanent Nursing,Gracefields Nursing Home,620.20, 06-Jun-2017
1362,Revenue,CAHD,South Glos Users in South Glos Homes,Permanent Nursing,Gracefields Nursing Home,3415.18, 06-Jun-2017
1363,Revenue,CAHD,South Glos Users in South Glos Homes,Permanent Nursing,Gracefields Nursing Home,620.20, 06-Jun-2017
1364,Revenue,CAHD,Bed purchasing - Elderly S117 - South,Permanent Nursing,Gracefields Nursing Home,2445.68, 06-Jun-2017
1365,Revenue,CAHD,South Glos Users in South Glos Homes,Permanent Nursing,Gracefields Nursing Home,620.20, 06-Jun-2017
1366,Revenue,CAHD,South Glos Users in South Glos Homes,Permanent Nursing,Gracefields Nursing Home,620.20, 06-Jun-2017
1367,Revenue,CAHD,Bed Purchasing - South,Permanent Nursing,Gracefields Nursing Home,3274.00, 06-Jun-2017
1368,Revenue,CAHD,South Glos Users in South Glos Homes,Permanent Nursing,Gracefields Nursing Home,620.20, 06-Jun-2017
1369,Revenue,CAHD,Bed Purchasing - South,Permanent Nursing,Gracefields Nursing Home,3094.72, 06-Jun-2017
1370,Revenue,CAHD,Bed Purchasing - South,Permanent Nursing,Gracefields Nursing Home,773.68, 06-Jun-2017
1371,Revenue,CAHD,Bed Purchasing - South,Fees & Charges Income - General,Gracefields Nursing Home,773.68, 06-Jun-2017
1372,Revenue,CAHD,South Glos Users in South Glos Homes,Permanent Nursing,Gracefields Nursing Home,620.20, 06-Jun-2017
1373,Revenue,CAHD,Bed Purchasing - South,Permanent Nursing,Gracefields Nursing Home,4642.08, 06-Jun-2017
1374,Revenue,CAHD,Bed Purchasing - South,Fees & Charges Income - General,Gracefields Nursing Home,810.92, 06-Jun-2017
1375,Revenue,CAHD,Bed Purchasing - South,Permanent Nursing,Gracefields Nursing Home,3952.20, 06-Jun-2017
1376,Revenue,CAHD,Bed Purchasing - South,Permanent Nursing,Gracefields Nursing Home,2681.85, 06-Jun-2017
1377,Revenue,CAHD,South Glos Users in South Glos Homes,Permanent Nursing,Gracefields Nursing Home,620.20, 06-Jun-2017
1378,Revenue,CAHD,South Glos Users in South Glos Homes,Permanent Nursing,Gracefields Nursing Home,620.20, 06-Jun-2017
1379,Revenue,CAHD,South Glos Users in South Glos Homes,Permanent Nursing,Gracefields Nursing Home,620.20, 06-Jun-2017
1380,Revenue,CAHD,South Glos Users in South Glos Homes,Permanent Nursing,Gracefields Nursing Home,620.20, 06-Jun-2017
1381,Revenue,CAHD,South Glos Users in South Glos Homes,Permanent Nursing,Gracefields Nursing Home,620.20, 06-Jun-2017
1382,Revenue,CAHD,South Glos Users in South Glos Homes,Permanent Nursing,Gracefields Nursing Home,620.20, 06-Jun-2017
1383,Revenue,CAHD,South Glos Users in South Glos Homes,Permanent Nursing,Gracefields Nursing Home,620.20, 06-Jun-2017
1384,Revenue,CAHD,South Glos Users in South Glos Homes,Permanent Nursing,Gracefields Nursing Home,620.20, 06-Jun-2017
1385,Revenue,CAHD,South Glos Users in South Glos Homes,Permanent Nursing,Gracefields Nursing Home,620.20, 06-Jun-2017
1386,Revenue,CAHD,South Glos Users in South Glos Homes,Permanent Nursing,Gracefields Nursing Home,620.20, 06-Jun-2017
1387,Revenue,CAHD,South Glos Users in South Glos Homes,Permanent Nursing,Gracefields Nursing Home,620.20, 06-Jun-2017
1388,Revenue,CAHD,Bed Purchasing - South,Permanent Nursing,Gracefields Nursing Home,4607.10, 06-Jun-2017
1389,Revenue,CAHD,Bed Purchasing - South,Permanent Nursing,Gracefields Nursing Home,3071.40, 06-Jun-2017
1390,Revenue,CAHD,Bed Purchasing - South,Permanent Nursing,Gracefields Nursing Home,541.43, 06-Jun-2017
1391,Revenue,CAHD,Bed Purchasing - South,Fees & Charges Income - General,Gracefields Nursing Home,787.49, 06-Jun-2017
1392,Revenue,CAHD,Bed Purchasing - Southmead Hospital,Fees & Charges Income - General,Gracefields Nursing Home,675.48, 06-Jun-2017
1393,Revenue,CAHD,Bed Purchasing - Southmead Hospital,Permanent Nursing,Gracefields Nursing Home,3094.72, 06-Jun-2017
1394,Revenue,CAHD,South Glos Users in South Glos Homes,Permanent Nursing,Gracefields Nursing Home,620.20, 06-Jun-2017
1395,Revenue,CAHD,South Glos Users in South Glos Homes,Permanent Nursing,Gracefields Nursing Home,620.20, 06-Jun-2017
1396,Revenue,CAHD,Bed Purchasing - South,Permanent Nursing,Gracefields Nursing Home,2970.12, 06-Jun-2017
1397,Revenue,CAHD,South Glos Users in South Glos Homes,Permanent Nursing,Gracefields Nursing Home,620.20, 06-Jun-2017
1398,Revenue,CAHD,South Glos Users in South Glos Homes,Permanent Nursing,Gracefields Nursing Home,620.20, 06-Jun-2017
1399,Revenue,CAHD,South Glos Users in South Glos Homes,Permanent Nursing,Gracefields Nursing Home,620.20, 06-Jun-2017
1400,Revenue,CAHD,South Glos Users in South Glos Homes,Permanent Nursing,Gracefields Nursing Home,620.20, 06-Jun-2017
1401,Revenue,CAHD,South Glos Users in South Glos Homes,Permanent Nursing,Gracefields Nursing Home,620.20, 06-Jun-2017
1402,Revenue,CAHD,Bed Purchasing - South,Permanent Nursing,Gracefields Nursing Home,2445.68, 06-Jun-2017
1403,Revenue,CAHD,South Glos Users in South Glos Homes,Permanent Nursing,Gracefields Nursing Home,620.20, 06-Jun-2017
1404,Revenue,CAHD,South Glos Users in South Glos Homes,Permanent Nursing,Gracefields Nursing Home,620.20, 06-Jun-2017
1405,Revenue,CAHD,South Glos Users in South Glos Homes,Permanent Nursing,Gracefields Nursing Home,620.20, 06-Jun-2017
1406,Revenue,CAHD,Bed Purchasing - South,Permanent Nursing,Gracefields Nursing Home,2868.80, 06-Jun-2017
1407,Revenue,CAHD,South Glos Users in South Glos Homes,Permanent Nursing,Gracefields Nursing Home,620.20, 06-Jun-2017
1408,Revenue,CAHD,Bed Purchasing - Southmead Hospital,Permanent Nursing,Gracefields Nursing Home,3094.72, 06-Jun-2017
1409,Revenue,CAHD,South Glos Users in South Glos Homes,Permanent Nursing,Gracefields Nursing Home,620.20, 06-Jun-2017
1410,Revenue,CAHD,South Glos Users in South Glos Homes,Permanent Nursing,Gracefields Nursing Home,620.20, 06-Jun-2017
1411,Revenue,CAHD,Bed Purchasing - Southmead Hospital,Permanent Nursing,Gracefields Nursing Home,2445.68, 06-Jun-2017
1412,Revenue,CAHD,South Glos Users in South Glos Homes,Permanent Nursing,Gracefields Nursing Home,620.20, 06-Jun-2017
1413,Revenue,CAHD,Bed Purchasing - Southmead Hospital,Permanent Nursing,Gracefields Nursing Home,3274.00, 06-Jun-2017
1414,Revenue,CAHD,Bed Purchasing - Southmead Hospital,Permanent Residential,Granada House Residential Home,1855.12, 06-Jun-2017
1415,Revenue,CAHD,Bed Purchasing - North,Permanent Residential,Greensleeves,2036.72, 06-Jun-2017
1416,Revenue,CAHD,Bed Purchasing - South,Permanent Residential,Grove Care,3039.00, 06-Jun-2017
1417,Revenue,CAHD,Bed Purchasing - South,Permanent Residential,Gwendoline House,2238.36, 06-Jun-2017
1418,Revenue,CAHD,Bed Purchasing - Southmead Hospital,Permanent Residential,Gwendoline House,2234.28, 06-Jun-2017
1419,Revenue,CAHD,Bed Purchasing - South,Permanent Residential,Gwendoline House,2238.36, 06-Jun-2017
1420,Revenue,CAHD,Bed Purchasing - South,Permanent Residential,Gwendoline House,2370.40, 06-Jun-2017
1421,Revenue,CAHD,Bed Purchasing - Southmead Hospital,Permanent Residential,Gwendoline House,2068.24, 06-Jun-2017
1422,Revenue,CAHD,Supporting People Programme,Grants to Voluntary Bodies,Habinteg Housing Association,666.00, 01-Jun-2017
1423,Revenue,CAHD,Supporting People Programme,Grants to Voluntary Bodies,Habinteg Housing Association,666.00, 30-Jun-2017
1424,Revenue,CAHD,Social Lettings Agency,Fees - General,Individual,16.46, 27-Jun-2017
1425,Revenue,CAHD,Social Lettings Agency,Other Supplies & Services,Individual,559.60, 27-Jun-2017
1426,Revenue,CAHD,Supporting People Programme,Grants to Voluntary Bodies,Hanover Housing Association,996.16, 01-Jun-2017
1427,Revenue,CAHD,Supporting People Programme,Grants to Voluntary Bodies,Hanover Housing Association,996.16, 30-Jun-2017
1428,Revenue,CAHD,Section 117 Placements MH Younger,Permanent Residential,Harefield Hall,4558.50, 06-Jun-2017
1429,Revenue,CAHD,Section 117 Placements MH Younger,Permanent Residential,Harefield Hall,4000.00, 06-Jun-2017
1430,Revenue,CAHD,Section 117 Placements MH Younger,Permanent Residential,Harefield Hall,3039.00, 06-Jun-2017
1431,Revenue,CAHD,Section 117 Placements MH Younger,Permanent Residential,Harefield Hall,1500.00, 06-Jun-2017
1432,Revenue,CAHD,Bed Purchasing - South,Permanent Residential,Harefield Hall,2381.92, 06-Jun-2017
1433,Revenue,CAHD,Bed Purchasing - South,Permanent Residential,Harefield Hall,2669.60, 06-Jun-2017
1434,Revenue,CAHD,Bed Purchasing - South,Permanent Residential,Harefield Hall,2800.00, 06-Jun-2017
1435,Revenue,CAHD,Bed Purchasing - South,Permanent Residential,Harefield Hall,700.00, 06-Jun-2017
1436,Revenue,CAHD,Bed Purchasing - South,Permanent Residential,Harefield Hall,3002.52, 06-Jun-2017
1437,Revenue,CAHD,Bed Purchasing - South,Permanent Residential,Harefield Hall,2252.96, 06-Jun-2017
1438,Revenue,CAHD,Bed Purchasing - South,Permanent Residential,Harefield Hall,2443.48, 06-Jun-2017
1439,Revenue,CAHD,Bed Purchasing - South,Permanent Residential,Harefield Hall,2594.64, 06-Jun-2017
1440,Revenue,CAHD,Home Care Monitoring (CM2000),Other Supplies & Services,HAS Technology Limited T/A CM2000,10536.93, 08-Jun-2017
1441,Revenue,CAHD,Bed Purchasing - Southmead Hospital,Permanent Nursing,Hc-One Ltd,2211.24, 06-Jun-2017
1442,Revenue,CAHD,Bed Purchasing - Southmead Hospital,Respite Planned - Residential,Hc-One Ltd,2312.00, 06-Jun-2017
1443,Revenue,CAHD,Bed Purchasing - Southmead Hospital,Permanent Nursing,Hc-One Ltd,2135.24, 06-Jun-2017
1444,Revenue,CAHD,Bed Purchasing - Southmead Hospital,Permanent Nursing,Hc-One Ltd,2763.76, 06-Jun-2017
1445,Revenue,CAHD,Bed Purchasing - North,Permanent Nursing,Hc-One Ltd,2130.64, 06-Jun-2017
1446,Revenue,CAHD,Bed Purchasing - North,Permanent Nursing,Hc-One Ltd,2116.36, 06-Jun-2017
1447,Revenue,CAHD,Bed Purchasing - Southmead Hospital,Permanent Nursing,Hc-One Ltd,2130.64, 06-Jun-2017
1448,Revenue,CAHD,Bed Purchasing - South,Permanent Residential,Hc-One Ltd,2139.44, 06-Jun-2017
1449,Revenue,CAHD,Bed Purchasing - Southmead Hospital,Permanent Nursing,Hc-One Ltd,2763.76, 06-Jun-2017
1450,Revenue,CAHD,Bed Purchasing - North,Permanent Nursing,Hc-One Ltd,2130.64, 06-Jun-2017
1451,Revenue,CAHD,Bed Purchasing - North,Permanent Nursing,Hc-One Ltd,2130.60, 06-Jun-2017
1452,Revenue,CAHD,Bed Purchasing - Southmead Hospital,Permanent Nursing,Hc-One Ltd,2560.80, 06-Jun-2017
1453,Revenue,CAHD,18-25 Year Olds,Day Care / Social Activities,Headway Bristol,64.80, 01-Jun-2017
1454,Revenue,CAHD,Home Care - Elderly - South,Day Care / Social Activities,Headway Bristol,496.80, 01-Jun-2017
1455,Revenue,CAHD,Home Care - Elderly - South,Other Small Contracts,Headway Bristol,345.60, 01-Jun-2017
1456,Revenue,CAHD,Home Care - Elderly - North,Day Care / Social Activities,Headway Bristol,1198.80, 01-Jun-2017
1457,Revenue,CAHD,Home Care - Elderly - North,Other Small Contracts,Headway Bristol,189.00, 01-Jun-2017
1458,Revenue,CAHD,18-25 Year Olds,Day Care / Social Activities,Headway Bristol,64.80, 05-Jun-2017
1459,Revenue,CAHD,Home Care - Elderly - South,Day Care / Social Activities,Headway Bristol,270.00, 05-Jun-2017
1460,Revenue,CAHD,Home Care - Elderly - South,Other Small Contracts,Headway Bristol,329.40, 05-Jun-2017
1461,Revenue,CAHD,Home Care - Elderly - North,Day Care / Social Activities,Headway Bristol,810.00, 05-Jun-2017
1462,Revenue,CAHD,Home Care - Elderly - North,Other Small Contracts,Headway Bristol,194.40, 05-Jun-2017
1463,Revenue,CAHD,18-25 Year Olds,Day Care / Social Activities,Headway Bristol,64.80, 12-Jun-2017
1464,Revenue,CAHD,Home Care - Elderly - South,Day Care / Social Activities,Headway Bristol,502.20, 12-Jun-2017
1465,Revenue,CAHD,Home Care - Elderly - South,Other Small Contracts,Headway Bristol,172.80, 12-Jun-2017
1466,Revenue,CAHD,Home Care - Elderly - North,Day Care / Social Activities,Headway Bristol,1144.80, 12-Jun-2017
1467,Revenue,CAHD,Home Care - Elderly - North,Other Small Contracts,Headway Bristol,237.60, 12-Jun-2017
1468,Revenue,CAHD,Home Care - Elderly - South,Day Care / Social Activities,Headway Bristol,453.60, 19-Jun-2017
1469,Revenue,CAHD,Home Care - Elderly - South,Other Small Contracts,Headway Bristol,232.20, 19-Jun-2017
1470,Revenue,CAHD,Home Care - Elderly - North,Day Care / Social Activities,Headway Bristol,1171.80, 19-Jun-2017
1471,Revenue,CAHD,Home Care - Elderly - North,Other Small Contracts,Headway Bristol,108.00, 19-Jun-2017
1472,Revenue,CAHD,18-25 Year Olds,Day Care / Social Activities,Headway Bristol,64.80, 27-Jun-2017
1473,Revenue,CAHD,Home Care - Elderly - South,Day Care / Social Activities,Headway Bristol,540.00, 27-Jun-2017
1474,Revenue,CAHD,Home Care - Elderly - South,Other Small Contracts,Headway Bristol,334.80, 27-Jun-2017
1475,Revenue,CAHD,Home Care - Elderly - North,Day Care / Social Activities,Headway Bristol,1252.80, 27-Jun-2017
1476,Revenue,CAHD,Home Care - Elderly - North,Other Small Contracts,Headway Bristol,172.80, 27-Jun-2017
1477,Revenue,CAHD,Home Care - Elderly - South,Other Small Contracts,Helping Hands Homecare,1008.00, 08-Jun-2017
1478,Revenue,CAHD,Home Care - Elderly - North,Day Care / Social Activities,Helping Hands Homecare,232.96, 08-Jun-2017
1479,Revenue,CAHD,Home Care - Elderly - North,Other Small Contracts,Helping Hands Homecare,4831.90, 08-Jun-2017
1480,Revenue,CAHD,Younger MH non-res purchasing,Other Small Contracts,Helping Hands Homecare,66.84, 08-Jun-2017
1481,Revenue,CAHD,Home Care - Elderly - South,Other Small Contracts,Helping Hands Homecare,882.56, 09-Jun-2017
1482,Revenue,CAHD,Home Care - Elderly - North,Day Care / Social Activities,Helping Hands Homecare,197.12, 09-Jun-2017
1483,Revenue,CAHD,Home Care - Elderly - North,Other Small Contracts,Helping Hands Homecare,4877.91, 09-Jun-2017
1484,Revenue,CAHD,Younger MH non-res purchasing,Other Small Contracts,Helping Hands Homecare,66.84, 09-Jun-2017
1485,Revenue,CAHD,Home Care - Elderly - South,Other Small Contracts,Helping Hands Homecare,1124.48, 16-Jun-2017
1486,Revenue,CAHD,Home Care - Elderly - North,Day Care / Social Activities,Helping Hands Homecare,232.96, 16-Jun-2017
1487,Revenue,CAHD,Home Care - Elderly - North,Other Small Contracts,Helping Hands Homecare,4923.32, 16-Jun-2017
1488,Revenue,CAHD,Younger MH non-res purchasing,Other Small Contracts,Helping Hands Homecare,66.84, 16-Jun-2017
1489,Revenue,CAHD,Home Care - Elderly - South,Other Small Contracts,Helping Hands Homecare,1196.16, 23-Jun-2017
1490,Revenue,CAHD,Home Care - Elderly - North,Day Care / Social Activities,Helping Hands Homecare,125.44, 23-Jun-2017
1491,Revenue,CAHD,Home Care - Elderly - North,Other Small Contracts,Helping Hands Homecare,5232.33, 23-Jun-2017
1492,Revenue,CAHD,Younger MH non-res purchasing,Other Small Contracts,Helping Hands Homecare,66.84, 23-Jun-2017
1493,Revenue,CAHD,Home Care - Elderly - South,Other Small Contracts,Helping Hands Homecare,1111.04, 30-Jun-2017
1494,Revenue,CAHD,Home Care - Elderly - North,Other Small Contracts,Helping Hands Homecare,4899.95, 30-Jun-2017
1495,Revenue,CAHD,S117 Placements PCT,Permanent Residential,Hesley Hall,18899.04, 06-Jun-2017
1496,Revenue,CAHD,Bed Purchasing - North,Permanent Residential,High Border Lodge,2001.68, 06-Jun-2017
1497,Revenue,CAHD,Bed Purchasing - Southmead Hospital,Permanent Residential,Highgate Studios,2378.68, 06-Jun-2017
1498,Revenue,CAHD,Bed Purchasing - North,Permanent Residential,Holmleigh Care Homes Ltd,4579.12, 06-Jun-2017
1499,Revenue,CAHD,Bed Purchasing - South,Permanent Residential,Holmleigh Care Homes Ltd,6561.18, 06-Jun-2017
1500,Revenue,CAHD,Jointly Funded H&SC Packages,Permanent Residential,Holmleigh Care Homes Ltd,1879.74, 06-Jun-2017
1501,Revenue,CAHD,Bed Purchasing - South,Permanent Residential,Holmleigh Care Homes Ltd,4374.12, 06-Jun-2017
1502,Revenue,CAHD,Jointly Funded H&SC Packages,Permanent Residential,Holmleigh Care Homes Ltd,1253.16, 06-Jun-2017
1503,Revenue,CAHD,Bed Purchasing - South,Fees & Charges Income - General,Holmleigh Care Homes Ltd,589.52, 06-Jun-2017
1504,Revenue,CAHD,Bed Purchasing - North,Permanent Residential,Home Farm Trust Ltd  5-6 Brook Office Pa,3316.24, 06-Jun-2017
1505,Revenue,CAHD,Bed Purchasing - North,Permanent Residential,Home Farm Trust Ltd  5-6 Brook Office Pa,3852.32, 06-Jun-2017
1506,Revenue,CAHD,Home Care - Elderly - South,Supported Living,Home Farm Trust Ltd  5-6 Brook Office Pa,4074.20, 06-Jun-2017
1507,Revenue,CAHD,18-25 Year Olds,Permanent Residential,Home From Home Care Ltd,9740.76, 06-Jun-2017
1508,Revenue,CAHD,Home Care - Elderly - South,Other Small Contracts,Homecare 4U,201.60, 06-Jun-2017
1509,Revenue,CAHD,Home Care - Elderly - North,Other Small Contracts,Homecare 4U,452.48, 06-Jun-2017
1510,Revenue,CAHD,Home Care - Elderly - South,Other Small Contracts,Homecare 4U,192.64, 06-Jun-2017
1511,Revenue,CAHD,Home Care - Elderly - North,Other Small Contracts,Homecare 4U,461.44, 06-Jun-2017
1512,Revenue,CAHD,Home Care - Elderly - South,Other Small Contracts,Homecare 4U,201.60, 06-Jun-2017
1513,Revenue,CAHD,Home Care - Elderly - North,Other Small Contracts,Homecare 4U,452.48, 06-Jun-2017
1514,Revenue,CAHD,Home Care - Elderly - South,Other Small Contracts,Homecare 4U,201.60, 16-Jun-2017
1515,Revenue,CAHD,Home Care - Elderly - North,Other Small Contracts,Homecare 4U,461.44, 16-Jun-2017
1516,Revenue,CAHD,Home Care - Elderly - South,Other Small Contracts,Homecare 4U,201.60, 16-Jun-2017
1517,Revenue,CAHD,Home Care - Elderly - North,Other Small Contracts,Homecare 4U,452.48, 16-Jun-2017
1518,Revenue,CAHD,Home Care - Elderly - South,Other Small Contracts,Homecare 4U,201.60, 28-Jun-2017
1519,Revenue,CAHD,Home Care - Elderly - North,Other Small Contracts,Homecare 4U,448.00, 28-Jun-2017
1520,Revenue,CAHD,Bed Purchasing - North,Permanent Residential,Homes Caring For Autism Ltd  Churchill H,8175.92, 06-Jun-2017
1521,Revenue,CAHD,Jointly Funded H&SC Packages,Permanent Residential,Homes Caring For Autism Ltd  Churchill H,2470.36, 06-Jun-2017
1522,Revenue,CAHD,18-25 Year Olds,Permanent Residential,Homes Caring For Autism Ltd  Churchill H,5765.32, 06-Jun-2017
1523,Revenue,CAHD,Jointly Funded H&SC Packages,Permanent Residential,Homes Caring For Autism Ltd  Churchill H,8039.24, 06-Jun-2017
1524,Revenue,CAHD,Bed Purchasing - Southmead Hospital,Permanent Nursing,Horfield Care Limited,1507.18, 09-Jun-2017
1525,Revenue,CAHD,Bed Purchasing - Southmead Hospital,Permanent Nursing,Horfield Care Limited,1905.84, 09-Jun-2017
1526,Revenue,CAHD,Bed Purchasing - Southmead Hospital,Permanent Nursing,Horfield Care Limited,1756.10, 09-Jun-2017
1527,Revenue,CAHD,Bed Purchasing - South,Permanent Nursing,Horfield Care Limited,1391.81, 09-Jun-2017
1528,Revenue,CAHD,Bed Purchasing - South,Permanent Nursing,Horfield Care Limited,1413.47, 09-Jun-2017
1529,Revenue,CAHD,Bed Purchasing - Southmead Hospital,Permanent Nursing,Horfield Care Limited,1302.02, 09-Jun-2017
1530,Revenue,CAHD,Home Care - Elderly - North,Other Supplies & Services,Housing & Care 21,1615.64, 05-Jun-2017
1531,Revenue,CAHD,Home Care - Elderly - North,Other Supplies & Services,Housing & Care 21,1224.98, 08-Jun-2017
1532,Revenue,CAHD,Supporting People Programme,Grants to Voluntary Bodies,Housing 21,957.66, 01-Jun-2017
1533,Revenue,CAHD,Supporting People Programme,Grants to Voluntary Bodies,Housing 21,631.50, 01-Jun-2017
1534,Revenue,CAHD,Supporting People Programme,Grants to Voluntary Bodies,Housing 21,957.66, 30-Jun-2017
1535,Revenue,CAHD,Supporting People Programme,Grants to Voluntary Bodies,Housing 21,631.50, 30-Jun-2017
1536,Revenue,CAHD,Extra Care Housing,Private & Voluntary Home Care,Housing 21,40614.39, 09-Jun-2017
1537,Revenue,CAHD,Extra Care Housing,Private & Voluntary Home Care,Housing 21,26103.55, 01-Jun-2017
1538,Revenue,CAHD,Extra Care Housing,Private & Voluntary Home Care,Housing 21,26103.55, 30-Jun-2017
1539,Revenue,CAHD,Mental Capacity Act / DOLS,Professional Fees,Individual,805.00, 21-Jun-2017
1540,Revenue,CAHD,Mental Capacity Act / DOLS,Professional Fees,Individual,594.00, 22-Jun-2017
1541,Revenue,CAHD,Mental Capacity Act / DOLS,Professional Fees,Individual,594.00, 21-Jun-2017
1542,Revenue,CAHD,Mental Capacity Act / DOLS,Professional Fees,Individual,1655.33, 21-Jun-2017
1543,Revenue,CAHD,Information Systems - Software,Software Support & Maintenance,InfoSol Limited,3290.43, 09-Jun-2017
1544,Revenue,CAHD,Care Management Team - South,Agency Staff (Operational)/PCT Pay,IPE,4130.63, 02-Jun-2017
1545,Revenue,CAHD,Social Lettings Agency,Fees - General,Individual,12.22, 09-Jun-2017
1546,Revenue,CAHD,Social Lettings Agency,Other Supplies & Services,Individual,690.32, 09-Jun-2017
1547,Revenue,CAHD,Social Lettings Agency,Fees - General,Individual,10.53, 01-Jun-2017
1548,Revenue,CAHD,Social Lettings Agency,Other Supplies & Services,Individual,595.11, 01-Jun-2017
1549,Revenue,CAHD,Social Lettings Agency,Fees - General,Individual,10.53, 30-Jun-2017
1550,Revenue,CAHD,Social Lettings Agency,Other Supplies & Services,Individual,595.11, 30-Jun-2017
1551,Revenue,CAHD,Tenancy Start Up Scheme,Other Supplies & Services,Individual,1450.00, 22-Jun-2017
1552,Revenue,CAHD,Bed Purchasing - South,Permanent Residential,Jonen House,4079.28, 06-Jun-2017
1553,Revenue,CAHD,Home Care - Elderly - South,Supported Living,Julia Simone- Supp. Ind.,1209.92, 06-Jun-2017
1554,Revenue,CAHD,Younger MH non-res purchasing,Supported Living,Julia Simone- Supp. Ind.,1209.92, 06-Jun-2017
1555,Revenue,CAHD,Younger MH non-res purchasing,Supported Living,Julia Simone- Supp. Ind.,1209.92, 06-Jun-2017
1556,Revenue,CAHD,Home Care - Elderly - North,Supported Living,Julia Simone- Supp. Ind.,1244.76, 06-Jun-2017
1557,Revenue,CAHD,Younger MH non-res purchasing,Supported Living,Julia Simone- Supp. Ind.,1209.76, 06-Jun-2017
1558,Revenue,CAHD,Section 117 Placements MH Younger,Supported Living,Julia Simone- Supp. Ind.,1193.68, 06-Jun-2017
1559,Revenue,CAHD,Younger MH non-res purchasing,Supported Living,Julia Simone- Supp. Ind.,1209.88, 06-Jun-2017
1560,Revenue,CAHD,Bed Purchasing - South,Permanent Residential,Julia Simone- Supp. Ind.,8950.64, 06-Jun-2017
1561,Revenue,CAHD,Bed purchasing -S28A  Under 65 - North,Permanent Residential,Julia Simone- Supp. Ind.,7976.08, 06-Jun-2017
1562,Revenue,CAHD,Management & Support costs,Other Supplies & Services,Keith Smith,2938.39, 01-Jun-2017
1563,Revenue,CAHD,Home Care - Elderly - South,Other Small Contracts,Kensington Community Care,2101.12, 16-Jun-2017
1564,Revenue,CAHD,Home Care - Elderly - North,Other Small Contracts,Kensington Community Care,6993.28, 16-Jun-2017
1565,Revenue,CAHD,Home Care - Elderly - South,Other Small Contracts,Kensington Community Care,2665.60, 16-Jun-2017
1566,Revenue,CAHD,Home Care - Elderly - North,Other Small Contracts,Kensington Community Care,7311.36, 16-Jun-2017
1567,Revenue,CAHD,Home Care - Elderly - South,Other Small Contracts,Kensington Community Care,2826.88, 20-Jun-2017
1568,Revenue,CAHD,Home Care - Elderly - North,Other Small Contracts,Kensington Community Care,7047.04, 20-Jun-2017
1569,Revenue,CAHD,Home Care - Elderly - South,Other Small Contracts,Kensington Community Care,2885.12, 30-Jun-2017
1570,Revenue,CAHD,Home Care - Elderly - North,Other Small Contracts,Kensington Community Care,7047.04, 30-Jun-2017
1571,Revenue,CAHD,Bed Purchasing - Southmead Hospital,Permanent Residential,Kenver House Residential Home,2248.96, 06-Jun-2017
1572,Revenue,CAHD,Bed Purchasing - Southmead Hospital,Permanent Residential,Kenver House Residential Home,2248.96, 06-Jun-2017
1573,Revenue,CAHD,Bed Purchasing - South,Permanent Residential,Kenver House Residential Home,2252.04, 06-Jun-2017
1574,Revenue,CAHD,Bed Purchasing - South,Permanent Residential,Kenver House Residential Home,2248.96, 06-Jun-2017
1575,Revenue,CAHD,Bed Purchasing - Southmead Hospital,Permanent Residential,Kenver House Residential Home,2580.00, 06-Jun-2017
1576,Revenue,CAHD,Bed Purchasing - Southmead Hospital,Permanent Residential,Kenver House Residential Home,1197.86, 06-Jun-2017
1577,Revenue,CAHD,Bed Purchasing - North,Permanent Residential,Kenver House Residential Home,2248.96, 06-Jun-2017
1578,Revenue,CAHD,Bed Purchasing - Southmead Hospital,Permanent Residential,Kenver House Residential Home,3474.00, 06-Jun-2017
1579,Revenue,CAHD,Bed Purchasing - Southmead Hospital,Permanent Residential,Kenver House Residential Home,2316.00, 06-Jun-2017
1580,Revenue,CAHD,Bed Purchasing - Southmead Hospital,Fees & Charges Income - General,Kenver House Residential Home,758.21, 06-Jun-2017
1581,Revenue,CAHD,Bed Purchasing - South,Permanent Residential,Kenver House Residential Home,2463.08, 06-Jun-2017
1582,Revenue,CAHD,Bed purchasing - Elderly S117 - South,Permanent Residential,Kenver House Residential Home,2463.08, 06-Jun-2017
1583,Revenue,CAHD,Bed Purchasing - South,Permanent Residential,Kenver House Residential Home,2613.56, 06-Jun-2017
1584,Revenue,CAHD,Bed Purchasing - South,Permanent Residential,Kenver House Residential Home,2463.08, 06-Jun-2017
1585,Revenue,CAHD,Bed Purchasing - South,Permanent Residential,Kenver House Residential Home,2463.08, 06-Jun-2017
1586,Revenue,CAHD,Bed Purchasing - South,Permanent Residential,Kenver House Residential Home,2613.56, 06-Jun-2017
1587,Revenue,CAHD,Bed Purchasing - South,Permanent Residential,Kenver House Residential Home,2463.08, 06-Jun-2017
1588,Revenue,CAHD,Bed Purchasing - South,Permanent Residential,Kenver House Residential Home,3373.44, 06-Jun-2017
1589,Revenue,CAHD,Bed Purchasing - South,Permanent Residential,Kenver House Residential Home,2248.96, 06-Jun-2017
1590,Revenue,CAHD,Bed Purchasing - South,Fees & Charges Income - General,Kenver House Residential Home,740.64, 06-Jun-2017
1591,Revenue,CAHD,Supporting People Programme,Grants to Voluntary Bodies,Keyring Living Support Networks,2988.58, 01-Jun-2017
1592,Revenue,CAHD,Supporting People Programme,Grants to Voluntary Bodies,Keyring Living Support Networks,2988.58, 30-Jun-2017
1593,Revenue,CAHD,Bed Purchasing - North,Permanent Residential,Kilkhampton Lodge,17727.52, 06-Jun-2017
1594,Revenue,CAHD,Bed Purchasing - North,Permanent Nursing,Kingfisher Lodge Care Centre,3329.08, 06-Jun-2017
1595,Revenue,CAHD,Supporting People Programme,Grants to Voluntary Bodies,Kingswood Young Homeless Project,8151.18, 01-Jun-2017
1596,Revenue,CAHD,Supporting People Programme,Grants to Voluntary Bodies,Kingswood Young Homeless Project,8151.18, 30-Jun-2017
1597,Revenue,CAHD,Bed Purchasing - North,Permanent Residential,Kisimul Group,12236.52, 06-Jun-2017
1598,Revenue,CAHD,Supporting People Programme,Grants to Voluntary Bodies,Knightstone Housing Association Limited,2544.33, 01-Jun-2017
1599,Revenue,CAHD,Supporting People Programme,Grants to Voluntary Bodies,Knightstone Housing Association Limited,1833.66, 01-Jun-2017
1600,Revenue,CAHD,Supporting People Programme,Grants to Voluntary Bodies,Knightstone Housing Association Limited,2543.75, 01-Jun-2017
1601,Revenue,CAHD,Supporting People Programme,Grants to Voluntary Bodies,Knightstone Housing Association Limited,865.25, 01-Jun-2017
1602,Revenue,CAHD,Supporting People Programme,Grants to Voluntary Bodies,Knightstone Housing Association Limited,2544.33, 30-Jun-2017
1603,Revenue,CAHD,Supporting People Programme,Grants to Voluntary Bodies,Knightstone Housing Association Limited,1833.66, 30-Jun-2017
1604,Revenue,CAHD,Supporting People Programme,Grants to Voluntary Bodies,Knightstone Housing Association Limited,2543.75, 30-Jun-2017
1605,Revenue,CAHD,Supporting People Programme,Grants to Voluntary Bodies,Knightstone Housing Association Limited,865.25, 30-Jun-2017
1606,Revenue,CAHD,Bed and Breakfast,Bed & Breakfast,Knightstone Housing Association Ltd,931.42, 07-Jun-2017
1607,Revenue,CAHD,Bed and Breakfast,Bed & Breakfast,Knightstone Housing Association Ltd,931.42, 07-Jun-2017
1608,Revenue,CAHD,Bed and Breakfast,Bed & Breakfast,Knightstone Housing Association Ltd,608.37, 07-Jun-2017
1609,Revenue,CAHD,Bed and Breakfast,Bed & Breakfast,Knightstone Housing Association Ltd,608.37, 07-Jun-2017
1610,Revenue,CAHD,Bed and Breakfast,Bed & Breakfast,Knightstone Housing Association Ltd,716.03, 07-Jun-2017
1611,Revenue,CAHD,Bed and Breakfast,Bed & Breakfast,Knightstone Housing Association Ltd,716.03, 07-Jun-2017
1612,Revenue,CAHD,Bed and Breakfast,Bed & Breakfast,Knightstone Housing Association Ltd,931.42, 12-Jun-2017
1613,Revenue,CAHD,Bed and Breakfast,Bed & Breakfast,Knightstone Housing Association Ltd,649.03, 12-Jun-2017
1614,Revenue,CAHD,Bed and Breakfast,Bed & Breakfast,Knightstone Housing Association Ltd,538.37, 12-Jun-2017
1615,Revenue,CAHD,Bed and Breakfast,Bed & Breakfast,Knightstone Housing Association Ltd,608.37, 12-Jun-2017
1616,Revenue,CAHD,Bed and Breakfast,Bed & Breakfast,Knightstone Housing Association Ltd,753.69, 12-Jun-2017
1617,Revenue,CAHD,Bed and Breakfast,Bed & Breakfast,Knightstone Housing Association Ltd,753.69, 14-Jun-2017
1618,Revenue,CAHD,Bed and Breakfast,Bed & Breakfast,Knightstone Housing Association Ltd,649.03, 14-Jun-2017
1619,Revenue,CAHD,Bed and Breakfast,Bed & Breakfast,Knightstone Housing Association Ltd,931.42, 14-Jun-2017
1620,Revenue,CAHD,Bed and Breakfast,Bed & Breakfast,Knightstone Housing Association Ltd,608.37, 14-Jun-2017
1621,Revenue,CAHD,Bed and Breakfast,Bed & Breakfast,Knightstone Housing Association Ltd,538.37, 14-Jun-2017
1622,Revenue,CAHD,Bed and Breakfast,Bed & Breakfast,Knightstone Housing Association Ltd,753.69, 20-Jun-2017
1623,Revenue,CAHD,Bed and Breakfast,Bed & Breakfast,Knightstone Housing Association Ltd,649.03, 20-Jun-2017
1624,Revenue,CAHD,Bed and Breakfast,Bed & Breakfast,Knightstone Housing Association Ltd,608.37, 20-Jun-2017
1625,Revenue,CAHD,Bed and Breakfast,Bed & Breakfast,Knightstone Housing Association Ltd,613.74, 20-Jun-2017
1626,Revenue,CAHD,Bed and Breakfast,Bed & Breakfast,Knightstone Housing Association Ltd,538.37, 20-Jun-2017
1627,Revenue,CAHD,Bed and Breakfast,Bed & Breakfast,Knightstone Housing Association Ltd,753.69, 29-Jun-2017
1628,Revenue,CAHD,Bed and Breakfast,Bed & Breakfast,Knightstone Housing Association Ltd,649.03, 29-Jun-2017
1629,Revenue,CAHD,Bed and Breakfast,Bed & Breakfast,Knightstone Housing Association Ltd,931.42, 29-Jun-2017
